Workbook

Sheet _com.sap.ip.bi.xl.hiddensheet (hidden)

Sheet Tables for document
A1: Table 1: Feb Storms incremental costs incurred (nominal)
B2: Capex | C2: Opex | D2: Total
A3: Internal Labour | B3: 0 | C3: 785023.85 | D3: 785023.85
A4: Contracts - emergency works | B4: 7391329.61 | C4: 5067206.48 | D4: 12458536.09
A5: Contracts - vegetation management | B5: 841038.1678 | C5: 604450.2522 | D5: 1445488.42
A6: GSLs | C6: 18621180 | D6: 18621180
A7: Other | C7: 1859989.93 | D7: 1859989.93
A8: Total | B8: 8232367.778 | C8: 26937850.51 | D8: 35170218.29
A10: Table 2: Estimated offset savings in 2022-26 period ($2021)
B11: Capex | C11: Opex
A12: Asset replacement | B12: 182038.55 | D12: 182038.55
A13: Vegetation management | C13: 17640 | D13: 17640
A14: Total deductions | B14: 182038.55 | C14: 17640 | D14: 199678.55
A16: Table 3: Total incremental costs minus deductions ($2021)
B17: Capex | C17: Opex | D17: Total | I17: Conversion factor (nominal to real 2021) | J17: 0.9122119904
A18: Internal Labour | B18: 0 | C18: 716108.1687 | D18: 716108.1687
A19: Contracts - emergency works | B19: 6560420.945 | C19: 4622366.509 | D19: 11182787.45
A20: Contracts - vegetation management | B20: 767205.1011 | C20: 533746.7677 | D20: 1300951.869
A21: GSLs | B21: 0 | C21: 16986463.67 | D21: 16986463.67
A22: Other | B22: 0 | C22: 1696705.116 | D22: 1696705.116
A23: Total (no overheads) | B23: 7327626.047 | C23: 24555390.23 | D23: 31883016.28
A24: Overheads | B24: 859653.0986 | D24: 859653.0986 | I24: Network overhead rate for 2023-24 (from Final capex model decision) | J24: 0.1173167262
A25: Total (including overheads) | B25: 8187279.145 | C25: 24555390.23 | D25: 32742669.38
A28: Table 4: Materiality of pass through
A29: $m ($ Jun 2021) | B29: 2023-24
A30: Annual revenue requirement (ARR) (smoothed) (2023-24) | B30: 657.2442503
A31: Total costs associated with the Feb Storm (2023-24) | B31: 32.74266938
A32: Materiality of the pass through | B32: 0.04981811459
A35: Table 5: Inputs to PTRM ($2021)
B36: 2023-24
A37: Distribution system assets Capex | B37: 8187279.145
A38: Feb 2024 storm incremental Opex | B38: 24555390.23
A41: Table 6: Eligible pass through amount ($m $ Jun 2021, unsmoothed)
A42: $ Jun 2021 | B42: 2021-22 | C42: 2022-23 | D42: 2023-24 | E42: 2024-25 | F42: 2025-26 | G42: Total
A43: Return on capital | B43: 0 | C43: 0 | D43: 0 | E43: 0.3953008237 | F43: 0.3260944781 | G43: 0.7213953018
A44: Return of capital | B44: 0 | C44: 0 | D44: 0 | E44: 0.003303393048 | F44: 0.006556930731 | G44: 0.00986032378
A45: Operating expenditure | B45: 0 | C45: 0 | D45: 24.55539023 | E45: 0 | F45: 0 | G45: 24.55539023
A46: Revenue adjustments | B46: 0 | C46: 0 | D46: 0 | E46: 0 | F46: 0 | G46: 0
A47: Tax | B47: 0 | C47: 0 | D47: 0 | E47: 0 | F47: 0 | G47: 0
A48: Building block revenue | B48: 0 | C48: 0 | D48: 24.55539023 | E48: 0.3986042168 | F48: 0.3326514088 | G48: 25.28664586
A51: Table 7: Revenue recovery ($m $ Jun 2021, smoothed)
A52: $ Jun 2021 | B52: 2021-22 | C52: 2022-23 | D52: 2023-24 | E52: 2024-25 | F52: 2025-26 | G52: Total
A53: Smoothed revenue | B53: 0 | C53: 0 | D53: 0 | E53: 0 | F53: 26.50043128 | G53: 26.50043128
A56: Table 8: Revenue per customer analysis
B57: 2021-22 | C57: 2022-23 | D57: 2023-24 | E57: 2024-25 | F57: 2025-26 | G57: % change from 2024-25
A58: Customer numbers | B58: 797843 | C58: 811200 | D58: 825529.9796 | E58: 840148.7384 | F58: 855099.2021
A59: Revenue
A60: Current PTRM (including VEBM) | B60: 669.6582933 | C60: 736.9729776 | D60: 662.9004824 | E60: 665.694203 | F60: 670.3035765 | G60: 0.00692416045
A61: Revenue +100% storm recovery in 2025-26 | F61: 696.8040078 | G61: 0.04673287617
A62: Revenue +50% recovery in 2025-26 | F62: 683.5537921 | G62: 0.02682851831
A63: Revenue +33% recovery in 2025-26 | F63: 679.1370536 | G63: 0.02019373236
A64: Revenue per customer
A65: Current PTRM (including VEBM) | B65: 839.3359261 | C65: 908.4972603 | D65: 802.9998895 | E65: 792.3527973 | F65: 783.8898397 | G65: -0.01068079469
A66: Revenue +100% storm recovery in 2025-26 | F66: 814.8809004 | G66: 0.02843190967
A67: Revenue +50% recovery in 2025-26 | F67: 799.3853701 | G67: 0.008875557489
A68: Revenue +33% recovery in 2025-26 | F68: 794.2201933 | G68: 0.002356773429
A70: Graph data | B70: 2021-22 | C70: 2022-23 | D70: 2023-24 | E70: 2024-25 | F70: 2025-26
A71: Current PTRM (including VEBM) | B71: 839.3359261 | C71: 908.4972603 | D71: 802.9998895 | E71: 792.3527973 | F71: 783.8898397
A72: Revenue +100% storm recovery in 2025-26 | F72: 15.49553035
A73: Revenue +50% recovery in 2025-26 | F73: 5.165176785
A74: Revenue +33% recovery in 2025-26 | F74: 10.33035357

Sheet HX-0014297 - 4012895 (hidden)
L1: Variance | M1: =M134-M2 ->  | N1: =N134-N2 ->  | O1: =O134-O2 -> 
L2: Per SAP | M2: =#REF! ->  | N2: =#REF! ->  | O2: =#REF! -> 
M3: Actual (00/10) | N3: Actual (00/10) | O3: Actual (00/10) | P3: Actual (00/10)
L4: Fiscal year/period | M4: 2 2025 | N4: 3 2025 | O4: 4 2025 | P4: Overall Result
A5: WBS Workcode | C5: WBS Element | E5: Network. | F5: Network Activity | G5: Cost Element | I5: Value category | J5: Profit Centre | L5: Hierarchy Area | M5: AUD | N5: AUD | O5: AUD | P5: AUD | S5: Coding | V5: Row Labels | X5: TX | Y5: Total | Z5: DX (Assumption)
A6: 9999 | B6: INTERNAL COST CAPTURE | C6: HX-0014297-1 | D6: Feb24 Storm Costs NetOps PC 12014 | E6: 4012895 | F6: 0010 | G6: 1000/506401 | H6: S&W Proj - NT Adj | I6: Labour Costs | J6: 1000/12014 | K6: EGM Network Operatio | L6: NO | M6: 9421.85 | N6: 62276.25 | O6: 35000 | P6: 106698.1 | S6: =VLOOKUP(F6,$V$5:$W$20,2,FALSE) -> 0 | V6: 0010
A7: 9999 | B7: INTERNAL COST CAPTURE | C7: HX-0014297-1 | D7: Feb24 Storm Costs NetOps PC 12014 | E7: 4012895 | F7: 0010 | G7: 1000/810100 | H7: Dxn Controller NT | I7: Labour Costs | J7: 1000/12014 | K7: EGM Network Operatio | L7: NO | M7: 5525.45 | P7: 5525.45 | S7: =VLOOKUP(F7,$V$5:$W$20,2,FALSE) -> 0 | V7: 0020 | W7: Transmission Labour | X7: =SUMIF($F$6:$F$133,$V7,$P$6:$P$133) -> 28562.43 | Y7: =SUMIF($I$6:$I$133,$AA7,$P$6:$P$133) -> 897733.49 | Z7: =Y7-X7 -> 869171.06 | AA7: Labour Costs
A8: 9999 | B8: INTERNAL COST CAPTURE | C8: HX-0014297-1 | D8: Feb24 Storm Costs NetOps PC 12014 | E8: 4012895 | F8: 0010 | G8: 1000/810115 | H8: Asset Assesor NT | I8: Labour Costs | J8: 1000/12014 | K8: EGM Network Operatio | L8: NO | M8: 3750.69 | P8: 3750.69 | S8: 0 | V8: 0030
A9: 9999 | B9: INTERNAL COST CAPTURE | C9: HX-0014297-1 | D9: Feb24 Storm Costs NetOps PC 12014 | E9: 4012895 | F9: 0010 | G9: 1000/810118 | H9: Project Manager NT | I9: Labour Costs | J9: 1000/12014 | K9: EGM Network Operatio | L9: NO | M9: 876.28 | N9: 3019.44 | P9: 3895.72 | S9: 0 | V9: 0040
A10: 9999 | B10: INTERNAL COST CAPTURE | C10: HX-0014297-1 | D10: Feb24 Storm Costs NetOps PC 12014 | E10: 4012895 | F10: 0010 | G10: 1000/810120 | H10: Corp Ops Lead NT | I10: Labour Costs | J10: 1000/12014 | K10: EGM Network Operatio | L10: NO | M10: 31068.14 | N10: 4854.34 | P10: 35922.48 | S10: 0 | V10: 0050 | W10: Transmission Other | X10: =SUMIF($F$6:$F$133,$V10,$P$6:$P$133) -> 63072.86 | Y10: =Y21-Y7 -> 1127616.03 | Z10: =Y10-X10 -> 1064543.17
A11: 9999 | B11: INTERNAL COST CAPTURE | C11: HX-0014297-1 | D11: Feb24 Storm Costs NetOps PC 12014 | E11: 4012895 | F11: 0010 | G11: 1000/810122 | H11: Corp Prof Exp NT | I11: Labour Costs | J11: 1000/12014 | K11: EGM Network Operatio | L11: NO | M11: 22064.58 | N11: 9462.6 | P11: 31527.18 | S11: 0 | V11: 0060
A12: 9999 | B12: INTERNAL COST CAPTURE | C12: HX-0014297-1 | D12: Feb24 Storm Costs NetOps PC 12014 | E12: 4012895 | F12: 0010 | G12: 1000/810123 | H12: Corp Prof NT | I12: Labour Costs | J12: 1000/12014 | K12: EGM Network Operatio | L12: NO | M12: 5702.34 | N12: 5312.49 | P12: 11014.83 | S12: 0 | V12: 0070
A13: 9999 | B13: INTERNAL COST CAPTURE | C13: HX-0014297-1 | D13: Feb24 Storm Costs NetOps PC 12014 | E13: 4012895 | F13: 0010 | G13: 1000/810124 | H13: Corp Prof Spec NT | I13: Labour Costs | J13: 1000/12014 | K13: EGM Network Operatio | L13: NO | M13: 16052.17 | N13: 12129.8 | P13: 28181.97 | S13: 0 | V13: 0080
A14: 9999 | B14: INTERNAL COST CAPTURE | C14: HX-0014297-1 | D14: Feb24 Storm Costs NetOps PC 12014 | E14: 4012895 | F14: 0010 | G14: 1000/810132 | H14: Asset Inspector NT | I14: Labour Costs | J14: 1000/12014 | K14: EGM Network Operatio | L14: NO | M14: 9769.47 | P14: 9769.47 | S14: 0 | V14: 0100
A15: 9999 | B15: INTERNAL COST CAPTURE | C15: HX-0014297-1 | D15: Feb24 Storm Costs NetOps PC 12014 | E15: 4012895 | F15: 0010 | G15: 1000/810136 | H15: Corp Semi Prof NT | I15: Labour Costs | J15: 1000/12014 | K15: EGM Network Operatio | L15: NO | M15: 16203.04 | N15: 6726.23 | P15: 22929.27 | S15: 0 | V15: 0110
A16: 9999 | B16: INTERNAL COST CAPTURE | C16: HX-0014297-1 | D16: Feb24 Storm Costs NetOps PC 12014 | E16: 4012895 | F16: 0010 | G16: 1000/810137 | H16: Access Coor NT | I16: Labour Costs | J16: 1000/12014 | K16: EGM Network Operatio | L16: NO | M16: 2825.95 | N16: 812.01 | P16: 3637.96 | S16: 0 | V16: 0120
A17: 9999 | B17: INTERNAL COST CAPTURE | C17: HX-0014297-1 | D17: Feb24 Storm Costs NetOps PC 12014 | E17: 4012895 | F17: 0010 | G17: 1000/810141 | H17: Corp Snr Mngr NT | I17: Labour Costs | J17: 1000/12014 | K17: EGM Network Operatio | L17: NO | M17: 8060 | N17: 10925.95 | P17: 18985.95 | S17: 0 | V17: 0130
A18: 9999 | B18: INTERNAL COST CAPTURE | C18: HX-0014297-1 | D18: Feb24 Storm Costs NetOps PC 12014 | E18: 4012895 | F18: 0010 | G18: 1000/810142 | H18: Corp Strat Mngr NT | I18: Labour Costs | J18: 1000/12014 | K18: EGM Network Operatio | L18: NO | M18: 1577.97 | P18: 1577.97 | S18: 0 | V18: 0150
A19: 9999 | B19: INTERNAL COST CAPTURE | C19: HX-0014297-1 | D19: Feb24 Storm Costs NetOps PC 12014 | E19: 4012895 | F19: 0010 | G19: 1000/810143 | H19: Corp Support NT | I19: Labour Costs | J19: 1000/12014 | K19: EGM Network Operatio | L19: NO | M19: 8883.94 | N19: 992.34 | P19: 9876.28 | S19: 0 | V19: 0140
A20: 9999 | B20: INTERNAL COST CAPTURE | C20: HX-0014297-1 | D20: Feb24 Storm Costs NetOps PC 12014 | E20: 4012895 | F20: 0010 | G20: 1000/810155 | H20: Project Snr Eng NT | I20: Labour Costs | J20: 1000/12014 | K20: EGM Network Operatio | L20: NO | M20: 3035.11 | P20: 3035.11 | S20: 0 | V20: 0160
A21: 9999 | B21: INTERNAL COST CAPTURE | C21: HX-0014297-1 | D21: Feb24 Storm Costs NetOps PC 12014 | E21: 4012895 | F21: 0010 | G21: 1000/810160 | H21: Corp Manager NT | I21: Labour Costs | J21: 1000/12014 | K21: EGM Network Operatio | L21: NO | M21: 32813.56 | N21: 35423.88 | P21: 68237.44 | S21: 0 | V21: Grand Total | X21: =SUM(X7:X20) -> 91635.29 | Y21: =P134 -> 2025349.52 | Z21: =SUM(Z7:Z20) -> 1933714.23
A22: 9999 | B22: INTERNAL COST CAPTURE | C22: HX-0014297-1 | D22: Feb24 Storm Costs NetOps PC 12014 | E22: 4012895 | F22: 0010 | G22: 1000/810200 | H22: Dxn Controller OT | I22: Labour Costs | J22: 1000/12014 | K22: EGM Network Operatio | L22: NO | M22: 6163.08 | N22: 2550.24 | P22: 8713.32 | S22: 0
A23: 9999 | B23: INTERNAL COST CAPTURE | C23: HX-0014297-1 | D23: Feb24 Storm Costs NetOps PC 12014 | E23: 4012895 | F23: 0010 | G23: 1000/810215 | H23: Asset Assesor OT | I23: Labour Costs | J23: 1000/12014 | K23: EGM Network Operatio | L23: NO | M23: 5700.54 | P23: 5700.54 | S23: 0
A24: 9999 | B24: INTERNAL COST CAPTURE | C24: HX-0014297-1 | D24: Feb24 Storm Costs NetOps PC 12014 | E24: 4012895 | F24: 0010 | G24: 1000/810218 | H24: Project Manager OT | I24: Labour Costs | J24: 1000/12014 | K24: EGM Network Operatio | L24: NO | M24: 2032.38 | P24: 2032.38 | S24: 0
A25: 9999 | B25: INTERNAL COST CAPTURE | C25: HX-0014297-1 | D25: Feb24 Storm Costs NetOps PC 12014 | E25: 4012895 | F25: 0010 | G25: 1000/810220 | H25: Corp Ops Lead OT | I25: Labour Costs | J25: 1000/12014 | K25: EGM Network Operatio | L25: NO | M25: 45136.88 | N25: 5355.4 | O25: 156.08 | P25: 50648.36 | S25: 0
A26: 9999 | B26: INTERNAL COST CAPTURE | C26: HX-0014297-1 | D26: Feb24 Storm Costs NetOps PC 12014 | E26: 4012895 | F26: 0010 | G26: 1000/810222 | H26: Corp Prof Exp OT | I26: Labour Costs | J26: 1000/12014 | K26: EGM Network Operatio | L26: NO | M26: 28232.8 | N26: 7370.4 | P26: 35603.2 | S26: 0
A27: 9999 | B27: INTERNAL COST CAPTURE | C27: HX-0014297-1 | D27: Feb24 Storm Costs NetOps PC 12014 | E27: 4012895 | F27: 0010 | G27: 1000/810223 | H27: Corp Prof OT | I27: Labour Costs | J27: 1000/12014 | K27: EGM Network Operatio | L27: NO | M27: 3611.47 | N27: 12452.47 | O27: 897.05 | P27: 16960.99 | S27: 0
A28: 9999 | B28: INTERNAL COST CAPTURE | C28: HX-0014297-1 | D28: Feb24 Storm Costs NetOps PC 12014 | E28: 4012895 | F28: 0010 | G28: 1000/810224 | H28: Corp Prof Spec OT | I28: Labour Costs | J28: 1000/12014 | K28: EGM Network Operatio | L28: NO | M28: 22207.9 | N28: 4907.77 | P28: 27115.67 | S28: 0
A29: 9999 | B29: INTERNAL COST CAPTURE | C29: HX-0014297-1 | D29: Feb24 Storm Costs NetOps PC 12014 | E29: 4012895 | F29: 0010 | G29: 1000/810232 | H29: Asset Inspector OT | I29: Labour Costs | J29: 1000/12014 | K29: EGM Network Operatio | L29: NO | M29: 5554.44 | P29: 5554.44 | S29: 0
A30: 9999 | B30: INTERNAL COST CAPTURE | C30: HX-0014297-1 | D30: Feb24 Storm Costs NetOps PC 12014 | E30: 4012895 | F30: 0010 | G30: 1000/810236 | H30: Corp Semi Prof OT | I30: Labour Costs | J30: 1000/12014 | K30: EGM Network Operatio | L30: NO | M30: 28550.47 | N30: 1207.87 | P30: 29758.34 | S30: 0
A31: 9999 | B31: INTERNAL COST CAPTURE | C31: HX-0014297-1 | D31: Feb24 Storm Costs NetOps PC 12014 | E31: 4012895 | F31: 0010 | G31: 1000/810237 | H31: Access Coor OT | I31: Labour Costs | J31: 1000/12014 | K31: EGM Network Operatio | L31: NO | M31: 1370.85 | P31: 1370.85 | S31: 0
A32: 9999 | B32: INTERNAL COST CAPTURE | C32: HX-0014297-1 | D32: Feb24 Storm Costs NetOps PC 12014 | E32: 4012895 | F32: 0010 | G32: 1000/810240 | H32: Work Planner OT | I32: Labour Costs | J32: 1000/12014 | K32: EGM Network Operatio | L32: NO | M32: 849.25 | N32: 308.82 | P32: 1158.07 | S32: 0
A33: 9999 | B33: INTERNAL COST CAPTURE | C33: HX-0014297-1 | D33: Feb24 Storm Costs NetOps PC 12014 | E33: 4012895 | F33: 0010 | G33: 1000/810241 | H33: Corp Snr Mngr OT | I33: Labour Costs | J33: 1000/12014 | K33: EGM Network Operatio | L33: NO | M33: 22641.14 | N33: 11495.71 | P33: 34136.85 | S33: 0
A34: 9999 | B34: INTERNAL COST CAPTURE | C34: HX-0014297-1 | D34: Feb24 Storm Costs NetOps PC 12014 | E34: 4012895 | F34: 0010 | G34: 1000/810243 | H34: Corp Support OT | I34: Labour Costs | J34: 1000/12014 | K34: EGM Network Operatio | L34: NO | M34: 13554.08 | P34: 13554.08 | S34: 0
A35: 9999 | B35: INTERNAL COST CAPTURE | C35: HX-0014297-1 | D35: Feb24 Storm Costs NetOps PC 12014 | E35: 4012895 | F35: 0010 | G35: 1000/810255 | H35: Project Snr Eng OT | I35: Labour Costs | J35: 1000/12014 | K35: EGM Network Operatio | L35: NO | M35: 1814.29 | P35: 1814.29 | S35: 0
A36: 9999 | B36: INTERNAL COST CAPTURE | C36: HX-0014297-1 | D36: Feb24 Storm Costs NetOps PC 12014 | E36: 4012895 | F36: 0010 | G36: 1000/810260 | H36: Corp Manager OT | I36: Labour Costs | J36: 1000/12014 | K36: EGM Network Operatio | L36: NO | M36: 33377.88 | N36: 33809.38 | P36: 67187.26 | S36: 0
A37: 9999 | B37: INTERNAL COST CAPTURE | C37: HX-0014297-1 | D37: Feb24 Storm Costs NetOps PC 12014 | E37: 4012895 | F37: 0010 | G37: 1000/516413 | H37: Light Meals on Site | I37: Other Costs | J37: 1000/12014 | K37: EGM Network Operatio | L37: NO | O37: 972.13 | P37: 972.13 | S37: 0
A38: 9999 | B38: INTERNAL COST CAPTURE | C38: HX-0014297-1 | D38: Feb24 Storm Costs NetOps PC 12014 | E38: 4012895 | F38: 0020 | G38: 1000/506401 | H38: S&W Proj - NT Adj | I38: Labour Costs | J38: 1000/12014 | K38: EGM Network Operatio | L38: NO | M38: 367.57 | N38: 11.7 | P38: 379.27 | S38: Transmission Labour
A39: 9999 | B39: INTERNAL COST CAPTURE | C39: HX-0014297-1 | D39: Feb24 Storm Costs NetOps PC 12014 | E39: 4012895 | F39: 0020 | G39: 1000/810115 | H39: Asset Assesor NT | I39: Labour Costs | J39: 1000/12014 | K39: EGM Network Operatio | L39: NO | M39: 4586.76 | N39: 372 | P39: 4958.76 | S39: Transmission Labour
A40: 9999 | B40: INTERNAL COST CAPTURE | C40: HX-0014297-1 | D40: Feb24 Storm Costs NetOps PC 12014 | E40: 4012895 | F40: 0020 | G40: 1000/810118 | H40: Project Manager NT | I40: Labour Costs | J40: 1000/12014 | K40: EGM Network Operatio | L40: NO | M40: 738.1 | P40: 738.1 | S40: Transmission Labour
A41: 9999 | B41: INTERNAL COST CAPTURE | C41: HX-0014297-1 | D41: Feb24 Storm Costs NetOps PC 12014 | E41: 4012895 | F41: 0020 | G41: 1000/810120 | H41: Corp Ops Lead NT | I41: Labour Costs | J41: 1000/12014 | K41: EGM Network Operatio | L41: NO | M41: 0 | N41: 1066.12 | P41: 1066.12 | S41: Transmission Labour
A42: 9999 | B42: INTERNAL COST CAPTURE | C42: HX-0014297-1 | D42: Feb24 Storm Costs NetOps PC 12014 | E42: 4012895 | F42: 0020 | G42: 1000/810141 | H42: Corp Snr Mngr NT | I42: Labour Costs | J42: 1000/12014 | K42: EGM Network Operatio | L42: NO | M42: 3940.43 | N42: 1343.33 | P42: 5283.76 | S42: Transmission Labour
A43: 9999 | B43: INTERNAL COST CAPTURE | C43: HX-0014297-1 | D43: Feb24 Storm Costs NetOps PC 12014 | E43: 4012895 | F43: 0020 | G43: 1000/810202 | H43: Txn Controller OT | I43: Labour Costs | J43: 1000/12014 | K43: EGM Network Operatio | L43: NO | M43: 10842.98 | P43: 10842.98 | S43: Transmission Labour
A44: 9999 | B44: INTERNAL COST CAPTURE | C44: HX-0014297-1 | D44: Feb24 Storm Costs NetOps PC 12014 | E44: 4012895 | F44: 0020 | G44: 1000/810260 | H44: Corp Manager OT | I44: Labour Costs | J44: 1000/12014 | K44: EGM Network Operatio | L44: NO | M44: 5293.44 | N44: 0 | P44: 5293.44 | S44: Transmission Labour
A45: 9999 | B45: INTERNAL COST CAPTURE | C45: HX-0014297-1 | D45: Feb24 Storm Costs NetOps PC 12014 | E45: 4012895 | F45: 0030 | G45: 1000/506401 | H45: S&W Proj - NT Adj | I45: Labour Costs | J45: 1000/12014 | K45: EGM Network Operatio | L45: NO | M45: 341.84 | N45: 10.88 | P45: 352.72 | S45: 0
A46: 9999 | B46: INTERNAL COST CAPTURE | C46: HX-0014297-1 | D46: Feb24 Storm Costs NetOps PC 12014 | E46: 4012895 | F46: 0030 | G46: 1000/810120 | H46: Corp Ops Lead NT | I46: Labour Costs | J46: 1000/12014 | K46: EGM Network Operatio | L46: NO | N46: 206.44 | P46: 206.44 | S46: 0
A47: 9999 | B47: INTERNAL COST CAPTURE | C47: HX-0014297-1 | D47: Feb24 Storm Costs NetOps PC 12014 | E47: 4012895 | F47: 0030 | G47: 1000/810124 | H47: Corp Prof Spec NT | I47: Labour Costs | J47: 1000/12014 | K47: EGM Network Operatio | L47: NO | M47: 3622.7 | P47: 3622.7 | S47: 0
A48: 9999 | B48: INTERNAL COST CAPTURE | C48: HX-0014297-1 | D48: Feb24 Storm Costs NetOps PC 12014 | E48: 4012895 | F48: 0030 | G48: 1000/810136 | H48: Corp Semi Prof NT | I48: Labour Costs | J48: 1000/12014 | K48: EGM Network Operatio | L48: NO | M48: 357.88 | P48: 357.88 | S48: 0
A49: 9999 | B49: INTERNAL COST CAPTURE | C49: HX-0014297-1 | D49: Feb24 Storm Costs NetOps PC 12014 | E49: 4012895 | F49: 0030 | G49: 1000/810143 | H49: Corp Support NT | I49: Labour Costs | J49: 1000/12014 | K49: EGM Network Operatio | L49: NO | M49: 2015.16 | P49: 2015.16 | S49: 0
A50: 9999 | B50: INTERNAL COST CAPTURE | C50: HX-0014297-1 | D50: Feb24 Storm Costs NetOps PC 12014 | E50: 4012895 | F50: 0030 | G50: 1000/810243 | H50: Corp Support OT | I50: Labour Costs | J50: 1000/12014 | K50: EGM Network Operatio | L50: NO | M50: 631.8 | P50: 631.8 | S50: 0
A51: 9999 | B51: INTERNAL COST CAPTURE | C51: HX-0014297-1 | D51: Feb24 Storm Costs NetOps PC 12014 | E51: 4012895 | F51: 0030 | G51: 1000/506500 | H51: Cont Lab Non-Payroll | I51: Labour - Non-Payroll Costs | J51: 1000/12014 | K51: EGM Network Operatio | L51: NO | N51: 177483.64 | P51: 177483.64 | S51: 0
A52: 9999 | B52: INTERNAL COST CAPTURE | C52: HX-0014297-1 | D52: Feb24 Storm Costs NetOps PC 12014 | E52: 4012895 | F52: 0030 | G52: 1000/511202 | H52: Maintenance - Asset | I52: Maintenance other | J52: 1000/12014 | K52: EGM Network Operatio | L52: NO | N52: 71145.35 | P52: 71145.35 | S52: 0
A53: 9999 | B53: INTERNAL COST CAPTURE | C53: HX-0014297-1 | D53: Feb24 Storm Costs NetOps PC 12014 | E53: 4012895 | F53: 0030 | G53: 1000/516202 | H53: H & S certification | I53: Other Costs | J53: 1000/12014 | K53: EGM Network Operatio | L53: NO | M53: 31.5 | P53: 31.5 | S53: 0
A54: 9999 | B54: INTERNAL COST CAPTURE | C54: HX-0014297-1 | D54: Feb24 Storm Costs NetOps PC 12014 | E54: 4012895 | F54: 0040 | G54: 1000/506401 | H54: S&W Proj - NT Adj | I54: Labour Costs | J54: 1000/12014 | K54: EGM Network Operatio | L54: NO | M54: 268.32 | N54: 8.54 | P54: 276.86 | S54: 0
A55: 9999 | B55: INTERNAL COST CAPTURE | C55: HX-0014297-1 | D55: Feb24 Storm Costs NetOps PC 12014 | E55: 4012895 | F55: 0040 | G55: 1000/810123 | H55: Corp Prof NT | I55: Labour Costs | J55: 1000/12014 | K55: EGM Network Operatio | L55: NO | M55: 1765.76 | P55: 1765.76 | S55: 0
A56: 9999 | B56: INTERNAL COST CAPTURE | C56: HX-0014297-1 | D56: Feb24 Storm Costs NetOps PC 12014 | E56: 4012895 | F56: 0040 | G56: 1000/810132 | H56: Asset Inspector NT | I56: Labour Costs | J56: 1000/12014 | K56: EGM Network Operatio | L56: NO | M56: 2032.34 | P56: 2032.34 | S56: 0
A57: 9999 | B57: INTERNAL COST CAPTURE | C57: HX-0014297-1 | D57: Feb24 Storm Costs NetOps PC 12014 | E57: 4012895 | F57: 0040 | G57: 1000/810143 | H57: Corp Support NT | I57: Labour Costs | J57: 1000/12014 | K57: EGM Network Operatio | L57: NO | M57: 372.55 | P57: 372.55 | S57: 0
A58: 9999 | B58: INTERNAL COST CAPTURE | C58: HX-0014297-1 | D58: Feb24 Storm Costs NetOps PC 12014 | E58: 4012895 | F58: 0040 | G58: 1000/810232 | H58: Asset Inspector OT | I58: Labour Costs | J58: 1000/12014 | K58: EGM Network Operatio | L58: NO | M58: 308.58 | P58: 308.58 | S58: 0
A59: 9999 | B59: INTERNAL COST CAPTURE | C59: HX-0014297-1 | D59: Feb24 Storm Costs NetOps PC 12014 | E59: 4012895 | F59: 0040 | G59: 1000/810237 | H59: Access Coor OT | I59: Labour Costs | J59: 1000/12014 | K59: EGM Network Operatio | L59: NO | M59: 4499.2 | P59: 4499.2 | S59: 0
A60: 9999 | B60: INTERNAL COST CAPTURE | C60: HX-0014297-1 | D60: Feb24 Storm Costs NetOps PC 12014 | E60: 4012895 | F60: 0040 | G60: 1000/506500 | H60: Cont Lab Non-Payroll | I60: Labour - Non-Payroll Costs | J60: 1000/12014 | K60: EGM Network Operatio | L60: NO | N60: 28207 | P60: 28207 | S60: 0
A61: 9999 | B61: INTERNAL COST CAPTURE | C61: HX-0014297-1 | D61: Feb24 Storm Costs NetOps PC 12014 | E61: 4012895 | F61: 0040 | G61: 1000/511100 | H61: Svc Prov - Contracts | I61: External Maintenance | J61: 1000/12014 | K61: EGM Network Operatio | L61: NO | M61: 98183.35 | N61: -98183.35 | P61: 0 | S61: 0
A62: 9999 | B62: INTERNAL COST CAPTURE | C62: HX-0014297-1 | D62: Feb24 Storm Costs NetOps PC 12014 | E62: 4012895 | F62: 0040 | G62: 1000/511202 | H62: Maintenance - Asset | I62: Maintenance other | J62: 1000/12014 | K62: EGM Network Operatio | L62: NO | N62: 29690.73 | P62: 29690.73 | S62: 0
A63: 9999 | B63: INTERNAL COST CAPTURE | C63: HX-0014297-1 | D63: Feb24 Storm Costs NetOps PC 12014 | E63: 4012895 | F63: 0040 | G63: 1000/521521 | H63: Maint - security cos | I63: Maintenance other | J63: 1000/12014 | K63: EGM Network Operatio | L63: NO | M63: 28125 | N63: 780.45 | O63: 54493.74 | P63: 83399.19 | S63: 0
A64: 9999 | B64: INTERNAL COST CAPTURE | C64: HX-0014297-1 | D64: Feb24 Storm Costs NetOps PC 12014 | E64: 4012895 | F64: 0040 | G64: 1000/521100 | H64: Materials | I64: Material Costs | J64: 1000/12014 | K64: EGM Network Operatio | L64: NO | M64: 34011.09 | N64: 145578.34 | O64: 164290.65 | P64: 343880.08 | S64: 0
A65: 9999 | B65: INTERNAL COST CAPTURE | C65: HX-0014297-1 | D65: Feb24 Storm Costs NetOps PC 12014 | E65: 4012895 | F65: 0040 | G65: 1000/521406 | H65: Hire - Plant & Equip | I65: Other Costs | J65: 1000/12014 | K65: EGM Network Operatio | L65: NO | N65: 85849.62 | P65: 85849.62 | S65: 0
A66: 9999 | B66: INTERNAL COST CAPTURE | C66: HX-0014297-1 | D66: Feb24 Storm Costs NetOps PC 12014 | E66: 4012895 | F66: 0040 | G66: 1000/521505 | H66: Vehicle Parking | I66: Other Costs | J66: 1000/12014 | K66: EGM Network Operatio | L66: NO | N66: 655.7 | P66: 655.7 | S66: 0
A67: 9999 | B67: INTERNAL COST CAPTURE | C67: HX-0014297-1 | D67: Feb24 Storm Costs NetOps PC 12014 | E67: 4012895 | F67: 0040 | G67: 1000/521506 | H67: Transportation | I67: Other Costs | J67: 1000/12014 | K67: EGM Network Operatio | L67: NO | M67: 324.48 | N67: 66.31 | P67: 390.79 | S67: 0
A68: 9999 | B68: INTERNAL COST CAPTURE | C68: HX-0014297-1 | D68: Feb24 Storm Costs NetOps PC 12014 | E68: 4012895 | F68: 0040 | G68: 1000/521508 | H68: Accommodation | I68: Other Costs | J68: 1000/12014 | K68: EGM Network Operatio | L68: NO | N68: 232.14 | O68: 386.83 | P68: 618.97 | S68: 0
A69: 9999 | B69: INTERNAL COST CAPTURE | C69: HX-0014297-1 | D69: Feb24 Storm Costs NetOps PC 12014 | E69: 4012895 | F69: 0040 | G69: 1000/516401 | H69: Office Expenses | I69: Other Costs | J69: 1000/12014 | K69: EGM Network Operatio | L69: NO | O69: 450.68 | P69: 450.68 | S69: 0
A70: 9999 | B70: INTERNAL COST CAPTURE | C70: HX-0014297-1 | D70: Feb24 Storm Costs NetOps PC 12014 | E70: 4012895 | F70: 0040 | G70: 1000/516413 | H70: Light Meals on Site | I70: Other Costs | J70: 1000/12014 | K70: EGM Network Operatio | L70: NO | N70: 28858.06 | P70: 28858.06 | S70: 0
A71: 9999 | B71: INTERNAL COST CAPTURE | C71: HX-0014297-1 | D71: Feb24 Storm Costs NetOps PC 12014 | E71: 4012895 | F71: 0040 | G71: 1000/516416 | H71: Entertmnt - Meals | I71: Other Costs | J71: 1000/12014 | K71: EGM Network Operatio | L71: NO | N71: 37.54 | O71: 10.45 | P71: 47.99 | S71: =VLOOKUP(F71,$V$5:$W$20,2,FALSE) -> 0
A72: 9999 | B72: INTERNAL COST CAPTURE | C72: HX-0014297-1 | D72: Feb24 Storm Costs NetOps PC 12014 | E72: 4012895 | F72: 0050 | G72: 1000/506401 | H72: S&W Proj - NT Adj | I72: Labour Costs | J72: 1000/12014 | K72: EGM Network Operatio | L72: NO | M72: 503.54 | N72: 16.03 | P72: 519.57 | S72: Transmission Other
A73: 9999 | B73: INTERNAL COST CAPTURE | C73: HX-0014297-1 | D73: Feb24 Storm Costs NetOps PC 12014 | E73: 4012895 | F73: 0050 | G73: 1000/810136 | H73: Corp Semi Prof NT | I73: Labour Costs | J73: 1000/12014 | K73: EGM Network Operatio | L73: NO | M73: 2235.87 | P73: 2235.87 | S73: Transmission Other
A74: 9999 | B74: INTERNAL COST CAPTURE | C74: HX-0014297-1 | D74: Feb24 Storm Costs NetOps PC 12014 | E74: 4012895 | F74: 0050 | G74: 1000/810236 | H74: Corp Semi Prof OT | I74: Labour Costs | J74: 1000/12014 | K74: EGM Network Operatio | L74: NO | M74: 5614.96 | P74: 5614.96 | S74: Transmission Other
A75: 9999 | B75: INTERNAL COST CAPTURE | C75: HX-0014297-1 | D75: Feb24 Storm Costs NetOps PC 12014 | E75: 4012895 | F75: 0050 | G75: 1000/511100 | H75: Svc Prov - Contracts | I75: External Maintenance | J75: 1000/12014 | K75: EGM Network Operatio | L75: NO | M75: 23029 | N75: -23029 | P75: 0 | S75: Transmission Other
A76: 9999 | B76: INTERNAL COST CAPTURE | C76: HX-0014297-1 | D76: Feb24 Storm Costs NetOps PC 12014 | E76: 4012895 | F76: 0050 | G76: 1000/511202 | H76: Maintenance - Asset | I76: Maintenance other | J76: 1000/12014 | K76: EGM Network Operatio | L76: NO | N76: 27732.6 | P76: 27732.6 | S76: Transmission Other
A77: 9999 | B77: INTERNAL COST CAPTURE | C77: HX-0014297-1 | D77: Feb24 Storm Costs NetOps PC 12014 | E77: 4012895 | F77: 0050 | G77: 1000/521521 | H77: Maint - security cos | I77: Maintenance other | J77: 1000/12014 | K77: EGM Network Operatio | L77: NO | O77: 26908.14 | P77: 26908.14 | S77: Transmission Other
A78: 9999 | B78: INTERNAL COST CAPTURE | C78: HX-0014297-1 | D78: Feb24 Storm Costs NetOps PC 12014 | E78: 4012895 | F78: 0050 | G78: 1000/521506 | H78: Transportation | I78: Other Costs | J78: 1000/12014 | K78: EGM Network Operatio | L78: NO | N78: 61.72 | P78: 61.72 | S78: Transmission Other
A79: 9999 | B79: INTERNAL COST CAPTURE | C79: HX-0014297-1 | D79: Feb24 Storm Costs NetOps PC 12014 | E79: 4012895 | F79: 0060 | G79: 1000/516101 | H79: IT Software | I79: Other Costs | J79: 1000/12014 | K79: EGM Network Operatio | L79: NO | N79: 72080 | P79: 72080 | S79: 0
A80: 9999 | B80: INTERNAL COST CAPTURE | C80: HX-0014297-1 | D80: Feb24 Storm Costs NetOps PC 12014 | E80: 4012895 | F80: 0060 | G80: 1000/521506 | H80: Transportation | I80: Other Costs | J80: 1000/12014 | K80: EGM Network Operatio | L80: NO | M80: 99.27 | P80: 99.27 | S80: 0
A81: 9999 | B81: INTERNAL COST CAPTURE | C81: HX-0014297-1 | D81: Feb24 Storm Costs NetOps PC 12014 | E81: 4012895 | F81: 0060 | G81: 1000/516401 | H81: Office Expenses | I81: Other Costs | J81: 1000/12014 | K81: EGM Network Operatio | L81: NO | N81: 35.64 | P81: 35.64 | S81: 0
A82: 9999 | B82: INTERNAL COST CAPTURE | C82: HX-0014297-2 | D82: Feb24 Storm Costs dNet PC 12001 | E82: 4012895 | F82: 0070 | G82: 1000/506401 | H82: S&W Proj - NT Adj | I82: Labour Costs | J82: 1000/12014 | K82: EGM Network Operatio | L82: NO | M82: 19155 | P82: 19155 | S82: 0
A83: 9999 | B83: INTERNAL COST CAPTURE | C83: HX-0014297-2 | D83: Feb24 Storm Costs dNet PC 12001 | E83: 4012895 | F83: 0070 | G83: 1000/810122 | H83: Corp Prof Exp NT | I83: Labour Costs | J83: 1000/12014 | K83: EGM Network Operatio | L83: NO | M83: 969.98 | N83: -697.88 | O83: 544.2 | P83: 816.3 | S83: 0
A84: 9999 | B84: INTERNAL COST CAPTURE | C84: HX-0014297-2 | D84: Feb24 Storm Costs dNet PC 12001 | E84: 4012895 | F84: 0070 | G84: 1000/810124 | H84: Corp Prof Spec NT | I84: Labour Costs | J84: 1000/12014 | K84: EGM Network Operatio | L84: NO | M84: 4696.22 | P84: 4696.22 | S84: 0
A85: 9999 | B85: INTERNAL COST CAPTURE | C85: HX-0014297-2 | D85: Feb24 Storm Costs dNet PC 12001 | E85: 4012895 | F85: 0070 | G85: 1000/810141 | H85: Corp Snr Mngr NT | I85: Labour Costs | J85: 1000/12014 | K85: EGM Network Operatio | L85: NO | N85: 5373.44 | P85: 5373.44 | S85: 0
A86: 9999 | B86: INTERNAL COST CAPTURE | C86: HX-0014297-2 | D86: Feb24 Storm Costs dNet PC 12001 | E86: 4012895 | F86: 0070 | G86: 1000/810160 | H86: Corp Manager NT | I86: Labour Costs | J86: 1000/12014 | K86: EGM Network Operatio | L86: NO | N86: 5734.55 | P86: 5734.55 | S86: 0
A87: 9999 | B87: INTERNAL COST CAPTURE | C87: HX-0014297-2 | D87: Feb24 Storm Costs dNet PC 12001 | E87: 4012895 | F87: 0070 | G87: 1000/810222 | H87: Corp Prof Exp OT | I87: Labour Costs | J87: 1000/12014 | K87: EGM Network Operatio | L87: NO | N87: 2052.16 | P87: 2052.16 | S87: 0
A88: 9999 | B88: INTERNAL COST CAPTURE | C88: HX-0014297-2 | D88: Feb24 Storm Costs dNet PC 12001 | E88: 4012895 | F88: 0070 | G88: 1000/516106 | H88: IT Outsource Service | I88: Other Costs | J88: 1000/12014 | K88: EGM Network Operatio | L88: NO | M88: 36686.85 | P88: 36686.85 | S88: 0
A89: 9999 | B89: INTERNAL COST CAPTURE | C89: HX-0014297-2 | D89: Feb24 Storm Costs dNet PC 12001 | E89: 4012895 | F89: 0080 | G89: 1000/516101 | H89: IT Software | I89: Other Costs | J89: 1000/12014 | K89: EGM Network Operatio | L89: NO | N89: 94080 | P89: 94080 | S89: 0
A90: 9999 | B90: INTERNAL COST CAPTURE | C90: HX-0014297-2 | D90: Feb24 Storm Costs dNet PC 12001 | E90: 4012895 | F90: 0080 | G90: 1000/516204 | H90: Professional Fees | I90: Other Costs | J90: 1000/12014 | K90: EGM Network Operatio | L90: NO | O90: 15000 | P90: 15000 | S90: 0
A91: 9999 | B91: INTERNAL COST CAPTURE | C91: HX-0014297-2 | D91: Feb24 Storm Costs dNet PC 12001 | E91: 4012895 | F91: 0080 | G91: 1000/521506 | H91: Transportation | I91: Other Costs | J91: 1000/12014 | K91: EGM Network Operatio | L91: NO | M91: 55.03 | P91: 55.03 | S91: 0
A92: 9999 | B92: INTERNAL COST CAPTURE | C92: HX-0014297-3 | D92: Feb24 Storm Costs F&G PC 12516 | E92: 4012895 | F92: 0100 | G92: 1000/506401 | H92: S&W Proj - NT Adj | I92: Labour Costs | J92: 1000/12014 | K92: EGM Network Operatio | L92: NO | M92: 297.74 | N92: 9.48 | P92: 307.22 | S92: 0
A93: 9999 | B93: INTERNAL COST CAPTURE | C93: HX-0014297-3 | D93: Feb24 Storm Costs F&G PC 12516 | E93: 4012895 | F93: 0100 | G93: 1000/810132 | H93: Asset Inspector NT | I93: Labour Costs | J93: 1000/12014 | K93: EGM Network Operatio | L93: NO | M93: 1140.96 | P93: 1140.96 | S93: 0
A94: 9999 | B94: INTERNAL COST CAPTURE | C94: HX-0014297-3 | D94: Feb24 Storm Costs F&G PC 12516 | E94: 4012895 | F94: 0100 | G94: 1000/810136 | H94: Corp Semi Prof NT | I94: Labour Costs | J94: 1000/12014 | K94: EGM Network Operatio | L94: NO | M94: 711.96 | P94: 711.96 | S94: 0
A95: 9999 | B95: INTERNAL COST CAPTURE | C95: HX-0014297-3 | D95: Feb24 Storm Costs F&G PC 12516 | E95: 4012895 | F95: 0100 | G95: 1000/810232 | H95: Asset Inspector OT | I95: Labour Costs | J95: 1000/12014 | K95: EGM Network Operatio | L95: NO | M95: 1234.32 | P95: 1234.32 | S95: 0
A96: 9999 | B96: INTERNAL COST CAPTURE | C96: HX-0014297-3 | D96: Feb24 Storm Costs F&G PC 12516 | E96: 4012895 | F96: 0100 | G96: 1000/810236 | H96: Corp Semi Prof OT | I96: Labour Costs | J96: 1000/12014 | K96: EGM Network Operatio | L96: NO | M96: 1613.13 | P96: 1613.13 | S96: 0
A97: 9999 | B97: INTERNAL COST CAPTURE | C97: HX-0014297-3 | D97: Feb24 Storm Costs F&G PC 12516 | E97: 4012895 | F97: 0100 | G97: 1000/810260 | H97: Corp Manager OT | I97: Labour Costs | J97: 1000/12014 | K97: EGM Network Operatio | L97: NO | M97: 946.76 | N97: 0 | P97: 946.76 | S97: 0
A98: 9999 | B98: INTERNAL COST CAPTURE | C98: HX-0014297-3 | D98: Feb24 Storm Costs F&G PC 12516 | E98: 4012895 | F98: 0100 | G98: 1000/521506 | H98: Transportation | I98: Other Costs | J98: 1000/12014 | K98: EGM Network Operatio | L98: NO | M98: 153.72 | N98: 45.19 | P98: 198.91 | S98: 0
A99: 9999 | B99: INTERNAL COST CAPTURE | C99: HX-0014297-4 | D99: Feb24 Storm Costs SR&CA PC 12006 | E99: 4012895 | F99: 0110 | G99: 1000/506307 | H99: S&W - Adj | I99: Labour Costs | J99: 1000/12014 | K99: EGM Network Operatio | L99: NO | N99: 7616.34 | P99: 7616.34 | S99: 0
A100: 9999 | B100: INTERNAL COST CAPTURE | C100: HX-0014297-4 | D100: Feb24 Storm Costs SR&CA PC 12006 | E100: 4012895 | F100: 0110 | G100: 1000/506401 | H100: S&W Proj - NT Adj | I100: Labour Costs | J100: 1000/12014 | K100: EGM Network Operatio | L100: NO | M100: 66.15 | N100: 2.11 | P100: 68.26 | S100: 0
A101: 9999 | B101: INTERNAL COST CAPTURE | C101: HX-0014297-4 | D101: Feb24 Storm Costs SR&CA PC 12006 | E101: 4012895 | F101: 0110 | G101: 1000/810120 | H101: Corp Ops Lead NT | I101: Labour Costs | J101: 1000/12014 | K101: EGM Network Operatio | L101: NO | N101: 5472.94 | P101: 5472.94 | S101: 0
A102: 9999 | B102: INTERNAL COST CAPTURE | C102: HX-0014297-4 | D102: Feb24 Storm Costs SR&CA PC 12006 | E102: 4012895 | F102: 0110 | G102: 1000/810122 | H102: Corp Prof Exp NT | I102: Labour Costs | J102: 1000/12014 | K102: EGM Network Operatio | L102: NO | N102: 8730.48 | P102: 8730.48 | S102: 0
A103: 9999 | B103: INTERNAL COST CAPTURE | C103: HX-0014297-4 | D103: Feb24 Storm Costs SR&CA PC 12006 | E103: 4012895 | F103: 0110 | G103: 1000/810136 | H103: Corp Semi Prof NT | I103: Labour Costs | J103: 1000/12014 | K103: EGM Network Operatio | L103: NO | M103: 759.44 | N103: 9018.55 | P103: 9777.99 | S103: 0
A104: 9999 | B104: INTERNAL COST CAPTURE | C104: HX-0014297-4 | D104: Feb24 Storm Costs SR&CA PC 12006 | E104: 4012895 | F104: 0110 | G104: 1000/810143 | H104: Corp Support NT | I104: Labour Costs | J104: 1000/12014 | K104: EGM Network Operatio | L104: NO | N104: 5711.14 | P104: 5711.14 | S104: 0
A105: 9999 | B105: INTERNAL COST CAPTURE | C105: HX-0014297-4 | D105: Feb24 Storm Costs SR&CA PC 12006 | E105: 4012895 | F105: 0110 | G105: 1000/810160 | H105: Corp Manager NT | I105: Labour Costs | J105: 1000/12014 | K105: EGM Network Operatio | L105: NO | M105: 9098.74 | N105: 0 | P105: 9098.74 | S105: 0
A106: 9999 | B106: INTERNAL COST CAPTURE | C106: HX-0014297-4 | D106: Feb24 Storm Costs SR&CA PC 12006 | E106: 4012895 | F106: 0110 | G106: 1000/810220 | H106: Corp Ops Lead OT | I106: Labour Costs | J106: 1000/12014 | K106: EGM Network Operatio | L106: NO | M106: 156.08 | N106: 5993.38 | P106: 6149.46 | S106: 0
A107: 9999 | B107: INTERNAL COST CAPTURE | C107: HX-0014297-4 | D107: Feb24 Storm Costs SR&CA PC 12006 | E107: 4012895 | F107: 0110 | G107: 1000/810222 | H107: Corp Prof Exp OT | I107: Labour Costs | J107: 1000/12014 | K107: EGM Network Operatio | L107: NO | N107: 8301.92 | P107: 8301.92 | S107: 0
A108: 9999 | B108: INTERNAL COST CAPTURE | C108: HX-0014297-4 | D108: Feb24 Storm Costs SR&CA PC 12006 | E108: 4012895 | F108: 0110 | G108: 1000/810223 | H108: Corp Prof OT | I108: Labour Costs | J108: 1000/12014 | K108: EGM Network Operatio | L108: NO | N108: 3873.63 | P108: 3873.63 | S108: 0
A109: 9999 | B109: INTERNAL COST CAPTURE | C109: HX-0014297-4 | D109: Feb24 Storm Costs SR&CA PC 12006 | E109: 4012895 | F109: 0110 | G109: 1000/810236 | H109: Corp Semi Prof OT | I109: Labour Costs | J109: 1000/12014 | K109: EGM Network Operatio | L109: NO | N109: 3674.94 | P109: 3674.94 | S109: 0
A110: 9999 | B110: INTERNAL COST CAPTURE | C110: HX-0014297-4 | D110: Feb24 Storm Costs SR&CA PC 12006 | E110: 4012895 | F110: 0110 | G110: 1000/810237 | H110: Access Coor OT | I110: Labour Costs | J110: 1000/12014 | K110: EGM Network Operatio | L110: NO | M110: 2976.5 | P110: 2976.5 | S110: 0
A111: 9999 | B111: INTERNAL COST CAPTURE | C111: HX-0014297-4 | D111: Feb24 Storm Costs SR&CA PC 12006 | E111: 4012895 | F111: 0110 | G111: 1000/810243 | H111: Corp Support OT | I111: Labour Costs | J111: 1000/12014 | K111: EGM Network Operatio | L111: NO | N111: 5507.59 | P111: 5507.59 | S111: 0
A112: 9999 | B112: INTERNAL COST CAPTURE | C112: HX-0014297-4 | D112: Feb24 Storm Costs SR&CA PC 12006 | E112: 4012895 | F112: 0110 | G112: 1000/810260 | H112: Corp Manager OT | I112: Labour Costs | J112: 1000/12014 | K112: EGM Network Operatio | L112: NO | M112: 16762.56 | N112: 0 | P112: 16762.56 | S112: 0
A113: 9999 | B113: INTERNAL COST CAPTURE | C113: HX-0014297-4 | D113: Feb24 Storm Costs SR&CA PC 12006 | E113: 4012895 | F113: 0120 | G113: 1000/810260 | H113: Corp Manager OT | I113: Labour Costs | J113: 1000/12014 | K113: EGM Network Operatio | L113: NO | M113: 330.84 | N113: 0 | P113: 330.84 | S113: 0
A114: 9999 | B114: INTERNAL COST CAPTURE | C114: HX-0014297-4 | D114: Feb24 Storm Costs SR&CA PC 12006 | E114: 4012895 | F114: 0120 | G114: 1000/521506 | H114: Transportation | I114: Other Costs | J114: 1000/12014 | K114: EGM Network Operatio | L114: NO | N114: 129.93 | P114: 129.93 | S114: 0
A115: 9999 | B115: INTERNAL COST CAPTURE | C115: HX-0014297-4 | D115: Feb24 Storm Costs SR&CA PC 12006 | E115: 4012895 | F115: 0120 | G115: 1000/521508 | H115: Accommodation | I115: Other Costs | J115: 1000/12014 | K115: EGM Network Operatio | L115: NO | N115: 122.48 | P115: 122.48 | S115: 0
A116: 9999 | B116: INTERNAL COST CAPTURE | C116: HX-0014297-5 | D116: Feb24 Storm Costs People PC 12306 | E116: 4012895 | F116: 0130 | G116: 1000/810120 | H116: Corp Ops Lead NT | I116: Labour Costs | J116: 1000/12014 | K116: EGM Network Operatio | L116: NO | N116: 2242.49 | P116: 2242.49 | S116: 0
A117: 9999 | B117: INTERNAL COST CAPTURE | C117: HX-0014297-5 | D117: Feb24 Storm Costs People PC 12306 | E117: 4012895 | F117: 0130 | G117: 1000/810123 | H117: Corp Prof NT | I117: Labour Costs | J117: 1000/12014 | K117: EGM Network Operatio | L117: NO | N117: 2252.97 | P117: 2252.97 | S117: 0
A118: 9999 | B118: INTERNAL COST CAPTURE | C118: HX-0014297-5 | D118: Feb24 Storm Costs People PC 12306 | E118: 4012895 | F118: 0130 | G118: 1000/810136 | H118: Corp Semi Prof NT | I118: Labour Costs | J118: 1000/12014 | K118: EGM Network Operatio | L118: NO | N118: 712 | P118: 712 | S118: 0
A119: 9999 | B119: INTERNAL COST CAPTURE | C119: HX-0014297-5 | D119: Feb24 Storm Costs People PC 12306 | E119: 4012895 | F119: 0130 | G119: 1000/810143 | H119: Corp Support NT | I119: Labour Costs | J119: 1000/12014 | K119: EGM Network Operatio | L119: NO | M119: 1676.49 | P119: 1676.49 | S119: 0
A120: 9999 | B120: INTERNAL COST CAPTURE | C120: HX-0014297-5 | D120: Feb24 Storm Costs People PC 12306 | E120: 4012895 | F120: 0130 | G120: 1000/810220 | H120: Corp Ops Lead OT | I120: Labour Costs | J120: 1000/12014 | K120: EGM Network Operatio | L120: NO | N120: 2055.57 | P120: 2055.57 | S120: 0
A121: 9999 | B121: INTERNAL COST CAPTURE | C121: HX-0014297-5 | D121: Feb24 Storm Costs People PC 12306 | E121: 4012895 | F121: 0130 | G121: 1000/810236 | H121: Corp Semi Prof OT | I121: Labour Costs | J121: 1000/12014 | K121: EGM Network Operatio | L121: NO | N121: 410.76 | P121: 410.76 | S121: 0
A122: 9999 | B122: INTERNAL COST CAPTURE | C122: HX-0014297-5 | D122: Feb24 Storm Costs People PC 12306 | E122: 4012895 | F122: 0130 | G122: 1000/810243 | H122: Corp Support OT | I122: Labour Costs | J122: 1000/12014 | K122: EGM Network Operatio | L122: NO | M122: 4271.55 | P122: 4271.55 | S122: 0
A123: 9999 | B123: INTERNAL COST CAPTURE | C123: HX-0014297-5 | D123: Feb24 Storm Costs People PC 12306 | E123: 4012895 | F123: 0140 | G123: 1000/521100 | H123: Materials | I123: Material Costs | J123: 1000/12014 | K123: EGM Network Operatio | L123: NO | N123: 416 | P123: 416 | S123: 0
A124: 9999 | B124: INTERNAL COST CAPTURE | C124: HX-0014297-5 | D124: Feb24 Storm Costs People PC 12306 | E124: 4012895 | F124: 0140 | G124: 1000/516401 | H124: Office Expenses | I124: Other Costs | J124: 1000/12014 | K124: EGM Network Operatio | L124: NO | N124: 1362.27 | P124: 1362.27 | S124: 0
A125: 9999 | B125: INTERNAL COST CAPTURE | C125: HX-0014297-6 | D125: Feb24 Storm Costs DFN PC 12388 | E125: 4012895 | F125: 0150 | G125: 1000/810136 | H125: Corp Semi Prof NT | I125: Labour Costs | J125: 1000/12014 | K125: EGM Network Operatio | L125: NO | M125: 2684.18 | P125: 2684.18 | S125: 0
A126: 9999 | B126: INTERNAL COST CAPTURE | C126: HX-0014297-6 | D126: Feb24 Storm Costs DFN PC 12388 | E126: 4012895 | F126: 0150 | G126: 1000/810141 | H126: Corp Snr Mngr NT | I126: Labour Costs | J126: 1000/12014 | K126: EGM Network Operatio | L126: NO | M126: 537.33 | P126: 537.33 | S126: 0
A127: 9999 | B127: INTERNAL COST CAPTURE | C127: HX-0014297-6 | D127: Feb24 Storm Costs DFN PC 12388 | E127: 4012895 | F127: 0150 | G127: 1000/810160 | H127: Corp Manager NT | I127: Labour Costs | J127: 1000/12014 | K127: EGM Network Operatio | L127: NO | N127: 3528.15 | P127: 3528.15 | S127: 0
A128: 9999 | B128: INTERNAL COST CAPTURE | C128: HX-0014297-6 | D128: Feb24 Storm Costs DFN PC 12388 | E128: 4012895 | F128: 0150 | G128: 1000/810224 | H128: Corp Prof Spec OT | I128: Labour Costs | J128: 1000/12014 | K128: EGM Network Operatio | L128: NO | M128: 10085.58 | P128: 10085.58 | S128: 0
A129: 9999 | B129: INTERNAL COST CAPTURE | C129: HX-0014297-6 | D129: Feb24 Storm Costs DFN PC 12388 | E129: 4012895 | F129: 0150 | G129: 1000/810236 | H129: Corp Semi Prof OT | I129: Labour Costs | J129: 1000/12014 | K129: EGM Network Operatio | L129: NO | M129: 2193.85 | N129: 1369.2 | O129: 0 | P129: 3563.05 | S129: 0
A130: 9999 | B130: INTERNAL COST CAPTURE | C130: HX-0014297-6 | D130: Feb24 Storm Costs DFN PC 12388 | E130: 4012895 | F130: 0150 | G130: 1000/810241 | H130: Corp Snr Mngr OT | I130: Labour Costs | J130: 1000/12014 | K130: EGM Network Operatio | L130: NO | M130: 2841.64 | P130: 2841.64 | S130: 0
A131: 9999 | B131: INTERNAL COST CAPTURE | C131: HX-0014297-6 | D131: Feb24 Storm Costs DFN PC 12388 | E131: 4012895 | F131: 0150 | G131: 1000/810260 | H131: Corp Manager OT | I131: Labour Costs | J131: 1000/12014 | K131: EGM Network Operatio | L131: NO | N131: 3787.05 | P131: 3787.05 | S131: 0
A132: 9999 | B132: INTERNAL COST CAPTURE | C132: HX-0014297-6 | D132: Feb24 Storm Costs DFN PC 12388 | E132: 4012895 | F132: 0160 | G132: 1000/521505 | H132: Vehicle Parking | I132: Other Costs | J132: 1000/12014 | K132: EGM Network Operatio | L132: NO | N132: 68.18 | P132: 68.18 | S132: 0
A133: 9999 | B133: INTERNAL COST CAPTURE | C133: HX-0014297-6 | D133: Feb24 Storm Costs DFN PC 12388 | E133: 4012895 | F133: 0160 | G133: 1000/521508 | H133: Accommodation | I133: Other Costs | J133: 1000/12014 | K133: EGM Network Operatio | L133: NO | N133: 897.58 | P133: 897.58 | S133: 0
A134: Overall Result | M134: 754674.06 | N134: 971565.51 | O134: 299109.95 | P134: 2025349.52

Sheet TS to NW 4012895 (hidden)
AJ1: Labour Costs per Project | AL1: =SUMIF('HX-0014297 - 4012895'!I:I,"Labour Costs",'HX-0014297 - 4012895'!P:P) -> 897733.49
AB2: =SUBTOTAL(9,AB7:AB916) -> 5473.14 | AC2: 224.24 | AD2: 10.5 | AE2: 738354.87 | AF2: 26033.25 | AG2: 1353.46 | AJ2: Labour - Non-Payroll Costs per Project | AL2: =SUMIF('HX-0014297 - 4012895'!I:I,"Labour - Non-Payroll Costs",'HX-0014297 - 4012895'!P:P) -> 205690.64
A3: Employee | B3: Employee Name | C3: Cost Center | D3: Cost Center Desc | E3: Work Date | F3: Posting Date | G3: Network Order Number | H3: Nework Order Desc | I3: Network Activity Number | J3: Net Act Desc | K3: NETWORK Number | L3: NOW | M3: Activity Number | N3: Activity Type | O3: Activity Type Desc | P3: Project Number | Q3: Project Desc | R3: WBS Element | S3: WBS Element Desc | T3: WC | U3: WC Desc | V3: Project CC | W3: CC Desc | X3: Att/Absence Type | Y3: NT/OT | Z3: Allowance Type | AA3: All Type Desc | AB3: Feb-24 Hours | AC3: Mar-24 Hours | AD3: Apr-24 Hours | AE3: Feb-24 Amount | AF3: Mar-24 Amount | AG3: Apr-24 Amount | AJ3: S&W Proj - NT Adj | AL3: =SUMIF('HX-0014297 - 4012895'!H:H,$AJ$3,'HX-0014297 - 4012895'!P:P) -> 127757
AB4: ACTUAL QUANTITY | AC4: ACTUAL QUANTITY | AD4: ACTUAL QUANTITY | AE4: ACTUAL AMOUNTS | AF4: ACTUAL AMOUNTS | AG4: ACTUAL AMOUNTS | AJ4: S&W - Adj | AL4: =SUMIF('HX-0014297 - 4012895'!H:H,$AJ$4,'HX-0014297 - 4012895'!P:P) -> 7616.34
AA5: Fiscal year/period | AB5: 2 2025 | AC5: 3 2025 | AD5: 4 2025 | AE5: 2 2025 | AF5: 3 2025 | AG5: 4 2025 | AJ5: Labour Costs Excluding Adjustment | AL5: =AL1-AL3-AL4 -> 762360.15
A6: Employee | C6: Employee Cost Center | E6: Work Date | F6: Posting Date | G6: Network Order Number | I6: Network Activity Number | K6: Work Order Number | M6: Oper Number for PM | N6: Activity Type | P6: Project Number | R6: WBS Element | T6: Project Work Code | V6: Project Cost Center | X6: Att/Absence Type | Z6: Allowance Type | AB6: H | AC6: H | AD6: H | AE6: AUD | AF6: AUD | AG6: AUD | AJ6: Per TS Report | AL6: =SUM(AE917:AG917) -> 765741.58
A7: 10000173 | B7: Fiona Pober | C7: 1000/16001 | D7: Inspection & Assessm | E7: 14.02.2024 | F7: 19.02.2024 | G7: 4012895 | H7: Feb24 Storm Costs NetOps PC 12014 | I7: 4012895/0010 | J7: Feb24 Storm Timesheet Dx 12014 | K7: 4012895 | L7: 4012895 | M7: 0010 | N7: 1000/CSTRAN | O7: 1000/CSTRAN | P7: HX-0014297 | Q7: Storm Emergency_Feb24 OPEX | R7: HX-0014297-1 | S7: Feb24 Storm Costs NetOps PC 12014 | T7: 9999 | U7: INTERNAL COST CAPTURE | V7: 1000/11000 | W7: Sweep Profit Centre | X7: 800 | Y7: Normal Time | Z7: 1000/# | AA7: 1000/Not assigned | AB7: 6.91 | AE7: 1577.97 | AJ7: Variance | AL7: =AL5-AL6 -> -3381.43 | AM7: =AL7-'HX-0014297 - 4012895'!O1 -> 
A8: 10000174 | B8: Julie Warke | C8: 1000/13104 | D8: Distribution Control | E8: 13.02.2024 | F8: 28.02.2024 | G8: 4012895 | H8: Feb24 Storm Costs NetOps PC 12014 | I8: 4012895/0010 | J8: Feb24 Storm Timesheet Dx 12014 | K8: 4012895 | L8: 4012895 | M8: 0010 | N8: 1000/CSENMO | O8: Corp Snr Mngr OT | P8: HX-0014297 | Q8: Storm Emergency_Feb24 OPEX | R8: HX-0014297-1 | S8: Feb24 Storm Costs NetOps PC 12014 | T8: 9999 | U8: INTERNAL COST CAPTURE | V8: 1000/11000 | W8: Sweep Profit Centre | X8: 850 | Y8: Overtime | Z8: 1000/# | AA8: 1000/Not assigned | AB8: 2.75 | AE8: 780.75
A9: 10000174 | B9: Julie Warke | C9: 1000/13104 | D9: Distribution Control | E9: 14.02.2024 | F9: 28.02.2024 | G9: 4012895 | H9: Feb24 Storm Costs NetOps PC 12014 | I9: 4012895/0010 | J9: Feb24 Storm Timesheet Dx 12014 | K9: 4012895 | L9: 4012895 | M9: 0010 | N9: 1000/CSENMO | O9: Corp Snr Mngr OT | P9: HX-0014297 | Q9: Storm Emergency_Feb24 OPEX | R9: HX-0014297-1 | S9: Feb24 Storm Costs NetOps PC 12014 | T9: 9999 | U9: INTERNAL COST CAPTURE | V9: 1000/11000 | W9: Sweep Profit Centre | X9: 850 | Y9: Overtime | Z9: 1000/# | AA9: 1000/Not assigned | AB9: 8.5 | AE9: 2413.24 | AJ9: Feb24 Storm Costs NetOps PC 12014 | AK9: =SUMIF(S:S,AJ9,AC:AC) -> 131.07
A10: 10000174 | B10: Julie Warke | C10: 1000/13104 | D10: Distribution Control | E10: 15.02.2024 | F10: 28.02.2024 | G10: 4012895 | H10: Feb24 Storm Costs NetOps PC 12014 | I10: 4012895/0010 | J10: Feb24 Storm Timesheet Dx 12014 | K10: 4012895 | L10: 4012895 | M10: 0010 | N10: 1000/CSENMO | O10: Corp Snr Mngr OT | P10: HX-0014297 | Q10: Storm Emergency_Feb24 OPEX | R10: HX-0014297-1 | S10: Feb24 Storm Costs NetOps PC 12014 | T10: 9999 | U10: INTERNAL COST CAPTURE | V10: 1000/11000 | W10: Sweep Profit Centre | X10: 850 | Y10: Overtime | Z10: 1000/# | AA10: 1000/Not assigned | AB10: 8.5 | AE10: 2413.24
A11: 10000174 | B11: Julie Warke | C11: 1000/13104 | D11: Distribution Control | E11: 16.02.2024 | F11: 28.02.2024 | G11: 4012895 | H11: Feb24 Storm Costs NetOps PC 12014 | I11: 4012895/0010 | J11: Feb24 Storm Timesheet Dx 12014 | K11: 4012895 | L11: 4012895 | M11: 0010 | N11: 1000/CSENMO | O11: Corp Snr Mngr OT | P11: HX-0014297 | Q11: Storm Emergency_Feb24 OPEX | R11: HX-0014297-1 | S11: Feb24 Storm Costs NetOps PC 12014 | T11: 9999 | U11: INTERNAL COST CAPTURE | V11: 1000/11000 | W11: Sweep Profit Centre | X11: 850 | Y11: Overtime | Z11: 1000/# | AA11: 1000/Not assigned | AB11: 6 | AE11: 1703.46
A12: 10000174 | B12: Julie Warke | C12: 1000/13104 | D12: Distribution Control | E12: 17.02.2024 | F12: 28.02.2024 | G12: 4012895 | H12: Feb24 Storm Costs NetOps PC 12014 | I12: 4012895/0010 | J12: Feb24 Storm Timesheet Dx 12014 | K12: 4012895 | L12: 4012895 | M12: 0010 | N12: 1000/CSENMO | O12: Corp Snr Mngr OT | P12: HX-0014297 | Q12: Storm Emergency_Feb24 OPEX | R12: HX-0014297-1 | S12: Feb24 Storm Costs NetOps PC 12014 | T12: 9999 | U12: INTERNAL COST CAPTURE | V12: 1000/11000 | W12: Sweep Profit Centre | X12: 850 | Y12: Overtime | Z12: 1000/# | AA12: 1000/Not assigned | AB12: 10.25 | AE12: 2910.08
A13: 10000174 | B13: Julie Warke | C13: 1000/13104 | D13: Distribution Control | E13: 18.02.2024 | F13: 28.02.2024 | G13: 4012895 | H13: Feb24 Storm Costs NetOps PC 12014 | I13: 4012895/0010 | J13: Feb24 Storm Timesheet Dx 12014 | K13: 4012895 | L13: 4012895 | M13: 0010 | N13: 1000/CSENMO | O13: Corp Snr Mngr OT | P13: HX-0014297 | Q13: Storm Emergency_Feb24 OPEX | R13: HX-0014297-1 | S13: Feb24 Storm Costs NetOps PC 12014 | T13: 9999 | U13: INTERNAL COST CAPTURE | V13: 1000/11000 | W13: Sweep Profit Centre | X13: 850 | Y13: Overtime | Z13: 1000/# | AA13: 1000/Not assigned | AB13: 14 | AE13: 3974.74
A14: 10000174 | B14: Julie Warke | C14: 1000/13104 | D14: Distribution Control | E14: 22.02.2024 | F14: 28.02.2024 | G14: 4012895 | H14: Feb24 Storm Costs NetOps PC 12014 | I14: 4012895/0010 | J14: Feb24 Storm Timesheet Dx 12014 | K14: 4012895 | L14: 4012895 | M14: 0010 | N14: 1000/CSENMO | O14: Corp Snr Mngr OT | P14: HX-0014297 | Q14: Storm Emergency_Feb24 OPEX | R14: HX-0014297-1 | S14: Feb24 Storm Costs NetOps PC 12014 | T14: 9999 | U14: INTERNAL COST CAPTURE | V14: 1000/11000 | W14: Sweep Profit Centre | X14: 850 | Y14: Overtime | Z14: 1000/# | AA14: 1000/Not assigned | AB14: 7 | AE14: 1987.37
A15: 10000223 | B15: Liz Colvin | C15: 1000/12018 | D15: Mark Data & Mter Ser | E15: 23.03.2024 | F15: 09.04.2024 | G15: 4012895 | H15: Feb24 Storm Costs NetOps PC 12014 | I15: 4012895/0010 | J15: Feb24 Storm Timesheet Dx 12014 | K15: 4012895 | L15: 4012895 | M15: 0010 | N15: 1000/CPSRAO | O15: 1000/CPSRAO | P15: HX-0014297 | Q15: Storm Emergency_Feb24 OPEX | R15: HX-0014297-1 | S15: Feb24 Storm Costs NetOps PC 12014 | T15: 9999 | U15: INTERNAL COST CAPTURE | V15: 1000/11000 | W15: Sweep Profit Centre | X15: 850 | Y15: Overtime | Z15: 1000/# | AA15: 1000/Not assigned | AC15: 5.5 | AF15: 897.05
A16: 10000368 | B16: Gareth Downes | C16: 1000/13723 | D16: Cust Prog Cent East | E16: 14.02.2024 | F16: 01.03.2024 | G16: 4012895 | H16: Feb24 Storm Costs NetOps PC 12014 | I16: 4012895/0010 | J16: Feb24 Storm Timesheet Dx 12014 | K16: 4012895 | L16: 4012895 | M16: 0010 | N16: 1000/CSENAN | O16: 1000/CSENAN | P16: HX-0014297 | Q16: Storm Emergency_Feb24 OPEX | R16: HX-0014297-1 | S16: Feb24 Storm Costs NetOps PC 12014 | T16: 9999 | U16: INTERNAL COST CAPTURE | V16: 1000/11000 | W16: Sweep Profit Centre | X16: 800 | Y16: Normal Time | Z16: 1000/# | AA16: 1000/Not assigned | AB16: 8.5 | AE16: 1343.43
A17: 10000368 | B17: Gareth Downes | C17: 1000/13723 | D17: Cust Prog Cent East | E17: 14.02.2024 | F17: 01.03.2024 | G17: 4012895 | H17: Feb24 Storm Costs NetOps PC 12014 | I17: 4012895/0010 | J17: Feb24 Storm Timesheet Dx 12014 | K17: 4012895 | L17: 4012895 | M17: 0010 | N17: 1000/CSENAO | O17: 1000/CSENAO | P17: HX-0014297 | Q17: Storm Emergency_Feb24 OPEX | R17: HX-0014297-1 | S17: Feb24 Storm Costs NetOps PC 12014 | T17: 9999 | U17: INTERNAL COST CAPTURE | V17: 1000/11000 | W17: Sweep Profit Centre | X17: 850 | Y17: Overtime | Z17: 1000/# | AA17: 1000/Not assigned | AB17: 4.5 | AE17: 1162.49
A18: 10000368 | B18: Gareth Downes | C18: 1000/13723 | D18: Cust Prog Cent East | E18: 15.02.2024 | F18: 01.03.2024 | G18: 4012895 | H18: Feb24 Storm Costs NetOps PC 12014 | I18: 4012895/0010 | J18: Feb24 Storm Timesheet Dx 12014 | K18: 4012895 | L18: 4012895 | M18: 0010 | N18: 1000/CSENAN | O18: 1000/CSENAN | P18: HX-0014297 | Q18: Storm Emergency_Feb24 OPEX | R18: HX-0014297-1 | S18: Feb24 Storm Costs NetOps PC 12014 | T18: 9999 | U18: INTERNAL COST CAPTURE | V18: 1000/11000 | W18: Sweep Profit Centre | X18: 800 | Y18: Normal Time | Z18: 1000/# | AA18: 1000/Not assigned | AB18: 9.5 | AE18: 1343.4
A19: 10000368 | B19: Gareth Downes | C19: 1000/13723 | D19: Cust Prog Cent East | E19: 15.02.2024 | F19: 01.03.2024 | G19: 4012895 | H19: Feb24 Storm Costs NetOps PC 12014 | I19: 4012895/0010 | J19: Feb24 Storm Timesheet Dx 12014 | K19: 4012895 | L19: 4012895 | M19: 0010 | N19: 1000/CSENAO | O19: 1000/CSENAO | P19: HX-0014297 | Q19: Storm Emergency_Feb24 OPEX | R19: HX-0014297-1 | S19: Feb24 Storm Costs NetOps PC 12014 | T19: 9999 | U19: INTERNAL COST CAPTURE | V19: 1000/11000 | W19: Sweep Profit Centre | X19: 850 | Y19: Overtime | Z19: 1000/# | AA19: 1000/Not assigned | AB19: 4.5 | AE19: 1162.49
A20: 10000368 | B20: Gareth Downes | C20: 1000/13723 | D20: Cust Prog Cent East | E20: 16.02.2024 | F20: 01.03.2024 | G20: 4012895 | H20: Feb24 Storm Costs NetOps PC 12014 | I20: 4012895/0010 | J20: Feb24 Storm Timesheet Dx 12014 | K20: 4012895 | L20: 4012895 | M20: 0010 | N20: 1000/CSENAN | O20: 1000/CSENAN | P20: HX-0014297 | Q20: Storm Emergency_Feb24 OPEX | R20: HX-0014297-1 | S20: Feb24 Storm Costs NetOps PC 12014 | T20: 9999 | U20: INTERNAL COST CAPTURE | V20: 1000/11000 | W20: Sweep Profit Centre | X20: 800 | Y20: Normal Time | Z20: 1000/# | AA20: 1000/Not assigned | AB20: 9.5 | AE20: 1343.4
A21: 10000368 | B21: Gareth Downes | C21: 1000/13723 | D21: Cust Prog Cent East | E21: 16.02.2024 | F21: 01.03.2024 | G21: 4012895 | H21: Feb24 Storm Costs NetOps PC 12014 | I21: 4012895/0010 | J21: Feb24 Storm Timesheet Dx 12014 | K21: 4012895 | L21: 4012895 | M21: 0010 | N21: 1000/CSENAO | O21: 1000/CSENAO | P21: HX-0014297 | Q21: Storm Emergency_Feb24 OPEX | R21: HX-0014297-1 | S21: Feb24 Storm Costs NetOps PC 12014 | T21: 9999 | U21: INTERNAL COST CAPTURE | V21: 1000/11000 | W21: Sweep Profit Centre | X21: 850 | Y21: Overtime | Z21: 1000/# | AA21: 1000/Not assigned | AB21: 4.5 | AE21: 1162.49
A22: 10000368 | B22: Gareth Downes | C22: 1000/13723 | D22: Cust Prog Cent East | E22: 17.02.2024 | F22: 01.03.2024 | G22: 4012895 | H22: Feb24 Storm Costs NetOps PC 12014 | I22: 4012895/0010 | J22: Feb24 Storm Timesheet Dx 12014 | K22: 4012895 | L22: 4012895 | M22: 0010 | N22: 1000/CSENAO | O22: 1000/CSENAO | P22: HX-0014297 | Q22: Storm Emergency_Feb24 OPEX | R22: HX-0014297-1 | S22: Feb24 Storm Costs NetOps PC 12014 | T22: 9999 | U22: INTERNAL COST CAPTURE | V22: 1000/11000 | W22: Sweep Profit Centre | X22: 850 | Y22: Overtime | Z22: 1000/# | AA22: 1000/Not assigned | AB22: 13 | AE22: 3358.29
A23: 10000368 | B23: Gareth Downes | C23: 1000/13723 | D23: Cust Prog Cent East | E23: 18.02.2024 | F23: 01.03.2024 | G23: 4012895 | H23: Feb24 Storm Costs NetOps PC 12014 | I23: 4012895/0010 | J23: Feb24 Storm Timesheet Dx 12014 | K23: 4012895 | L23: 4012895 | M23: 0010 | N23: 1000/CSENAO | O23: 1000/CSENAO | P23: HX-0014297 | Q23: Storm Emergency_Feb24 OPEX | R23: HX-0014297-1 | S23: Feb24 Storm Costs NetOps PC 12014 | T23: 9999 | U23: INTERNAL COST CAPTURE | V23: 1000/11000 | W23: Sweep Profit Centre | X23: 850 | Y23: Overtime | Z23: 1000/# | AA23: 1000/Not assigned | AB23: 11.5 | AE23: 2970.8
A24: 10000368 | B24: Gareth Downes | C24: 1000/13723 | D24: Cust Prog Cent East | E24: 19.02.2024 | F24: 01.03.2024 | G24: 4012895 | H24: Feb24 Storm Costs NetOps PC 12014 | I24: 4012895/0010 | J24: Feb24 Storm Timesheet Dx 12014 | K24: 4012895 | L24: 4012895 | M24: 0010 | N24: 1000/CSENAN | O24: 1000/CSENAN | P24: HX-0014297 | Q24: Storm Emergency_Feb24 OPEX | R24: HX-0014297-1 | S24: Feb24 Storm Costs NetOps PC 12014 | T24: 9999 | U24: INTERNAL COST CAPTURE | V24: 1000/11000 | W24: Sweep Profit Centre | X24: 800 | Y24: Normal Time | Z24: 1000/# | AA24: 1000/Not assigned | AB24: 9.5 | AE24: 1343.4
A25: 10000368 | B25: Gareth Downes | C25: 1000/13723 | D25: Cust Prog Cent East | E25: 19.02.2024 | F25: 01.03.2024 | G25: 4012895 | H25: Feb24 Storm Costs NetOps PC 12014 | I25: 4012895/0010 | J25: Feb24 Storm Timesheet Dx 12014 | K25: 4012895 | L25: 4012895 | M25: 0010 | N25: 1000/CSENAO | O25: 1000/CSENAO | P25: HX-0014297 | Q25: Storm Emergency_Feb24 OPEX | R25: HX-0014297-1 | S25: Feb24 Storm Costs NetOps PC 12014 | T25: 9999 | U25: INTERNAL COST CAPTURE | V25: 1000/11000 | W25: Sweep Profit Centre | X25: 850 | Y25: Overtime | Z25: 1000/# | AA25: 1000/Not assigned | AB25: 2.5 | AE25: 645.83
A26: 10000368 | B26: Gareth Downes | C26: 1000/13723 | D26: Cust Prog Cent East | E26: 20.02.2024 | F26: 01.03.2024 | G26: 4012895 | H26: Feb24 Storm Costs NetOps PC 12014 | I26: 4012895/0010 | J26: Feb24 Storm Timesheet Dx 12014 | K26: 4012895 | L26: 4012895 | M26: 0010 | N26: 1000/CSENAN | O26: 1000/CSENAN | P26: HX-0014297 | Q26: Storm Emergency_Feb24 OPEX | R26: HX-0014297-1 | S26: Feb24 Storm Costs NetOps PC 12014 | T26: 9999 | U26: INTERNAL COST CAPTURE | V26: 1000/11000 | W26: Sweep Profit Centre | X26: 800 | Y26: Normal Time | Z26: 1000/# | AA26: 1000/Not assigned | AB26: 7.5 | AE26: 1343.33
A27: 10000368 | B27: Gareth Downes | C27: 1000/13723 | D27: Cust Prog Cent East | E27: 21.02.2024 | F27: 01.03.2024 | G27: 4012895 | H27: Feb24 Storm Costs NetOps PC 12014 | I27: 4012895/0010 | J27: Feb24 Storm Timesheet Dx 12014 | K27: 4012895 | L27: 4012895 | M27: 0010 | N27: 1000/CSENAN | O27: 1000/CSENAN | P27: HX-0014297 | Q27: Storm Emergency_Feb24 OPEX | R27: HX-0014297-1 | S27: Feb24 Storm Costs NetOps PC 12014 | T27: 9999 | U27: INTERNAL COST CAPTURE | V27: 1000/11000 | W27: Sweep Profit Centre | X27: 800 | Y27: Normal Time | Z27: 1000/# | AA27: 1000/Not assigned | AB27: 4 | AE27: 716.44
A28: 10000368 | B28: Gareth Downes | C28: 1000/13723 | D28: Cust Prog Cent East | E28: 22.02.2024 | F28: 01.03.2024 | G28: 4012895 | H28: Feb24 Storm Costs NetOps PC 12014 | I28: 4012895/0010 | J28: Feb24 Storm Timesheet Dx 12014 | K28: 4012895 | L28: 4012895 | M28: 0010 | N28: 1000/CSENAN | O28: 1000/CSENAN | P28: HX-0014297 | Q28: Storm Emergency_Feb24 OPEX | R28: HX-0014297-1 | S28: Feb24 Storm Costs NetOps PC 12014 | T28: 9999 | U28: INTERNAL COST CAPTURE | V28: 1000/11000 | W28: Sweep Profit Centre | X28: 800 | Y28: Normal Time | Z28: 1000/# | AA28: 1000/Not assigned | AB28: 10 | AE28: 1343.3
A29: 10000368 | B29: Gareth Downes | C29: 1000/13723 | D29: Cust Prog Cent East | E29: 23.02.2024 | F29: 01.03.2024 | G29: 4012895 | H29: Feb24 Storm Costs NetOps PC 12014 | I29: 4012895/0010 | J29: Feb24 Storm Timesheet Dx 12014 | K29: 4012895 | L29: 4012895 | M29: 0010 | N29: 1000/CSENAN | O29: 1000/CSENAN | P29: HX-0014297 | Q29: Storm Emergency_Feb24 OPEX | R29: HX-0014297-1 | S29: Feb24 Storm Costs NetOps PC 12014 | T29: 9999 | U29: INTERNAL COST CAPTURE | V29: 1000/11000 | W29: Sweep Profit Centre | X29: 800 | Y29: Normal Time | Z29: 1000/# | AA29: 1000/Not assigned | AB29: 4.5 | AE29: 806
A30: 10000368 | B30: Gareth Downes | C30: 1000/13723 | D30: Cust Prog Cent East | E30: 26.02.2024 | F30: 01.03.2024 | G30: 4012895 | H30: Feb24 Storm Costs NetOps PC 12014 | I30: 4012895/0010 | J30: Feb24 Storm Timesheet Dx 12014 | K30: 4012895 | L30: 4012895 | M30: 0010 | N30: 1000/CSENAN | O30: 1000/CSENAN | P30: HX-0014297 | Q30: Storm Emergency_Feb24 OPEX | R30: HX-0014297-1 | S30: Feb24 Storm Costs NetOps PC 12014 | T30: 9999 | U30: INTERNAL COST CAPTURE | V30: 1000/11000 | W30: Sweep Profit Centre | X30: 800 | Y30: Normal Time | Z30: 1000/# | AA30: 1000/Not assigned | AB30: 9 | AE30: 1343.25
A31: 10000434 | B31: Stuart Hanley | C31: 1000/11517 | D31: Contract Manag Dist | E31: 13.02.2024 | F31: 19.02.2024 | G31: 4012895 | H31: Feb24 Storm Costs NetOps PC 12014 | I31: 4012895/0010 | J31: Feb24 Storm Timesheet Dx 12014 | K31: 4012895 | L31: 4012895 | M31: 0010 | N31: 1000/CMNGAO | O31: 1000/CMNGAO | P31: HX-0014297 | Q31: Storm Emergency_Feb24 OPEX | R31: HX-0014297-1 | S31: Feb24 Storm Costs NetOps PC 12014 | T31: 9999 | U31: INTERNAL COST CAPTURE | V31: 1000/11000 | W31: Sweep Profit Centre | X31: 850 | Y31: Overtime | Z31: 1000/# | AA31: 1000/Not assigned | AB31: 1 | AE31: 220.56
A32: 10000434 | B32: Stuart Hanley | C32: 1000/11517 | D32: Contract Manag Dist | E32: 14.02.2024 | F32: 19.02.2024 | G32: 4012895 | H32: Feb24 Storm Costs NetOps PC 12014 | I32: 4012895/0010 | J32: Feb24 Storm Timesheet Dx 12014 | K32: 4012895 | L32: 4012895 | M32: 0010 | N32: 1000/CMNGAN | O32: 1000/CMNGAN | P32: HX-0014297 | Q32: Storm Emergency_Feb24 OPEX | R32: HX-0014297-1 | S32: Feb24 Storm Costs NetOps PC 12014 | T32: 9999 | U32: INTERNAL COST CAPTURE | V32: 1000/11000 | W32: Sweep Profit Centre | X32: 800 | Y32: Normal Time | Z32: 1000/# | AA32: 1000/Not assigned | AB32: 12 | AE32: 1146.96
A33: 10000434 | B33: Stuart Hanley | C33: 1000/11517 | D33: Contract Manag Dist | E33: 15.02.2024 | F33: 19.02.2024 | G33: 4012895 | H33: Feb24 Storm Costs NetOps PC 12014 | I33: 4012895/0010 | J33: Feb24 Storm Timesheet Dx 12014 | K33: 4012895 | L33: 4012895 | M33: 0010 | N33: 1000/CMNGAN | O33: 1000/CMNGAN | P33: HX-0014297 | Q33: Storm Emergency_Feb24 OPEX | R33: HX-0014297-1 | S33: Feb24 Storm Costs NetOps PC 12014 | T33: 9999 | U33: INTERNAL COST CAPTURE | V33: 1000/11000 | W33: Sweep Profit Centre | X33: 800 | Y33: Normal Time | Z33: 1000/# | AA33: 1000/Not assigned | AB33: 11.5 | AE33: 1146.9
A34: 10000434 | B34: Stuart Hanley | C34: 1000/11517 | D34: Contract Manag Dist | E34: 16.02.2024 | F34: 19.02.2024 | G34: 4012895 | H34: Feb24 Storm Costs NetOps PC 12014 | I34: 4012895/0010 | J34: Feb24 Storm Timesheet Dx 12014 | K34: 4012895 | L34: 4012895 | M34: 0010 | N34: 1000/CMNGAN | O34: 1000/CMNGAN | P34: HX-0014297 | Q34: Storm Emergency_Feb24 OPEX | R34: HX-0014297-1 | S34: Feb24 Storm Costs NetOps PC 12014 | T34: 9999 | U34: INTERNAL COST CAPTURE | V34: 1000/11000 | W34: Sweep Profit Centre | X34: 800 | Y34: Normal Time | Z34: 1000/# | AA34: 1000/Not assigned | AB34: 14 | AE34: 1146.88
A35: 10000434 | B35: Stuart Hanley | C35: 1000/11517 | D35: Contract Manag Dist | E35: 18.02.2024 | F35: 19.02.2024 | G35: 4012895 | H35: Feb24 Storm Costs NetOps PC 12014 | I35: 4012895/0010 | J35: Feb24 Storm Timesheet Dx 12014 | K35: 4012895 | L35: 4012895 | M35: 0010 | N35: 1000/CMNGAO | O35: 1000/CMNGAO | P35: HX-0014297 | Q35: Storm Emergency_Feb24 OPEX | R35: HX-0014297-1 | S35: Feb24 Storm Costs NetOps PC 12014 | T35: 9999 | U35: INTERNAL COST CAPTURE | V35: 1000/11000 | W35: Sweep Profit Centre | X35: 850 | Y35: Overtime | Z35: 1000/# | AA35: 1000/Not assigned | AB35: 8 | AE35: 1764.48
A36: 10000440 | B36: Phil Gay | C36: 1000/13263 | D36: Transmission Control | E36: 14.02.2024 | F36: 19.02.2024 | G36: 4012895 | H36: Feb24 Storm Costs NetOps PC 12014 | I36: 4012895/0020 | J36: Feb24 Storm Timesheet Tx 12014 | K36: 4012895 | L36: 4012895 | M36: 0020 | N36: 1000/TCONTO | O36: Txn Controller OT | P36: HX-0014297 | Q36: Storm Emergency_Feb24 OPEX | R36: HX-0014297-1 | S36: Feb24 Storm Costs NetOps PC 12014 | T36: 9999 | U36: INTERNAL COST CAPTURE | V36: 1000/11000 | W36: Sweep Profit Centre | X36: 850 | Y36: Overtime | Z36: 1000/# | AA36: 1000/Not assigned | AB36: 12 | AE36: 2628.6
A37: 10000440 | B37: Phil Gay | C37: 1000/13263 | D37: Transmission Control | E37: 15.02.2024 | F37: 19.02.2024 | G37: 4012895 | H37: Feb24 Storm Costs NetOps PC 12014 | I37: 4012895/0020 | J37: Feb24 Storm Timesheet Tx 12014 | K37: 4012895 | L37: 4012895 | M37: 0020 | N37: 1000/TCONTO | O37: Txn Controller OT | P37: HX-0014297 | Q37: Storm Emergency_Feb24 OPEX | R37: HX-0014297-1 | S37: Feb24 Storm Costs NetOps PC 12014 | T37: 9999 | U37: INTERNAL COST CAPTURE | V37: 1000/11000 | W37: Sweep Profit Centre | X37: 850 | Y37: Overtime | Z37: 1000/# | AA37: 1000/Not assigned | AB37: 12 | AE37: 2628.6
A38: 10000449 | B38: Katherine O'Brien | C38: 1000/13263 | D38: Transmission Control | E38: 13.02.2024 | F38: 19.02.2024 | G38: 4012895 | H38: Feb24 Storm Costs NetOps PC 12014 | I38: 4012895/0020 | J38: Feb24 Storm Timesheet Tx 12014 | K38: 4012895 | L38: 4012895 | M38: 0020 | N38: 1000/TCONTO | O38: Txn Controller OT | P38: HX-0014297 | Q38: Storm Emergency_Feb24 OPEX | R38: HX-0014297-1 | S38: Feb24 Storm Costs NetOps PC 12014 | T38: 9999 | U38: INTERNAL COST CAPTURE | V38: 1000/11000 | W38: Sweep Profit Centre | X38: 850 | Y38: Overtime | Z38: 1000/# | AA38: 1000/Not assigned | AB38: 12 | AE38: 2628.6
A39: 10000478 | B39: Derek Walton | C39: 1000/11517 | D39: Contract Manag Dist | E39: 13.02.2024 | F39: 21.02.2024 | G39: 4012895 | H39: Feb24 Storm Costs NetOps PC 12014 | I39: 4012895/0010 | J39: Feb24 Storm Timesheet Dx 12014 | K39: 4012895 | L39: 4012895 | M39: 0010 | N39: 1000/CLEADN | O39: Corp Ops Lead NT | P39: HX-0014297 | Q39: Storm Emergency_Feb24 OPEX | R39: HX-0014297-1 | S39: Feb24 Storm Costs NetOps PC 12014 | T39: 9999 | U39: INTERNAL COST CAPTURE | V39: 1000/11000 | W39: Sweep Profit Centre | X39: 800 | Y39: Normal Time | Z39: 1000/# | AA39: 1000/Not assigned | AB39: 4.33 | AE39: 468.55
A40: 10000478 | B40: Derek Walton | C40: 1000/11517 | D40: Contract Manag Dist | E40: 13.02.2024 | F40: 21.02.2024 | G40: 4012895 | H40: Feb24 Storm Costs NetOps PC 12014 | I40: 4012895/0010 | J40: Feb24 Storm Timesheet Dx 12014 | K40: 4012895 | L40: 4012895 | M40: 0010 | N40: 1000/CLEADO | O40: Corp Ops Lead OT | P40: HX-0014297 | Q40: Storm Emergency_Feb24 OPEX | R40: HX-0014297-1 | S40: Feb24 Storm Costs NetOps PC 12014 | T40: 9999 | U40: INTERNAL COST CAPTURE | V40: 1000/11000 | W40: Sweep Profit Centre | X40: 850 | Y40: Overtime | Z40: 1000/# | AA40: 1000/Not assigned | AB40: 2.83 | AE40: 441.71
A41: 10000478 | B41: Derek Walton | C41: 1000/11517 | D41: Contract Manag Dist | E41: 14.02.2024 | F41: 21.02.2024 | G41: 4012895 | H41: Feb24 Storm Costs NetOps PC 12014 | I41: 4012895/0010 | J41: Feb24 Storm Timesheet Dx 12014 | K41: 4012895 | L41: 4012895 | M41: 0010 | N41: 1000/CLEADN | O41: Corp Ops Lead NT | P41: HX-0014297 | Q41: Storm Emergency_Feb24 OPEX | R41: HX-0014297-1 | S41: Feb24 Storm Costs NetOps PC 12014 | T41: 9999 | U41: INTERNAL COST CAPTURE | V41: 1000/11000 | W41: Sweep Profit Centre | X41: 800 | Y41: Normal Time | Z41: 1000/# | AA41: 1000/Not assigned | AB41: 9.5 | AE41: 901.36
A42: 10000478 | B42: Derek Walton | C42: 1000/11517 | D42: Contract Manag Dist | E42: 14.02.2024 | F42: 21.02.2024 | G42: 4012895 | H42: Feb24 Storm Costs NetOps PC 12014 | I42: 4012895/0010 | J42: Feb24 Storm Timesheet Dx 12014 | K42: 4012895 | L42: 4012895 | M42: 0010 | N42: 1000/CLEADO | O42: Corp Ops Lead OT | P42: HX-0014297 | Q42: Storm Emergency_Feb24 OPEX | R42: HX-0014297-1 | S42: Feb24 Storm Costs NetOps PC 12014 | T42: 9999 | U42: INTERNAL COST CAPTURE | V42: 1000/11000 | W42: Sweep Profit Centre | X42: 850 | Y42: Overtime | Z42: 1000/# | AA42: 1000/Not assigned | AB42: 2.92 | AE42: 455.75
A43: 10000478 | B43: Derek Walton | C43: 1000/11517 | D43: Contract Manag Dist | E43: 15.02.2024 | F43: 21.02.2024 | G43: 4012895 | H43: Feb24 Storm Costs NetOps PC 12014 | I43: 4012895/0010 | J43: Feb24 Storm Timesheet Dx 12014 | K43: 4012895 | L43: 4012895 | M43: 0010 | N43: 1000/CLEADN | O43: Corp Ops Lead NT | P43: HX-0014297 | Q43: Storm Emergency_Feb24 OPEX | R43: HX-0014297-1 | S43: Feb24 Storm Costs NetOps PC 12014 | T43: 9999 | U43: INTERNAL COST CAPTURE | V43: 1000/11000 | W43: Sweep Profit Centre | X43: 800 | Y43: Normal Time | Z43: 1000/# | AA43: 1000/Not assigned | AB43: 9.83 | AE43: 901.41
A44: 10000478 | B44: Derek Walton | C44: 1000/11517 | D44: Contract Manag Dist | E44: 15.02.2024 | F44: 21.02.2024 | G44: 4012895 | H44: Feb24 Storm Costs NetOps PC 12014 | I44: 4012895/0010 | J44: Feb24 Storm Timesheet Dx 12014 | K44: 4012895 | L44: 4012895 | M44: 0010 | N44: 1000/CLEADO | O44: Corp Ops Lead OT | P44: HX-0014297 | Q44: Storm Emergency_Feb24 OPEX | R44: HX-0014297-1 | S44: Feb24 Storm Costs NetOps PC 12014 | T44: 9999 | U44: INTERNAL COST CAPTURE | V44: 1000/11000 | W44: Sweep Profit Centre | X44: 850 | Y44: Overtime | Z44: 1000/# | AA44: 1000/Not assigned | AB44: 3.5 | AE44: 546.28
A45: 10000478 | B45: Derek Walton | C45: 1000/11517 | D45: Contract Manag Dist | E45: 16.02.2024 | F45: 21.02.2024 | G45: 4012895 | H45: Feb24 Storm Costs NetOps PC 12014 | I45: 4012895/0010 | J45: Feb24 Storm Timesheet Dx 12014 | K45: 4012895 | L45: 4012895 | M45: 0010 | N45: 1000/CLEADO | O45: Corp Ops Lead OT | P45: HX-0014297 | Q45: Storm Emergency_Feb24 OPEX | R45: HX-0014297-1 | S45: Feb24 Storm Costs NetOps PC 12014 | T45: 9999 | U45: INTERNAL COST CAPTURE | V45: 1000/11000 | W45: Sweep Profit Centre | X45: 850 | Y45: Overtime | Z45: 1000/# | AA45: 1000/Not assigned | AB45: 10.5 | AE45: 1638.84
A46: 10000478 | B46: Derek Walton | C46: 1000/11517 | D46: Contract Manag Dist | E46: 17.02.2024 | F46: 21.02.2024 | G46: 4012895 | H46: Feb24 Storm Costs NetOps PC 12014 | I46: 4012895/0010 | J46: Feb24 Storm Timesheet Dx 12014 | K46: 4012895 | L46: 4012895 | M46: 0010 | N46: 1000/CLEADO | O46: Corp Ops Lead OT | P46: HX-0014297 | Q46: Storm Emergency_Feb24 OPEX | R46: HX-0014297-1 | S46: Feb24 Storm Costs NetOps PC 12014 | T46: 9999 | U46: INTERNAL COST CAPTURE | V46: 1000/11000 | W46: Sweep Profit Centre | X46: 850 | Y46: Overtime | Z46: 1000/# | AA46: 1000/Not assigned | AB46: 6 | AE46: 936.48
A47: 10000478 | B47: Derek Walton | C47: 1000/11517 | D47: Contract Manag Dist | E47: 18.02.2024 | F47: 21.02.2024 | G47: 4012895 | H47: Feb24 Storm Costs NetOps PC 12014 | I47: 4012895/0010 | J47: Feb24 Storm Timesheet Dx 12014 | K47: 4012895 | L47: 4012895 | M47: 0010 | N47: 1000/CLEADO | O47: Corp Ops Lead OT | P47: HX-0014297 | Q47: Storm Emergency_Feb24 OPEX | R47: HX-0014297-1 | S47: Feb24 Storm Costs NetOps PC 12014 | T47: 9999 | U47: INTERNAL COST CAPTURE | V47: 1000/11000 | W47: Sweep Profit Centre | X47: 850 | Y47: Overtime | Z47: 1000/# | AA47: 1000/Not assigned | AB47: 3.17 | AE47: 494.77
A48: 10000478 | B48: Derek Walton | C48: 1000/11517 | D48: Contract Manag Dist | E48: 19.02.2024 | F48: 23.02.2024 | G48: 4012895 | H48: Feb24 Storm Costs NetOps PC 12014 | I48: 4012895/0010 | J48: Feb24 Storm Timesheet Dx 12014 | K48: 4012895 | L48: 4012895 | M48: 0010 | N48: 1000/CLEADN | O48: Corp Ops Lead NT | P48: HX-0014297 | Q48: Storm Emergency_Feb24 OPEX | R48: HX-0014297-1 | S48: Feb24 Storm Costs NetOps PC 12014 | T48: 9999 | U48: INTERNAL COST CAPTURE | V48: 1000/11000 | W48: Sweep Profit Centre | X48: 800 | Y48: Normal Time | Z48: 1000/# | AA48: 1000/Not assigned | AB48: 10.75 | AE48: 901.39
A49: 10000478 | B49: Derek Walton | C49: 1000/11517 | D49: Contract Manag Dist | E49: 20.02.2024 | F49: 23.02.2024 | G49: 4012895 | H49: Feb24 Storm Costs NetOps PC 12014 | I49: 4012895/0010 | J49: Feb24 Storm Timesheet Dx 12014 | K49: 4012895 | L49: 4012895 | M49: 0010 | N49: 1000/CLEADN | O49: Corp Ops Lead NT | P49: HX-0014297 | Q49: Storm Emergency_Feb24 OPEX | R49: HX-0014297-1 | S49: Feb24 Storm Costs NetOps PC 12014 | T49: 9999 | U49: INTERNAL COST CAPTURE | V49: 1000/11000 | W49: Sweep Profit Centre | X49: 800 | Y49: Normal Time | Z49: 1000/# | AA49: 1000/Not assigned | AB49: 9.75 | AE49: 901.39
A50: 10000478 | B50: Derek Walton | C50: 1000/11517 | D50: Contract Manag Dist | E50: 21.02.2024 | F50: 23.02.2024 | G50: 4012895 | H50: Feb24 Storm Costs NetOps PC 12014 | I50: 4012895/0010 | J50: Feb24 Storm Timesheet Dx 12014 | K50: 4012895 | L50: 4012895 | M50: 0010 | N50: 1000/CLEADN | O50: Corp Ops Lead NT | P50: HX-0014297 | Q50: Storm Emergency_Feb24 OPEX | R50: HX-0014297-1 | S50: Feb24 Storm Costs NetOps PC 12014 | T50: 9999 | U50: INTERNAL COST CAPTURE | V50: 1000/11000 | W50: Sweep Profit Centre | X50: 800 | Y50: Normal Time | Z50: 1000/# | AA50: 1000/Not assigned | AB50: 10.17 | AE50: 901.37
A51: 10000478 | B51: Derek Walton | C51: 1000/11517 | D51: Contract Manag Dist | E51: 22.02.2024 | F51: 23.02.2024 | G51: 4012895 | H51: Feb24 Storm Costs NetOps PC 12014 | I51: 4012895/0010 | J51: Feb24 Storm Timesheet Dx 12014 | K51: 4012895 | L51: 4012895 | M51: 0010 | N51: 1000/CLEADN | O51: Corp Ops Lead NT | P51: HX-0014297 | Q51: Storm Emergency_Feb24 OPEX | R51: HX-0014297-1 | S51: Feb24 Storm Costs NetOps PC 12014 | T51: 9999 | U51: INTERNAL COST CAPTURE | V51: 1000/11000 | W51: Sweep Profit Centre | X51: 800 | Y51: Normal Time | Z51: 1000/# | AA51: 1000/Not assigned | AB51: 8.5 | AE51: 901.43
A52: 10000478 | B52: Derek Walton | C52: 1000/11517 | D52: Contract Manag Dist | E52: 23.02.2024 | F52: 23.02.2024 | G52: 4012895 | H52: Feb24 Storm Costs NetOps PC 12014 | I52: 4012895/0010 | J52: Feb24 Storm Timesheet Dx 12014 | K52: 4012895 | L52: 4012895 | M52: 0010 | N52: 1000/CLEADN | O52: Corp Ops Lead NT | P52: HX-0014297 | Q52: Storm Emergency_Feb24 OPEX | R52: HX-0014297-1 | S52: Feb24 Storm Costs NetOps PC 12014 | T52: 9999 | U52: INTERNAL COST CAPTURE | V52: 1000/11000 | W52: Sweep Profit Centre | X52: 800 | Y52: Normal Time | Z52: 1000/# | AA52: 1000/Not assigned | AB52: 7.42 | AE52: 802.92
A53: 10000478 | B53: Derek Walton | C53: 1000/11517 | D53: Contract Manag Dist | E53: 26.02.2024 | F53: 01.03.2024 | G53: 4012895 | H53: Feb24 Storm Costs NetOps PC 12014 | I53: 4012895/0010 | J53: Feb24 Storm Timesheet Dx 12014 | K53: 4012895 | L53: 4012895 | M53: 0010 | N53: 1000/CLEADN | O53: Corp Ops Lead NT | P53: HX-0014297 | Q53: Storm Emergency_Feb24 OPEX | R53: HX-0014297-1 | S53: Feb24 Storm Costs NetOps PC 12014 | T53: 9999 | U53: INTERNAL COST CAPTURE | V53: 1000/11000 | W53: Sweep Profit Centre | X53: 800 | Y53: Normal Time | Z53: 1000/# | AA53: 1000/Not assigned | AB53: 8.92 | AE53: 901.46
A54: 10000478 | B54: Derek Walton | C54: 1000/11517 | D54: Contract Manag Dist | E54: 27.02.2024 | F54: 01.03.2024 | G54: 4012895 | H54: Feb24 Storm Costs NetOps PC 12014 | I54: 4012895/0010 | J54: Feb24 Storm Timesheet Dx 12014 | K54: 4012895 | L54: 4012895 | M54: 0010 | N54: 1000/CLEADN | O54: Corp Ops Lead NT | P54: HX-0014297 | Q54: Storm Emergency_Feb24 OPEX | R54: HX-0014297-1 | S54: Feb24 Storm Costs NetOps PC 12014 | T54: 9999 | U54: INTERNAL COST CAPTURE | V54: 1000/11000 | W54: Sweep Profit Centre | X54: 800 | Y54: Normal Time | Z54: 1000/# | AA54: 1000/Not assigned | AB54: 4.67 | AE54: 505.34
A55: 10000480 | B55: Francis Lirios | C55: 1000/13489 | D55: Asset Management | E55: 15.02.2024 | F55: 16.02.2024 | G55: 4012895 | H55: Feb24 Storm Costs NetOps PC 12014 | I55: 4012895/0070 | J55: Feb24 Storm Timesheet PC 12001 | K55: 4012895 | L55: 4012895 | M55: 0070 | N55: 1000/CPSVSN | O55: Corp Prof Spec NT | P55: HX-0014297 | Q55: Storm Emergency_Feb24 OPEX | R55: HX-0014297-2 | S55: Feb24 Storm Costs dNet PC 12001 | T55: 9999 | U55: INTERNAL COST CAPTURE | V55: 1000/11000 | W55: Sweep Profit Centre | X55: 800 | Y55: Normal Time | Z55: 1000/# | AA55: 1000/Not assigned | AB55: 9 | AE55: 1081.35
A56: 10000480 | B56: Francis Lirios | C56: 1000/13489 | D56: Asset Management | E56: 16.02.2024 | F56: 16.02.2024 | G56: 4012895 | H56: Feb24 Storm Costs NetOps PC 12014 | I56: 4012895/0070 | J56: Feb24 Storm Timesheet PC 12001 | K56: 4012895 | L56: 4012895 | M56: 0070 | N56: 1000/CPSVSN | O56: Corp Prof Spec NT | P56: HX-0014297 | Q56: Storm Emergency_Feb24 OPEX | R56: HX-0014297-2 | S56: Feb24 Storm Costs dNet PC 12001 | T56: 9999 | U56: INTERNAL COST CAPTURE | V56: 1000/11000 | W56: Sweep Profit Centre | X56: 800 | Y56: Normal Time | Z56: 1000/# | AA56: 1000/Not assigned | AB56: 8.5 | AE56: 1081.37
A57: 10000480 | B57: Francis Lirios | C57: 1000/13489 | D57: Asset Management | E57: 04.03.2024 | F57: 08.03.2024 | G57: 4012895 | H57: Feb24 Storm Costs NetOps PC 12014 | I57: 4012895/0070 | J57: Feb24 Storm Timesheet PC 12001 | K57: 4012895 | L57: 4012895 | M57: 0070 | N57: 1000/CMNGAN | O57: 1000/CMNGAN | P57: HX-0014297 | Q57: Storm Emergency_Feb24 OPEX | R57: HX-0014297-2 | S57: Feb24 Storm Costs dNet PC 12001 | T57: 9999 | U57: INTERNAL COST CAPTURE | V57: 1000/11000 | W57: Sweep Profit Centre | X57: 800 | Y57: Normal Time | Z57: 1000/# | AA57: 1000/Not assigned | AC57: 9 | AF57: 1146.87
A58: 10000480 | B58: Francis Lirios | C58: 1000/13489 | D58: Asset Management | E58: 05.03.2024 | F58: 08.03.2024 | G58: 4012895 | H58: Feb24 Storm Costs NetOps PC 12014 | I58: 4012895/0070 | J58: Feb24 Storm Timesheet PC 12001 | K58: 4012895 | L58: 4012895 | M58: 0070 | N58: 1000/CMNGAN | O58: 1000/CMNGAN | P58: HX-0014297 | Q58: Storm Emergency_Feb24 OPEX | R58: HX-0014297-2 | S58: Feb24 Storm Costs dNet PC 12001 | T58: 9999 | U58: INTERNAL COST CAPTURE | V58: 1000/11000 | W58: Sweep Profit Centre | X58: 800 | Y58: Normal Time | Z58: 1000/# | AA58: 1000/Not assigned | AC58: 9.5 | AF58: 1146.94
A59: 10000480 | B59: Francis Lirios | C59: 1000/13489 | D59: Asset Management | E59: 06.03.2024 | F59: 08.03.2024 | G59: 4012895 | H59: Feb24 Storm Costs NetOps PC 12014 | I59: 4012895/0070 | J59: Feb24 Storm Timesheet PC 12001 | K59: 4012895 | L59: 4012895 | M59: 0070 | N59: 1000/CMNGAN | O59: 1000/CMNGAN | P59: HX-0014297 | Q59: Storm Emergency_Feb24 OPEX | R59: HX-0014297-2 | S59: Feb24 Storm Costs dNet PC 12001 | T59: 9999 | U59: INTERNAL COST CAPTURE | V59: 1000/11000 | W59: Sweep Profit Centre | X59: 800 | Y59: Normal Time | Z59: 1000/# | AA59: 1000/Not assigned | AC59: 8.5 | AF59: 1146.99
A60: 10000480 | B60: Francis Lirios | C60: 1000/13489 | D60: Asset Management | E60: 07.03.2024 | F60: 08.03.2024 | G60: 4012895 | H60: Feb24 Storm Costs NetOps PC 12014 | I60: 4012895/0070 | J60: Feb24 Storm Timesheet PC 12001 | K60: 4012895 | L60: 4012895 | M60: 0070 | N60: 1000/CMNGAN | O60: 1000/CMNGAN | P60: HX-0014297 | Q60: Storm Emergency_Feb24 OPEX | R60: HX-0014297-2 | S60: Feb24 Storm Costs dNet PC 12001 | T60: 9999 | U60: INTERNAL COST CAPTURE | V60: 1000/11000 | W60: Sweep Profit Centre | X60: 800 | Y60: Normal Time | Z60: 1000/# | AA60: 1000/Not assigned | AC60: 9 | AF60: 1146.87
A61: 10000480 | B61: Francis Lirios | C61: 1000/13489 | D61: Asset Management | E61: 08.03.2024 | F61: 08.03.2024 | G61: 4012895 | H61: Feb24 Storm Costs NetOps PC 12014 | I61: 4012895/0070 | J61: Feb24 Storm Timesheet PC 12001 | K61: 4012895 | L61: 4012895 | M61: 0070 | N61: 1000/CMNGAN | O61: 1000/CMNGAN | P61: HX-0014297 | Q61: Storm Emergency_Feb24 OPEX | R61: HX-0014297-2 | S61: Feb24 Storm Costs dNet PC 12001 | T61: 9999 | U61: INTERNAL COST CAPTURE | V61: 1000/11000 | W61: Sweep Profit Centre | X61: 800 | Y61: Normal Time | Z61: 1000/# | AA61: 1000/Not assigned | AC61: 8 | AF61: 1146.88
A62: 10000481 | B62: Sing Wai Mak | C62: 1000/13435 | D62: Engineering & Projec | E62: 13.02.2024 | F62: 20.02.2024 | G62: 4012895 | H62: Feb24 Storm Costs NetOps PC 12014 | I62: 4012895/0020 | J62: Feb24 Storm Timesheet Tx 12014 | K62: 4012895 | L62: 4012895 | M62: 0020 | N62: 1000/CSENAN | O62: 1000/CSENAN | P62: HX-0014297 | Q62: Storm Emergency_Feb24 OPEX | R62: HX-0014297-1 | S62: Feb24 Storm Costs NetOps PC 12014 | T62: 9999 | U62: INTERNAL COST CAPTURE | V62: 1000/11000 | W62: Sweep Profit Centre | X62: 800 | Y62: Normal Time | Z62: 1000/# | AA62: 1000/Not assigned | AB62: 7 | AE62: 1253.77
A63: 10000481 | B63: Sing Wai Mak | C63: 1000/13435 | D63: Engineering & Projec | E63: 15.02.2024 | F63: 20.02.2024 | G63: 4012895 | H63: Feb24 Storm Costs NetOps PC 12014 | I63: 4012895/0020 | J63: Feb24 Storm Timesheet Tx 12014 | K63: 4012895 | L63: 4012895 | M63: 0020 | N63: 1000/CSENAN | O63: 1000/CSENAN | P63: HX-0014297 | Q63: Storm Emergency_Feb24 OPEX | R63: HX-0014297-1 | S63: Feb24 Storm Costs NetOps PC 12014 | T63: 9999 | U63: INTERNAL COST CAPTURE | V63: 1000/11000 | W63: Sweep Profit Centre | X63: 800 | Y63: Normal Time | Z63: 1000/# | AA63: 1000/Not assigned | AB63: 7.5 | AE63: 1343.33
A64: 10000481 | B64: Sing Wai Mak | C64: 1000/13435 | D64: Engineering & Projec | E64: 16.02.2024 | F64: 20.02.2024 | G64: 4012895 | H64: Feb24 Storm Costs NetOps PC 12014 | I64: 4012895/0020 | J64: Feb24 Storm Timesheet Tx 12014 | K64: 4012895 | L64: 4012895 | M64: 0020 | N64: 1000/CSENAN | O64: 1000/CSENAN | P64: HX-0014297 | Q64: Storm Emergency_Feb24 OPEX | R64: HX-0014297-1 | S64: Feb24 Storm Costs NetOps PC 12014 | T64: 9999 | U64: INTERNAL COST CAPTURE | V64: 1000/11000 | W64: Sweep Profit Centre | X64: 800 | Y64: Normal Time | Z64: 1000/# | AA64: 1000/Not assigned | AB64: 7.5 | AE64: 1343.33
A65: 10000481 | B65: Sing Wai Mak | C65: 1000/13435 | D65: Engineering & Projec | E65: 20.02.2024 | F65: 08.03.2024 | G65: 4012895 | H65: Feb24 Storm Costs NetOps PC 12014 | I65: 4012895/0020 | J65: Feb24 Storm Timesheet Tx 12014 | K65: 4012895 | L65: 4012895 | M65: 0020 | N65: 1000/CSENAN | O65: 1000/CSENAN | P65: HX-0014297 | Q65: Storm Emergency_Feb24 OPEX | R65: HX-0014297-1 | S65: Feb24 Storm Costs NetOps PC 12014 | T65: 9999 | U65: INTERNAL COST CAPTURE | V65: 1000/11000 | W65: Sweep Profit Centre | X65: 800 | Y65: Normal Time | Z65: 1000/# | AA65: 1000/Not assigned | AB65: 7.5 | AE65: 1343.33
A66: 10000493 | B66: Terry Jong | C66: 1000/12412 | D66: Infrastructure Engin | E66: 13.02.2024 | F66: 20.02.2024 | G66: 4012895 | H66: Feb24 Storm Costs NetOps PC 12014 | I66: 4012895/0150 | J66: Feb24 Storm Timesheet PC 12388 | K66: 4012895 | L66: 4012895 | M66: 0150 | N66: 1000/CSENAN | O66: 1000/CSENAN | P66: HX-0014297 | Q66: Storm Emergency_Feb24 OPEX | R66: HX-0014297-6 | S66: Feb24 Storm Costs DFN PC 12388 | T66: 9999 | U66: INTERNAL COST CAPTURE | V66: 1000/11000 | W66: Sweep Profit Centre | X66: 800 | Y66: Normal Time | Z66: 1000/# | AA66: 1000/Not assigned | AB66: 1 | AE66: 179.11
A67: 10000493 | B67: Terry Jong | C67: 1000/12412 | D67: Infrastructure Engin | E67: 13.02.2024 | F67: 20.02.2024 | G67: 4012895 | H67: Feb24 Storm Costs NetOps PC 12014 | I67: 4012895/0150 | J67: Feb24 Storm Timesheet PC 12388 | K67: 4012895 | L67: 4012895 | M67: 0150 | N67: 1000/CSENAO | O67: 1000/CSENAO | P67: HX-0014297 | Q67: Storm Emergency_Feb24 OPEX | R67: HX-0014297-6 | S67: Feb24 Storm Costs DFN PC 12388 | T67: 9999 | U67: INTERNAL COST CAPTURE | V67: 1000/11000 | W67: Sweep Profit Centre | X67: 850 | Y67: Overtime | Z67: 1000/# | AA67: 1000/Not assigned | AB67: 5.5 | AE67: 1420.82
A68: 10000493 | B68: Terry Jong | C68: 1000/12412 | D68: Infrastructure Engin | E68: 14.02.2024 | F68: 20.02.2024 | G68: 4012895 | H68: Feb24 Storm Costs NetOps PC 12014 | I68: 4012895/0150 | J68: Feb24 Storm Timesheet PC 12388 | K68: 4012895 | L68: 4012895 | M68: 0150 | N68: 1000/CSENAN | O68: 1000/CSENAN | P68: HX-0014297 | Q68: Storm Emergency_Feb24 OPEX | R68: HX-0014297-6 | S68: Feb24 Storm Costs DFN PC 12388 | T68: 9999 | U68: INTERNAL COST CAPTURE | V68: 1000/11000 | W68: Sweep Profit Centre | X68: 800 | Y68: Normal Time | Z68: 1000/# | AA68: 1000/Not assigned | AB68: 2 | AE68: 358.22
A69: 10000493 | B69: Terry Jong | C69: 1000/12412 | D69: Infrastructure Engin | E69: 14.02.2024 | F69: 20.02.2024 | G69: 4012895 | H69: Feb24 Storm Costs NetOps PC 12014 | I69: 4012895/0150 | J69: Feb24 Storm Timesheet PC 12388 | K69: 4012895 | L69: 4012895 | M69: 0150 | N69: 1000/CSENAO | O69: 1000/CSENAO | P69: HX-0014297 | Q69: Storm Emergency_Feb24 OPEX | R69: HX-0014297-6 | S69: Feb24 Storm Costs DFN PC 12388 | T69: 9999 | U69: INTERNAL COST CAPTURE | V69: 1000/11000 | W69: Sweep Profit Centre | X69: 850 | Y69: Overtime | Z69: 1000/# | AA69: 1000/Not assigned | AB69: 5.5 | AE69: 1420.82
A70: 10000510 | B70: Gary Hocking | C70: 1000/13187 | D70: Customer Engagement | E70: 20.02.2024 | F70: 26.02.2024 | G70: 4012895 | H70: Feb24 Storm Costs NetOps PC 12014 | I70: 4012895/0010 | J70: Feb24 Storm Timesheet Dx 12014 | K70: 4012895 | L70: 4012895 | M70: 0010 | N70: 1000/CPSRVN | O70: Corp Prof NT | P70: HX-0014297 | Q70: Storm Emergency_Feb24 OPEX | R70: HX-0014297-1 | S70: Feb24 Storm Costs NetOps PC 12014 | T70: 9999 | U70: INTERNAL COST CAPTURE | V70: 1000/11000 | W70: Sweep Profit Centre | X70: 800 | Y70: Normal Time | Z70: 1000/# | AA70: 1000/Not assigned | AB70: 8.88 | AE70: 980.62
A71: 10000510 | B71: Gary Hocking | C71: 1000/13187 | D71: Customer Engagement | E71: 20.02.2024 | F71: 26.02.2024 | G71: 4012895 | H71: Feb24 Storm Costs NetOps PC 12014 | I71: 4012895/0010 | J71: Feb24 Storm Timesheet Dx 12014 | K71: 4012895 | L71: 4012895 | M71: 0010 | N71: 1000/CPSRVO | O71: Corp Prof OT | P71: HX-0014297 | Q71: Storm Emergency_Feb24 OPEX | R71: HX-0014297-1 | S71: Feb24 Storm Costs NetOps PC 12014 | T71: 9999 | U71: INTERNAL COST CAPTURE | V71: 1000/11000 | W71: Sweep Profit Centre | X71: 850 | Y71: Overtime | Z71: 1000/# | AA71: 1000/Not assigned | AB71: 0.67 | AE71: 113.76
A72: 10000510 | B72: Gary Hocking | C72: 1000/13187 | D72: Customer Engagement | E72: 21.02.2024 | F72: 26.02.2024 | G72: 4012895 | H72: Feb24 Storm Costs NetOps PC 12014 | I72: 4012895/0010 | J72: Feb24 Storm Timesheet Dx 12014 | K72: 4012895 | L72: 4012895 | M72: 0010 | N72: 1000/CPSRVN | O72: Corp Prof NT | P72: HX-0014297 | Q72: Storm Emergency_Feb24 OPEX | R72: HX-0014297-1 | S72: Feb24 Storm Costs NetOps PC 12014 | T72: 9999 | U72: INTERNAL COST CAPTURE | V72: 1000/11000 | W72: Sweep Profit Centre | X72: 800 | Y72: Normal Time | Z72: 1000/# | AA72: 1000/Not assigned | AB72: 8.08 | AE72: 951.18
A73: 10000510 | B73: Gary Hocking | C73: 1000/13187 | D73: Customer Engagement | E73: 21.02.2024 | F73: 26.02.2024 | G73: 4012895 | H73: Feb24 Storm Costs NetOps PC 12014 | I73: 4012895/0010 | J73: Feb24 Storm Timesheet Dx 12014 | K73: 4012895 | L73: 4012895 | M73: 0010 | N73: 1000/CPSRVO | O73: Corp Prof OT | P73: HX-0014297 | Q73: Storm Emergency_Feb24 OPEX | R73: HX-0014297-1 | S73: Feb24 Storm Costs NetOps PC 12014 | T73: 9999 | U73: INTERNAL COST CAPTURE | V73: 1000/11000 | W73: Sweep Profit Centre | X73: 850 | Y73: Overtime | Z73: 1000/# | AA73: 1000/Not assigned | AB73: 2.05 | AE73: 348.07
A74: 10000510 | B74: Gary Hocking | C74: 1000/13187 | D74: Customer Engagement | E74: 22.02.2024 | F74: 26.02.2024 | G74: 4012895 | H74: Feb24 Storm Costs NetOps PC 12014 | I74: 4012895/0010 | J74: Feb24 Storm Timesheet Dx 12014 | K74: 4012895 | L74: 4012895 | M74: 0010 | N74: 1000/CPSRVN | O74: Corp Prof NT | P74: HX-0014297 | Q74: Storm Emergency_Feb24 OPEX | R74: HX-0014297-1 | S74: Feb24 Storm Costs NetOps PC 12014 | T74: 9999 | U74: INTERNAL COST CAPTURE | V74: 1000/11000 | W74: Sweep Profit Centre | X74: 800 | Y74: Normal Time | Z74: 1000/# | AA74: 1000/Not assigned | AB74: 8.08 | AE74: 951.18
A75: 10000510 | B75: Gary Hocking | C75: 1000/13187 | D75: Customer Engagement | E75: 22.02.2024 | F75: 26.02.2024 | G75: 4012895 | H75: Feb24 Storm Costs NetOps PC 12014 | I75: 4012895/0010 | J75: Feb24 Storm Timesheet Dx 12014 | K75: 4012895 | L75: 4012895 | M75: 0010 | N75: 1000/CPSRVO | O75: Corp Prof OT | P75: HX-0014297 | Q75: Storm Emergency_Feb24 OPEX | R75: HX-0014297-1 | S75: Feb24 Storm Costs NetOps PC 12014 | T75: 9999 | U75: INTERNAL COST CAPTURE | V75: 1000/11000 | W75: Sweep Profit Centre | X75: 850 | Y75: Overtime | Z75: 1000/# | AA75: 1000/Not assigned | AB75: 1.05 | AE75: 178.28
A76: 10000510 | B76: Gary Hocking | C76: 1000/13187 | D76: Customer Engagement | E76: 23.02.2024 | F76: 26.02.2024 | G76: 4012895 | H76: Feb24 Storm Costs NetOps PC 12014 | I76: 4012895/0010 | J76: Feb24 Storm Timesheet Dx 12014 | K76: 4012895 | L76: 4012895 | M76: 0010 | N76: 1000/CPSRVN | O76: Corp Prof NT | P76: HX-0014297 | Q76: Storm Emergency_Feb24 OPEX | R76: HX-0014297-1 | S76: Feb24 Storm Costs NetOps PC 12014 | T76: 9999 | U76: INTERNAL COST CAPTURE | V76: 1000/11000 | W76: Sweep Profit Centre | X76: 800 | Y76: Normal Time | Z76: 1000/# | AA76: 1000/Not assigned | AB76: 7.95 | AE76: 935.88
A77: 10000510 | B77: Gary Hocking | C77: 1000/13187 | D77: Customer Engagement | E77: 23.02.2024 | F77: 26.02.2024 | G77: 4012895 | H77: Feb24 Storm Costs NetOps PC 12014 | I77: 4012895/0010 | J77: Feb24 Storm Timesheet Dx 12014 | K77: 4012895 | L77: 4012895 | M77: 0010 | N77: 1000/CPSRVO | O77: Corp Prof OT | P77: HX-0014297 | Q77: Storm Emergency_Feb24 OPEX | R77: HX-0014297-1 | S77: Feb24 Storm Costs NetOps PC 12014 | T77: 9999 | U77: INTERNAL COST CAPTURE | V77: 1000/11000 | W77: Sweep Profit Centre | X77: 850 | Y77: Overtime | Z77: 1000/# | AA77: 1000/Not assigned | AB77: 0.82 | AE77: 139.23
A78: 10000510 | B78: Gary Hocking | C78: 1000/13187 | D78: Customer Engagement | E78: 24.02.2024 | F78: 26.02.2024 | G78: 4012895 | H78: Feb24 Storm Costs NetOps PC 12014 | I78: 4012895/0010 | J78: Feb24 Storm Timesheet Dx 12014 | K78: 4012895 | L78: 4012895 | M78: 0010 | N78: 1000/CPSRVO | O78: Corp Prof OT | P78: HX-0014297 | Q78: Storm Emergency_Feb24 OPEX | R78: HX-0014297-1 | S78: Feb24 Storm Costs NetOps PC 12014 | T78: 9999 | U78: INTERNAL COST CAPTURE | V78: 1000/11000 | W78: Sweep Profit Centre | X78: 850 | Y78: Overtime | Z78: 1000/# | AA78: 1000/Not assigned | AB78: 7.44 | AE78: 1263.24
A79: 10000510 | B79: Gary Hocking | C79: 1000/13187 | D79: Customer Engagement | E79: 26.02.2024 | F79: 01.03.2024 | G79: 4012895 | H79: Feb24 Storm Costs NetOps PC 12014 | I79: 4012895/0010 | J79: Feb24 Storm Timesheet Dx 12014 | K79: 4012895 | L79: 4012895 | M79: 0010 | N79: 1000/CPSRVN | O79: Corp Prof NT | P79: HX-0014297 | Q79: Storm Emergency_Feb24 OPEX | R79: HX-0014297-1 | S79: Feb24 Storm Costs NetOps PC 12014 | T79: 9999 | U79: INTERNAL COST CAPTURE | V79: 1000/11000 | W79: Sweep Profit Centre | X79: 800 | Y79: Normal Time | Z79: 1000/# | AA79: 1000/Not assigned | AB79: 8.95 | AE79: 980.56
A80: 10000510 | B80: Gary Hocking | C80: 1000/13187 | D80: Customer Engagement | E80: 21.03.2024 | F80: 23.03.2024 | G80: 4012895 | H80: Feb24 Storm Costs NetOps PC 12014 | I80: 4012895/0010 | J80: Feb24 Storm Timesheet Dx 12014 | K80: 4012895 | L80: 4012895 | M80: 0010 | N80: 1000/CPSPAN | O80: 1000/CPSPAN | P80: HX-0014297 | Q80: Storm Emergency_Feb24 OPEX | R80: HX-0014297-1 | S80: Feb24 Storm Costs NetOps PC 12014 | T80: 9999 | U80: INTERNAL COST CAPTURE | V80: 1000/11000 | W80: Sweep Profit Centre | X80: 800 | Y80: Normal Time | Z80: 1000/# | AA80: 1000/Not assigned | AC80: 3.57 | AF80: 440.32
A81: 10000540 | B81: Michael Delapena | C81: 1000/13104 | D81: Distribution Control | E81: 15.02.2024 | F81: 21.02.2024 | G81: 4012895 | H81: Feb24 Storm Costs NetOps PC 12014 | I81: 4012895/0010 | J81: Feb24 Storm Timesheet Dx 12014 | K81: 4012895 | L81: 4012895 | M81: 0010 | N81: 1000/CMNGRN | O81: Corp Manager NT | P81: HX-0014297 | Q81: Storm Emergency_Feb24 OPEX | R81: HX-0014297-1 | S81: Feb24 Storm Costs NetOps PC 12014 | T81: 9999 | U81: INTERNAL COST CAPTURE | V81: 1000/11000 | W81: Sweep Profit Centre | X81: 800 | Y81: Normal Time | Z81: 1000/# | AA81: 1000/Not assigned | AB81: 12 | AE81: 1230.72
A82: 10000554 | B82: Adam Duffield | C82: 1000/12182 | D82: Health, Safety E & Q | E82: 13.02.2024 | F82: 19.02.2024 | G82: 4012895 | H82: Feb24 Storm Costs NetOps PC 12014 | I82: 4012895/0010 | J82: Feb24 Storm Timesheet Dx 12014 | K82: 4012895 | L82: 4012895 | M82: 0010 | N82: 1000/CMNGAN | O82: 1000/CMNGAN | P82: HX-0014297 | Q82: Storm Emergency_Feb24 OPEX | R82: HX-0014297-1 | S82: Feb24 Storm Costs NetOps PC 12014 | T82: 9999 | U82: INTERNAL COST CAPTURE | V82: 1000/11000 | W82: Sweep Profit Centre | X82: 800 | Y82: Normal Time | Z82: 1000/# | AA82: 1000/Not assigned | AB82: 2 | AE82: 305.84
A83: 10000554 | B83: Adam Duffield | C83: 1000/12182 | D83: Health, Safety E & Q | E83: 13.02.2024 | F83: 19.02.2024 | G83: 4012895 | H83: Feb24 Storm Costs NetOps PC 12014 | I83: 4012895/0010 | J83: Feb24 Storm Timesheet Dx 12014 | K83: 4012895 | L83: 4012895 | M83: 0010 | N83: 1000/CMNGAO | O83: 1000/CMNGAO | P83: HX-0014297 | Q83: Storm Emergency_Feb24 OPEX | R83: HX-0014297-1 | S83: Feb24 Storm Costs NetOps PC 12014 | T83: 9999 | U83: INTERNAL COST CAPTURE | V83: 1000/11000 | W83: Sweep Profit Centre | X83: 850 | Y83: Overtime | Z83: 1000/# | AA83: 1000/Not assigned | AB83: 3.25 | AE83: 716.82
A84: 10000554 | B84: Adam Duffield | C84: 1000/12182 | D84: Health, Safety E & Q | E84: 14.02.2024 | F84: 19.02.2024 | G84: 4012895 | H84: Feb24 Storm Costs NetOps PC 12014 | I84: 4012895/0010 | J84: Feb24 Storm Timesheet Dx 12014 | K84: 4012895 | L84: 4012895 | M84: 0010 | N84: 1000/CMNGAN | O84: 1000/CMNGAN | P84: HX-0014297 | Q84: Storm Emergency_Feb24 OPEX | R84: HX-0014297-1 | S84: Feb24 Storm Costs NetOps PC 12014 | T84: 9999 | U84: INTERNAL COST CAPTURE | V84: 1000/11000 | W84: Sweep Profit Centre | X84: 800 | Y84: Normal Time | Z84: 1000/# | AA84: 1000/Not assigned | AB84: 11 | AE84: 1146.86
A85: 10000554 | B85: Adam Duffield | C85: 1000/12182 | D85: Health, Safety E & Q | E85: 15.02.2024 | F85: 19.02.2024 | G85: 4012895 | H85: Feb24 Storm Costs NetOps PC 12014 | I85: 4012895/0010 | J85: Feb24 Storm Timesheet Dx 12014 | K85: 4012895 | L85: 4012895 | M85: 0010 | N85: 1000/CMNGAN | O85: 1000/CMNGAN | P85: HX-0014297 | Q85: Storm Emergency_Feb24 OPEX | R85: HX-0014297-1 | S85: Feb24 Storm Costs NetOps PC 12014 | T85: 9999 | U85: INTERNAL COST CAPTURE | V85: 1000/11000 | W85: Sweep Profit Centre | X85: 800 | Y85: Normal Time | Z85: 1000/# | AA85: 1000/Not assigned | AB85: 12.5 | AE85: 1146.88
A86: 10000554 | B86: Adam Duffield | C86: 1000/12182 | D86: Health, Safety E & Q | E86: 16.02.2024 | F86: 19.02.2024 | G86: 4012895 | H86: Feb24 Storm Costs NetOps PC 12014 | I86: 4012895/0010 | J86: Feb24 Storm Timesheet Dx 12014 | K86: 4012895 | L86: 4012895 | M86: 0010 | N86: 1000/CMNGAN | O86: 1000/CMNGAN | P86: HX-0014297 | Q86: Storm Emergency_Feb24 OPEX | R86: HX-0014297-1 | S86: Feb24 Storm Costs NetOps PC 12014 | T86: 9999 | U86: INTERNAL COST CAPTURE | V86: 1000/11000 | W86: Sweep Profit Centre | X86: 800 | Y86: Normal Time | Z86: 1000/# | AA86: 1000/Not assigned | AB86: 14.25 | AE86: 1146.84
A87: 10000594 | B87: Gavan Doherty | C87: 1000/16004 | D87: Aerial Operations | E87: 14.02.2024 | F87: 23.02.2024 | G87: 4012895 | H87: Feb24 Storm Costs NetOps PC 12014 | I87: 4012895/0010 | J87: Feb24 Storm Timesheet Dx 12014 | K87: 4012895 | L87: 4012895 | M87: 0010 | N87: 1000/CMNGAN | O87: 1000/CMNGAN | P87: HX-0014297 | Q87: Storm Emergency_Feb24 OPEX | R87: HX-0014297-1 | S87: Feb24 Storm Costs NetOps PC 12014 | T87: 9999 | U87: INTERNAL COST CAPTURE | V87: 1000/11000 | W87: Sweep Profit Centre | X87: 800 | Y87: Normal Time | Z87: 1000/# | AA87: 1000/Not assigned | AB87: 7.5 | AE87: 1146.9
A88: 10000594 | B88: Gavan Doherty | C88: 1000/16004 | D88: Aerial Operations | E88: 14.02.2024 | F88: 23.02.2024 | G88: 4012895 | H88: Feb24 Storm Costs NetOps PC 12014 | I88: 4012895/0010 | J88: Feb24 Storm Timesheet Dx 12014 | K88: 4012895 | L88: 4012895 | M88: 0010 | N88: 1000/CMNGAO | O88: 1000/CMNGAO | P88: HX-0014297 | Q88: Storm Emergency_Feb24 OPEX | R88: HX-0014297-1 | S88: Feb24 Storm Costs NetOps PC 12014 | T88: 9999 | U88: INTERNAL COST CAPTURE | V88: 1000/11000 | W88: Sweep Profit Centre | X88: 850 | Y88: Overtime | Z88: 1000/# | AA88: 1000/Not assigned | AB88: 6 | AE88: 1323.36
A89: 10000594 | B89: Gavan Doherty | C89: 1000/16004 | D89: Aerial Operations | E89: 15.02.2024 | F89: 23.02.2024 | G89: 4012895 | H89: Feb24 Storm Costs NetOps PC 12014 | I89: 4012895/0010 | J89: Feb24 Storm Timesheet Dx 12014 | K89: 4012895 | L89: 4012895 | M89: 0010 | N89: 1000/CMNGAN | O89: 1000/CMNGAN | P89: HX-0014297 | Q89: Storm Emergency_Feb24 OPEX | R89: HX-0014297-1 | S89: Feb24 Storm Costs NetOps PC 12014 | T89: 9999 | U89: INTERNAL COST CAPTURE | V89: 1000/11000 | W89: Sweep Profit Centre | X89: 800 | Y89: Normal Time | Z89: 1000/# | AA89: 1000/Not assigned | AB89: 7.5 | AE89: 1146.9
A90: 10000594 | B90: Gavan Doherty | C90: 1000/16004 | D90: Aerial Operations | E90: 15.02.2024 | F90: 23.02.2024 | G90: 4012895 | H90: Feb24 Storm Costs NetOps PC 12014 | I90: 4012895/0010 | J90: Feb24 Storm Timesheet Dx 12014 | K90: 4012895 | L90: 4012895 | M90: 0010 | N90: 1000/CMNGAO | O90: 1000/CMNGAO | P90: HX-0014297 | Q90: Storm Emergency_Feb24 OPEX | R90: HX-0014297-1 | S90: Feb24 Storm Costs NetOps PC 12014 | T90: 9999 | U90: INTERNAL COST CAPTURE | V90: 1000/11000 | W90: Sweep Profit Centre | X90: 850 | Y90: Overtime | Z90: 1000/# | AA90: 1000/Not assigned | AB90: 5 | AE90: 1102.8
A91: 10000594 | B91: Gavan Doherty | C91: 1000/16004 | D91: Aerial Operations | E91: 16.02.2024 | F91: 23.02.2024 | G91: 4012895 | H91: Feb24 Storm Costs NetOps PC 12014 | I91: 4012895/0010 | J91: Feb24 Storm Timesheet Dx 12014 | K91: 4012895 | L91: 4012895 | M91: 0010 | N91: 1000/CMNGAN | O91: 1000/CMNGAN | P91: HX-0014297 | Q91: Storm Emergency_Feb24 OPEX | R91: HX-0014297-1 | S91: Feb24 Storm Costs NetOps PC 12014 | T91: 9999 | U91: INTERNAL COST CAPTURE | V91: 1000/11000 | W91: Sweep Profit Centre | X91: 800 | Y91: Normal Time | Z91: 1000/# | AA91: 1000/Not assigned | AB91: 7.5 | AE91: 1146.9
A92: 10000594 | B92: Gavan Doherty | C92: 1000/16004 | D92: Aerial Operations | E92: 16.02.2024 | F92: 23.02.2024 | G92: 4012895 | H92: Feb24 Storm Costs NetOps PC 12014 | I92: 4012895/0010 | J92: Feb24 Storm Timesheet Dx 12014 | K92: 4012895 | L92: 4012895 | M92: 0010 | N92: 1000/CMNGAO | O92: 1000/CMNGAO | P92: HX-0014297 | Q92: Storm Emergency_Feb24 OPEX | R92: HX-0014297-1 | S92: Feb24 Storm Costs NetOps PC 12014 | T92: 9999 | U92: INTERNAL COST CAPTURE | V92: 1000/11000 | W92: Sweep Profit Centre | X92: 850 | Y92: Overtime | Z92: 1000/# | AA92: 1000/Not assigned | AB92: 4.5 | AE92: 992.52
A93: 10000594 | B93: Gavan Doherty | C93: 1000/16004 | D93: Aerial Operations | E93: 17.02.2024 | F93: 23.02.2024 | G93: 4012895 | H93: Feb24 Storm Costs NetOps PC 12014 | I93: 4012895/0010 | J93: Feb24 Storm Timesheet Dx 12014 | K93: 4012895 | L93: 4012895 | M93: 0010 | N93: 1000/CMNGAO | O93: 1000/CMNGAO | P93: HX-0014297 | Q93: Storm Emergency_Feb24 OPEX | R93: HX-0014297-1 | S93: Feb24 Storm Costs NetOps PC 12014 | T93: 9999 | U93: INTERNAL COST CAPTURE | V93: 1000/11000 | W93: Sweep Profit Centre | X93: 850 | Y93: Overtime | Z93: 1000/# | AA93: 1000/Not assigned | AB93: 12 | AE93: 2646.72
A94: 10000594 | B94: Gavan Doherty | C94: 1000/16004 | D94: Aerial Operations | E94: 18.02.2024 | F94: 23.02.2024 | G94: 4012895 | H94: Feb24 Storm Costs NetOps PC 12014 | I94: 4012895/0010 | J94: Feb24 Storm Timesheet Dx 12014 | K94: 4012895 | L94: 4012895 | M94: 0010 | N94: 1000/CMNGAO | O94: 1000/CMNGAO | P94: HX-0014297 | Q94: Storm Emergency_Feb24 OPEX | R94: HX-0014297-1 | S94: Feb24 Storm Costs NetOps PC 12014 | T94: 9999 | U94: INTERNAL COST CAPTURE | V94: 1000/11000 | W94: Sweep Profit Centre | X94: 850 | Y94: Overtime | Z94: 1000/# | AA94: 1000/Not assigned | AB94: 12.5 | AE94: 2757
A95: 10000594 | B95: Gavan Doherty | C95: 1000/16004 | D95: Aerial Operations | E95: 19.02.2024 | F95: 06.03.2024 | G95: 4012895 | H95: Feb24 Storm Costs NetOps PC 12014 | I95: 4012895/0010 | J95: Feb24 Storm Timesheet Dx 12014 | K95: 4012895 | L95: 4012895 | M95: 0010 | N95: 1000/CMNGAN | O95: 1000/CMNGAN | P95: HX-0014297 | Q95: Storm Emergency_Feb24 OPEX | R95: HX-0014297-1 | S95: Feb24 Storm Costs NetOps PC 12014 | T95: 9999 | U95: INTERNAL COST CAPTURE | V95: 1000/11000 | W95: Sweep Profit Centre | X95: 800 | Y95: Normal Time | Z95: 1000/# | AA95: 1000/Not assigned | AB95: 7.5 | AE95: 1146.9
A96: 10000594 | B96: Gavan Doherty | C96: 1000/16004 | D96: Aerial Operations | E96: 19.02.2024 | F96: 06.03.2024 | G96: 4012895 | H96: Feb24 Storm Costs NetOps PC 12014 | I96: 4012895/0010 | J96: Feb24 Storm Timesheet Dx 12014 | K96: 4012895 | L96: 4012895 | M96: 0010 | N96: 1000/CMNGAO | O96: 1000/CMNGAO | P96: HX-0014297 | Q96: Storm Emergency_Feb24 OPEX | R96: HX-0014297-1 | S96: Feb24 Storm Costs NetOps PC 12014 | T96: 9999 | U96: INTERNAL COST CAPTURE | V96: 1000/11000 | W96: Sweep Profit Centre | X96: 850 | Y96: Overtime | Z96: 1000/# | AA96: 1000/Not assigned | AB96: 2 | AE96: 441.12
A97: 10000594 | B97: Gavan Doherty | C97: 1000/16004 | D97: Aerial Operations | E97: 20.02.2024 | F97: 06.03.2024 | G97: 4012895 | H97: Feb24 Storm Costs NetOps PC 12014 | I97: 4012895/0010 | J97: Feb24 Storm Timesheet Dx 12014 | K97: 4012895 | L97: 4012895 | M97: 0010 | N97: 1000/CMNGAN | O97: 1000/CMNGAN | P97: HX-0014297 | Q97: Storm Emergency_Feb24 OPEX | R97: HX-0014297-1 | S97: Feb24 Storm Costs NetOps PC 12014 | T97: 9999 | U97: INTERNAL COST CAPTURE | V97: 1000/11000 | W97: Sweep Profit Centre | X97: 800 | Y97: Normal Time | Z97: 1000/# | AA97: 1000/Not assigned | AB97: 7.5 | AE97: 1146.9
A98: 10000594 | B98: Gavan Doherty | C98: 1000/16004 | D98: Aerial Operations | E98: 20.02.2024 | F98: 06.03.2024 | G98: 4012895 | H98: Feb24 Storm Costs NetOps PC 12014 | I98: 4012895/0010 | J98: Feb24 Storm Timesheet Dx 12014 | K98: 4012895 | L98: 4012895 | M98: 0010 | N98: 1000/CMNGAO | O98: 1000/CMNGAO | P98: HX-0014297 | Q98: Storm Emergency_Feb24 OPEX | R98: HX-0014297-1 | S98: Feb24 Storm Costs NetOps PC 12014 | T98: 9999 | U98: INTERNAL COST CAPTURE | V98: 1000/11000 | W98: Sweep Profit Centre | X98: 850 | Y98: Overtime | Z98: 1000/# | AA98: 1000/Not assigned | AB98: 3 | AE98: 661.68
A99: 10000594 | B99: Gavan Doherty | C99: 1000/16004 | D99: Aerial Operations | E99: 21.02.2024 | F99: 06.03.2024 | G99: 4012895 | H99: Feb24 Storm Costs NetOps PC 12014 | I99: 4012895/0010 | J99: Feb24 Storm Timesheet Dx 12014 | K99: 4012895 | L99: 4012895 | M99: 0010 | N99: 1000/CMNGAN | O99: 1000/CMNGAN | P99: HX-0014297 | Q99: Storm Emergency_Feb24 OPEX | R99: HX-0014297-1 | S99: Feb24 Storm Costs NetOps PC 12014 | T99: 9999 | U99: INTERNAL COST CAPTURE | V99: 1000/11000 | W99: Sweep Profit Centre | X99: 800 | Y99: Normal Time | Z99: 1000/# | AA99: 1000/Not assigned | AB99: 7.5 | AE99: 1146.9
A100: 10000594 | B100: Gavan Doherty | C100: 1000/16004 | D100: Aerial Operations | E100: 21.02.2024 | F100: 06.03.2024 | G100: 4012895 | H100: Feb24 Storm Costs NetOps PC 12014 | I100: 4012895/0010 | J100: Feb24 Storm Timesheet Dx 12014 | K100: 4012895 | L100: 4012895 | M100: 0010 | N100: 1000/CMNGAO | O100: 1000/CMNGAO | P100: HX-0014297 | Q100: Storm Emergency_Feb24 OPEX | R100: HX-0014297-1 | S100: Feb24 Storm Costs NetOps PC 12014 | T100: 9999 | U100: INTERNAL COST CAPTURE | V100: 1000/11000 | W100: Sweep Profit Centre | X100: 850 | Y100: Overtime | Z100: 1000/# | AA100: 1000/Not assigned | AB100: 3.5 | AE100: 771.96
A101: 10000637 | B101: David Hunter | C101: 1000/16001 | D101: Inspection & Assessm | E101: 13.02.2024 | F101: 20.02.2024 | G101: 4012895 | H101: Feb24 Storm Costs NetOps PC 12014 | I101: 4012895/0010 | J101: Feb24 Storm Timesheet Dx 12014 | K101: 4012895 | L101: 4012895 | M101: 0010 | N101: 1000/CLEAAN | O101: 1000/CLEAAN | P101: HX-0014297 | Q101: Storm Emergency_Feb24 OPEX | R101: HX-0014297-1 | S101: Feb24 Storm Costs NetOps PC 12014 | T101: 9999 | U101: INTERNAL COST CAPTURE | V101: 1000/11000 | W101: Sweep Profit Centre | X101: 800 | Y101: Normal Time | Z101: 1000/# | AA101: 1000/Not assigned | AB101: 8 | AE101: 810.8
A102: 10000637 | B102: David Hunter | C102: 1000/16001 | D102: Inspection & Assessm | E102: 14.02.2024 | F102: 20.02.2024 | G102: 4012895 | H102: Feb24 Storm Costs NetOps PC 12014 | I102: 4012895/0010 | J102: Feb24 Storm Timesheet Dx 12014 | K102: 4012895 | L102: 4012895 | M102: 0010 | N102: 1000/CLEAAN | O102: 1000/CLEAAN | P102: HX-0014297 | Q102: Storm Emergency_Feb24 OPEX | R102: HX-0014297-1 | S102: Feb24 Storm Costs NetOps PC 12014 | T102: 9999 | U102: INTERNAL COST CAPTURE | V102: 1000/11000 | W102: Sweep Profit Centre | X102: 800 | Y102: Normal Time | Z102: 1000/# | AA102: 1000/Not assigned | AB102: 8 | AE102: 810.8
A103: 10000637 | B103: David Hunter | C103: 1000/16001 | D103: Inspection & Assessm | E103: 14.02.2024 | F103: 20.02.2024 | G103: 4012895 | H103: Feb24 Storm Costs NetOps PC 12014 | I103: 4012895/0010 | J103: Feb24 Storm Timesheet Dx 12014 | K103: 4012895 | L103: 4012895 | M103: 0010 | N103: 1000/CLEAAO | O103: 1000/CLEAAO | P103: HX-0014297 | Q103: Storm Emergency_Feb24 OPEX | R103: HX-0014297-1 | S103: Feb24 Storm Costs NetOps PC 12014 | T103: 9999 | U103: INTERNAL COST CAPTURE | V103: 1000/11000 | W103: Sweep Profit Centre | X103: 850 | Y103: Overtime | Z103: 1000/# | AA103: 1000/Not assigned | AB103: 5 | AE103: 730.9
A104: 10000637 | B104: David Hunter | C104: 1000/16001 | D104: Inspection & Assessm | E104: 15.02.2024 | F104: 20.02.2024 | G104: 4012895 | H104: Feb24 Storm Costs NetOps PC 12014 | I104: 4012895/0010 | J104: Feb24 Storm Timesheet Dx 12014 | K104: 4012895 | L104: 4012895 | M104: 0010 | N104: 1000/CLEAAN | O104: 1000/CLEAAN | P104: HX-0014297 | Q104: Storm Emergency_Feb24 OPEX | R104: HX-0014297-1 | S104: Feb24 Storm Costs NetOps PC 12014 | T104: 9999 | U104: INTERNAL COST CAPTURE | V104: 1000/11000 | W104: Sweep Profit Centre | X104: 800 | Y104: Normal Time | Z104: 1000/# | AA104: 1000/Not assigned | AB104: 8 | AE104: 810.8
A105: 10000637 | B105: David Hunter | C105: 1000/16001 | D105: Inspection & Assessm | E105: 15.02.2024 | F105: 20.02.2024 | G105: 4012895 | H105: Feb24 Storm Costs NetOps PC 12014 | I105: 4012895/0010 | J105: Feb24 Storm Timesheet Dx 12014 | K105: 4012895 | L105: 4012895 | M105: 0010 | N105: 1000/CLEAAO | O105: 1000/CLEAAO | P105: HX-0014297 | Q105: Storm Emergency_Feb24 OPEX | R105: HX-0014297-1 | S105: Feb24 Storm Costs NetOps PC 12014 | T105: 9999 | U105: INTERNAL COST CAPTURE | V105: 1000/11000 | W105: Sweep Profit Centre | X105: 850 | Y105: Overtime | Z105: 1000/# | AA105: 1000/Not assigned | AB105: 3 | AE105: 438.54
A106: 10000637 | B106: David Hunter | C106: 1000/16001 | D106: Inspection & Assessm | E106: 16.02.2024 | F106: 20.02.2024 | G106: 4012895 | H106: Feb24 Storm Costs NetOps PC 12014 | I106: 4012895/0010 | J106: Feb24 Storm Timesheet Dx 12014 | K106: 4012895 | L106: 4012895 | M106: 0010 | N106: 1000/CLEAAN | O106: 1000/CLEAAN | P106: HX-0014297 | Q106: Storm Emergency_Feb24 OPEX | R106: HX-0014297-1 | S106: Feb24 Storm Costs NetOps PC 12014 | T106: 9999 | U106: INTERNAL COST CAPTURE | V106: 1000/11000 | W106: Sweep Profit Centre | X106: 800 | Y106: Normal Time | Z106: 1000/# | AA106: 1000/Not assigned | AB106: 8 | AE106: 810.8
A107: 10000637 | B107: David Hunter | C107: 1000/16001 | D107: Inspection & Assessm | E107: 20.02.2024 | F107: 26.02.2024 | G107: 4012895 | H107: Feb24 Storm Costs NetOps PC 12014 | I107: 4012895/0010 | J107: Feb24 Storm Timesheet Dx 12014 | K107: 4012895 | L107: 4012895 | M107: 0010 | N107: 1000/CLEAAN | O107: 1000/CLEAAN | P107: HX-0014297 | Q107: Storm Emergency_Feb24 OPEX | R107: HX-0014297-1 | S107: Feb24 Storm Costs NetOps PC 12014 | T107: 9999 | U107: INTERNAL COST CAPTURE | V107: 1000/11000 | W107: Sweep Profit Centre | X107: 800 | Y107: Normal Time | Z107: 1000/# | AA107: 1000/Not assigned | AB107: 8 | AE107: 810.8
A108: 10000637 | B108: David Hunter | C108: 1000/16001 | D108: Inspection & Assessm | E108: 20.02.2024 | F108: 26.02.2024 | G108: 4012895 | H108: Feb24 Storm Costs NetOps PC 12014 | I108: 4012895/0010 | J108: Feb24 Storm Timesheet Dx 12014 | K108: 4012895 | L108: 4012895 | M108: 0010 | N108: 1000/CLEAAO | O108: 1000/CLEAAO | P108: HX-0014297 | Q108: Storm Emergency_Feb24 OPEX | R108: HX-0014297-1 | S108: Feb24 Storm Costs NetOps PC 12014 | T108: 9999 | U108: INTERNAL COST CAPTURE | V108: 1000/11000 | W108: Sweep Profit Centre | X108: 850 | Y108: Overtime | Z108: 1000/# | AA108: 1000/Not assigned | AB108: 3 | AE108: 438.54
A109: 10000637 | B109: David Hunter | C109: 1000/16001 | D109: Inspection & Assessm | E109: 22.02.2024 | F109: 26.02.2024 | G109: 4012895 | H109: Feb24 Storm Costs NetOps PC 12014 | I109: 4012895/0010 | J109: Feb24 Storm Timesheet Dx 12014 | K109: 4012895 | L109: 4012895 | M109: 0010 | N109: 1000/CLEAAN | O109: 1000/CLEAAN | P109: HX-0014297 | Q109: Storm Emergency_Feb24 OPEX | R109: HX-0014297-1 | S109: Feb24 Storm Costs NetOps PC 12014 | T109: 9999 | U109: INTERNAL COST CAPTURE | V109: 1000/11000 | W109: Sweep Profit Centre | X109: 800 | Y109: Normal Time | Z109: 1000/# | AA109: 1000/Not assigned | AB109: 8 | AE109: 810.8
A110: 10000637 | B110: David Hunter | C110: 1000/16001 | D110: Inspection & Assessm | E110: 22.02.2024 | F110: 26.02.2024 | G110: 4012895 | H110: Feb24 Storm Costs NetOps PC 12014 | I110: 4012895/0010 | J110: Feb24 Storm Timesheet Dx 12014 | K110: 4012895 | L110: 4012895 | M110: 0010 | N110: 1000/CLEAAO | O110: 1000/CLEAAO | P110: HX-0014297 | Q110: Storm Emergency_Feb24 OPEX | R110: HX-0014297-1 | S110: Feb24 Storm Costs NetOps PC 12014 | T110: 9999 | U110: INTERNAL COST CAPTURE | V110: 1000/11000 | W110: Sweep Profit Centre | X110: 850 | Y110: Overtime | Z110: 1000/# | AA110: 1000/Not assigned | AB110: 1.5 | AE110: 219.27
A111: 10000638 | B111: Scott Graham | C111: 1000/16001 | D111: Inspection & Assessm | E111: 15.02.2024 | F111: 20.02.2024 | G111: 4012895 | H111: Feb24 Storm Costs NetOps PC 12014 | I111: 4012895/0030 | J111: Feb24 Storm Timesheet Net unknown 12014 | K111: 4012895 | L111: 4012895 | M111: 0030 | N111: 1000/CPSEAN | O111: 1000/CPSEAN | P111: HX-0014297 | Q111: Storm Emergency_Feb24 OPEX | R111: HX-0014297-1 | S111: Feb24 Storm Costs NetOps PC 12014 | T111: 9999 | U111: INTERNAL COST CAPTURE | V111: 1000/11000 | W111: Sweep Profit Centre | X111: 800 | Y111: Normal Time | Z111: 1000/# | AA111: 1000/Not assigned | AB111: 4 | AE111: 357.88
A112: 10000677 | B112: David Cairns | C112: 1000/16004 | D112: Aerial Operations | E112: 21.02.2024 | F112: 25.02.2024 | G112: 4012895 | H112: Feb24 Storm Costs NetOps PC 12014 | I112: 4012895/0010 | J112: Feb24 Storm Timesheet Dx 12014 | K112: 4012895 | L112: 4012895 | M112: 0010 | N112: 1000/CLEAAN | O112: 1000/CLEAAN | P112: HX-0014297 | Q112: Storm Emergency_Feb24 OPEX | R112: HX-0014297-1 | S112: Feb24 Storm Costs NetOps PC 12014 | T112: 9999 | U112: INTERNAL COST CAPTURE | V112: 1000/11000 | W112: Sweep Profit Centre | X112: 800 | Y112: Normal Time | Z112: 1000/# | AA112: 1000/Not assigned | AB112: 8 | AE112: 760.16
A113: 10000677 | B113: David Cairns | C113: 1000/16004 | D113: Aerial Operations | E113: 21.02.2024 | F113: 25.02.2024 | G113: 4012895 | H113: Feb24 Storm Costs NetOps PC 12014 | I113: 4012895/0010 | J113: Feb24 Storm Timesheet Dx 12014 | K113: 4012895 | L113: 4012895 | M113: 0010 | N113: 1000/CLEAAO | O113: 1000/CLEAAO | P113: HX-0014297 | Q113: Storm Emergency_Feb24 OPEX | R113: HX-0014297-1 | S113: Feb24 Storm Costs NetOps PC 12014 | T113: 9999 | U113: INTERNAL COST CAPTURE | V113: 1000/11000 | W113: Sweep Profit Centre | X113: 850 | Y113: Overtime | Z113: 1000/# | AA113: 1000/Not assigned | AB113: 4 | AE113: 584.72
A114: 10000677 | B114: David Cairns | C114: 1000/16004 | D114: Aerial Operations | E114: 22.02.2024 | F114: 25.02.2024 | G114: 4012895 | H114: Feb24 Storm Costs NetOps PC 12014 | I114: 4012895/0010 | J114: Feb24 Storm Timesheet Dx 12014 | K114: 4012895 | L114: 4012895 | M114: 0010 | N114: 1000/CLEAAN | O114: 1000/CLEAAN | P114: HX-0014297 | Q114: Storm Emergency_Feb24 OPEX | R114: HX-0014297-1 | S114: Feb24 Storm Costs NetOps PC 12014 | T114: 9999 | U114: INTERNAL COST CAPTURE | V114: 1000/11000 | W114: Sweep Profit Centre | X114: 800 | Y114: Normal Time | Z114: 1000/# | AA114: 1000/Not assigned | AB114: 7.5 | AE114: 760.13
A115: 10000677 | B115: David Cairns | C115: 1000/16004 | D115: Aerial Operations | E115: 22.02.2024 | F115: 25.02.2024 | G115: 4012895 | H115: Feb24 Storm Costs NetOps PC 12014 | I115: 4012895/0010 | J115: Feb24 Storm Timesheet Dx 12014 | K115: 4012895 | L115: 4012895 | M115: 0010 | N115: 1000/CLEAAO | O115: 1000/CLEAAO | P115: HX-0014297 | Q115: Storm Emergency_Feb24 OPEX | R115: HX-0014297-1 | S115: Feb24 Storm Costs NetOps PC 12014 | T115: 9999 | U115: INTERNAL COST CAPTURE | V115: 1000/11000 | W115: Sweep Profit Centre | X115: 850 | Y115: Overtime | Z115: 1000/# | AA115: 1000/Not assigned | AB115: 3.5 | AE115: 511.63
A116: 10000677 | B116: David Cairns | C116: 1000/16004 | D116: Aerial Operations | E116: 24.02.2024 | F116: 25.02.2024 | G116: 4012895 | H116: Feb24 Storm Costs NetOps PC 12014 | I116: 4012895/0010 | J116: Feb24 Storm Timesheet Dx 12014 | K116: 4012895 | L116: 4012895 | M116: 0010 | N116: 1000/CLEAAO | O116: 1000/CLEAAO | P116: HX-0014297 | Q116: Storm Emergency_Feb24 OPEX | R116: HX-0014297-1 | S116: Feb24 Storm Costs NetOps PC 12014 | T116: 9999 | U116: INTERNAL COST CAPTURE | V116: 1000/11000 | W116: Sweep Profit Centre | X116: 850 | Y116: Overtime | Z116: 1000/# | AA116: 1000/Not assigned | AB116: 8.5 | AE116: 1242.53
A117: 10000706 | B117: Darren Toogood | C117: 1000/16001 | D117: Inspection & Assessm | E117: 14.02.2024 | F117: 19.02.2024 | G117: 4012895 | H117: Feb24 Storm Costs NetOps PC 12014 | I117: 4012895/0010 | J117: Feb24 Storm Timesheet Dx 12014 | K117: 4012895 | L117: 4012895 | M117: 0010 | N117: 1000/CPSEAO | O117: 1000/CPSEAO | P117: HX-0014297 | Q117: Storm Emergency_Feb24 OPEX | R117: HX-0014297-1 | S117: Feb24 Storm Costs NetOps PC 12014 | T117: 9999 | U117: INTERNAL COST CAPTURE | V117: 1000/11000 | W117: Sweep Profit Centre | X117: 850 | Y117: Overtime | Z117: 1000/# | AA117: 1000/Not assigned | AB117: 1 | AE117: 129.05
A118: 10000706 | B118: Darren Toogood | C118: 1000/16001 | D118: Inspection & Assessm | E118: 15.02.2024 | F118: 19.02.2024 | G118: 4012895 | H118: Feb24 Storm Costs NetOps PC 12014 | I118: 4012895/0010 | J118: Feb24 Storm Timesheet Dx 12014 | K118: 4012895 | L118: 4012895 | M118: 0010 | N118: 1000/CPSEAO | O118: 1000/CPSEAO | P118: HX-0014297 | Q118: Storm Emergency_Feb24 OPEX | R118: HX-0014297-1 | S118: Feb24 Storm Costs NetOps PC 12014 | T118: 9999 | U118: INTERNAL COST CAPTURE | V118: 1000/11000 | W118: Sweep Profit Centre | X118: 850 | Y118: Overtime | Z118: 1000/# | AA118: 1000/Not assigned | AB118: 2.5 | AE118: 322.63
A119: 10000706 | B119: Darren Toogood | C119: 1000/16001 | D119: Inspection & Assessm | E119: 16.02.2024 | F119: 19.02.2024 | G119: 4012895 | H119: Feb24 Storm Costs NetOps PC 12014 | I119: 4012895/0010 | J119: Feb24 Storm Timesheet Dx 12014 | K119: 4012895 | L119: 4012895 | M119: 0010 | N119: 1000/CPSEAO | O119: 1000/CPSEAO | P119: HX-0014297 | Q119: Storm Emergency_Feb24 OPEX | R119: HX-0014297-1 | S119: Feb24 Storm Costs NetOps PC 12014 | T119: 9999 | U119: INTERNAL COST CAPTURE | V119: 1000/11000 | W119: Sweep Profit Centre | X119: 850 | Y119: Overtime | Z119: 1000/# | AA119: 1000/Not assigned | AB119: 2 | AE119: 258.1
A120: 10000709 | B120: Steven Oldman | C120: 1000/16001 | D120: Inspection & Assessm | E120: 15.02.2024 | F120: 20.02.2024 | G120: 4012895 | H120: Feb24 Storm Costs NetOps PC 12014 | I120: 4012895/0040 | J120: Feb24 Storm Purchases Orders Dx 12014 | K120: 4012895 | L120: 4012895 | M120: 0040 | N120: 1000/AINSPN | O120: Asset Inspector NT | P120: HX-0014297 | Q120: Storm Emergency_Feb24 OPEX | R120: HX-0014297-1 | S120: Feb24 Storm Costs NetOps PC 12014 | T120: 9999 | U120: INTERNAL COST CAPTURE | V120: 1000/11000 | W120: Sweep Profit Centre | X120: 800 | Y120: Normal Time | Z120: 1000/# | AA120: 1000/Not assigned | AB120: 4 | AE120: 285.24
A121: 10000709 | B121: Steven Oldman | C121: 1000/16001 | D121: Inspection & Assessm | E121: 16.02.2024 | F121: 20.02.2024 | G121: 4012895 | H121: Feb24 Storm Costs NetOps PC 12014 | I121: 4012895/0040 | J121: Feb24 Storm Purchases Orders Dx 12014 | K121: 4012895 | L121: 4012895 | M121: 0040 | N121: 1000/AINSPN | O121: Asset Inspector NT | P121: HX-0014297 | Q121: Storm Emergency_Feb24 OPEX | R121: HX-0014297-1 | S121: Feb24 Storm Costs NetOps PC 12014 | T121: 9999 | U121: INTERNAL COST CAPTURE | V121: 1000/11000 | W121: Sweep Profit Centre | X121: 800 | Y121: Normal Time | Z121: 1000/# | AA121: 1000/Not assigned | AB121: 4 | AE121: 285.24
A122: 10000724 | B122: Jason Moses | C122: 1000/16001 | D122: Inspection & Assessm | E122: 15.02.2024 | F122: 21.02.2024 | G122: 4012895 | H122: Feb24 Storm Costs NetOps PC 12014 | I122: 4012895/0010 | J122: Feb24 Storm Timesheet Dx 12014 | K122: 4012895 | L122: 4012895 | M122: 0010 | N122: 1000/AINSPN | O122: Asset Inspector NT | P122: HX-0014297 | Q122: Storm Emergency_Feb24 OPEX | R122: HX-0014297-1 | S122: Feb24 Storm Costs NetOps PC 12014 | T122: 9999 | U122: INTERNAL COST CAPTURE | V122: 1000/11000 | W122: Sweep Profit Centre | X122: 800 | Y122: Normal Time | Z122: 1000/# | AA122: 1000/Not assigned | AB122: 8 | AE122: 570.48
A123: 10000724 | B123: Jason Moses | C123: 1000/16001 | D123: Inspection & Assessm | E123: 15.02.2024 | F123: 21.02.2024 | G123: 4012895 | H123: Feb24 Storm Costs NetOps PC 12014 | I123: 4012895/0010 | J123: Feb24 Storm Timesheet Dx 12014 | K123: 4012895 | L123: 4012895 | M123: 0010 | N123: 1000/AINSPO | O123: Asset Inspector OT | P123: HX-0014297 | Q123: Storm Emergency_Feb24 OPEX | R123: HX-0014297-1 | S123: Feb24 Storm Costs NetOps PC 12014 | T123: 9999 | U123: INTERNAL COST CAPTURE | V123: 1000/11000 | W123: Sweep Profit Centre | X123: 850 | Y123: Overtime | Z123: 1000/# | AA123: 1000/Not assigned | AB123: 1 | AE123: 102.86
A124: 10000726 | B124: Rod Watson | C124: 1000/16001 | D124: Inspection & Assessm | E124: 15.02.2024 | F124: 19.02.2024 | G124: 4012895 | H124: Feb24 Storm Costs NetOps PC 12014 | I124: 4012895/0010 | J124: Feb24 Storm Timesheet Dx 12014 | K124: 4012895 | L124: 4012895 | M124: 0010 | N124: 1000/AINSPN | O124: Asset Inspector NT | P124: HX-0014297 | Q124: Storm Emergency_Feb24 OPEX | R124: HX-0014297-1 | S124: Feb24 Storm Costs NetOps PC 12014 | T124: 9999 | U124: INTERNAL COST CAPTURE | V124: 1000/11000 | W124: Sweep Profit Centre | X124: 800 | Y124: Normal Time | Z124: 1000/# | AA124: 1000/Not assigned | AB124: 8 | AE124: 570.48
A125: 10000726 | B125: Rod Watson | C125: 1000/16001 | D125: Inspection & Assessm | E125: 15.02.2024 | F125: 19.02.2024 | G125: 4012895 | H125: Feb24 Storm Costs NetOps PC 12014 | I125: 4012895/0010 | J125: Feb24 Storm Timesheet Dx 12014 | K125: 4012895 | L125: 4012895 | M125: 0010 | N125: 1000/AINSPO | O125: Asset Inspector OT | P125: HX-0014297 | Q125: Storm Emergency_Feb24 OPEX | R125: HX-0014297-1 | S125: Feb24 Storm Costs NetOps PC 12014 | T125: 9999 | U125: INTERNAL COST CAPTURE | V125: 1000/11000 | W125: Sweep Profit Centre | X125: 850 | Y125: Overtime | Z125: 1000/# | AA125: 1000/Not assigned | AB125: 2.5 | AE125: 257.15
A126: 10000726 | B126: Rod Watson | C126: 1000/16001 | D126: Inspection & Assessm | E126: 16.02.2024 | F126: 19.02.2024 | G126: 4012895 | H126: Feb24 Storm Costs NetOps PC 12014 | I126: 4012895/0010 | J126: Feb24 Storm Timesheet Dx 12014 | K126: 4012895 | L126: 4012895 | M126: 0010 | N126: 1000/AINSPN | O126: Asset Inspector NT | P126: HX-0014297 | Q126: Storm Emergency_Feb24 OPEX | R126: HX-0014297-1 | S126: Feb24 Storm Costs NetOps PC 12014 | T126: 9999 | U126: INTERNAL COST CAPTURE | V126: 1000/11000 | W126: Sweep Profit Centre | X126: 800 | Y126: Normal Time | Z126: 1000/# | AA126: 1000/Not assigned | AB126: 8 | AE126: 570.48
A127: 10000726 | B127: Rod Watson | C127: 1000/16001 | D127: Inspection & Assessm | E127: 16.02.2024 | F127: 19.02.2024 | G127: 4012895 | H127: Feb24 Storm Costs NetOps PC 12014 | I127: 4012895/0010 | J127: Feb24 Storm Timesheet Dx 12014 | K127: 4012895 | L127: 4012895 | M127: 0010 | N127: 1000/AINSPO | O127: Asset Inspector OT | P127: HX-0014297 | Q127: Storm Emergency_Feb24 OPEX | R127: HX-0014297-1 | S127: Feb24 Storm Costs NetOps PC 12014 | T127: 9999 | U127: INTERNAL COST CAPTURE | V127: 1000/11000 | W127: Sweep Profit Centre | X127: 850 | Y127: Overtime | Z127: 1000/# | AA127: 1000/Not assigned | AB127: 2 | AE127: 205.72
A128: 10000726 | B128: Rod Watson | C128: 1000/16001 | D128: Inspection & Assessm | E128: 17.02.2024 | F128: 19.02.2024 | G128: 4012895 | H128: Feb24 Storm Costs NetOps PC 12014 | I128: 4012895/0010 | J128: Feb24 Storm Timesheet Dx 12014 | K128: 4012895 | L128: 4012895 | M128: 0010 | N128: 1000/AINSPO | O128: Asset Inspector OT | P128: HX-0014297 | Q128: Storm Emergency_Feb24 OPEX | R128: HX-0014297-1 | S128: Feb24 Storm Costs NetOps PC 12014 | T128: 9999 | U128: INTERNAL COST CAPTURE | V128: 1000/11000 | W128: Sweep Profit Centre | X128: 850 | Y128: Overtime | Z128: 1000/# | AA128: 1000/Not assigned | AB128: 6 | AE128: 617.16
A129: 10000744 | B129: Lachlan McCoy | C129: 1000/13263 | D129: Transmission Control | E129: 14.02.2024 | F129: 20.03.2024 | G129: 4012895 | H129: Feb24 Storm Costs NetOps PC 12014 | I129: 4012895/0020 | J129: Feb24 Storm Timesheet Tx 12014 | K129: 4012895 | L129: 4012895 | M129: 0020 | N129: 1000/CMNGAO | O129: 1000/CMNGAO | P129: HX-0014297 | Q129: Storm Emergency_Feb24 OPEX | R129: HX-0014297-1 | S129: Feb24 Storm Costs NetOps PC 12014 | T129: 9999 | U129: INTERNAL COST CAPTURE | V129: 1000/11000 | W129: Sweep Profit Centre | X129: 850 | Y129: Overtime | Z129: 1000/# | AA129: 1000/Not assigned | AB129: 12 | AE129: 2646.72
A130: 10000744 | B130: Lachlan McCoy | C130: 1000/13263 | D130: Transmission Control | E130: 15.02.2024 | F130: 20.03.2024 | G130: 4012895 | H130: Feb24 Storm Costs NetOps PC 12014 | I130: 4012895/0020 | J130: Feb24 Storm Timesheet Tx 12014 | K130: 4012895 | L130: 4012895 | M130: 0020 | N130: 1000/CMNGAO | O130: 1000/CMNGAO | P130: HX-0014297 | Q130: Storm Emergency_Feb24 OPEX | R130: HX-0014297-1 | S130: Feb24 Storm Costs NetOps PC 12014 | T130: 9999 | U130: INTERNAL COST CAPTURE | V130: 1000/11000 | W130: Sweep Profit Centre | X130: 850 | Y130: Overtime | Z130: 1000/# | AA130: 1000/Not assigned | AB130: 12 | AE130: 2646.72
A131: 10000747 | B131: Matt Lord | C131: 1000/16001 | D131: Inspection & Assessm | E131: 15.02.2024 | F131: 23.02.2024 | G131: 4012895 | H131: Feb24 Storm Costs NetOps PC 12014 | I131: 4012895/0040 | J131: Feb24 Storm Purchases Orders Dx 12014 | K131: 4012895 | L131: 4012895 | M131: 0040 | N131: 1000/AINSPN | O131: Asset Inspector NT | P131: HX-0014297 | Q131: Storm Emergency_Feb24 OPEX | R131: HX-0014297-1 | S131: Feb24 Storm Costs NetOps PC 12014 | T131: 9999 | U131: INTERNAL COST CAPTURE | V131: 1000/11000 | W131: Sweep Profit Centre | X131: 800 | Y131: Normal Time | Z131: 1000/# | AA131: 1000/Not assigned | AB131: 8 | AE131: 570.48
A132: 10000847 | B132: Brendan West | C132: 1000/16001 | D132: Inspection & Assessm | E132: 15.02.2024 | F132: 21.02.2024 | G132: 4012895 | H132: Feb24 Storm Costs NetOps PC 12014 | I132: 4012895/0010 | J132: Feb24 Storm Timesheet Dx 12014 | K132: 4012895 | L132: 4012895 | M132: 0010 | N132: 1000/AINSPN | O132: Asset Inspector NT | P132: HX-0014297 | Q132: Storm Emergency_Feb24 OPEX | R132: HX-0014297-1 | S132: Feb24 Storm Costs NetOps PC 12014 | T132: 9999 | U132: INTERNAL COST CAPTURE | V132: 1000/11000 | W132: Sweep Profit Centre | X132: 800 | Y132: Normal Time | Z132: 1000/# | AA132: 1000/Not assigned | AB132: 8 | AE132: 570.48
A133: 10000847 | B133: Brendan West | C133: 1000/16001 | D133: Inspection & Assessm | E133: 15.02.2024 | F133: 21.02.2024 | G133: 4012895 | H133: Feb24 Storm Costs NetOps PC 12014 | I133: 4012895/0010 | J133: Feb24 Storm Timesheet Dx 12014 | K133: 4012895 | L133: 4012895 | M133: 0010 | N133: 1000/AINSPO | O133: Asset Inspector OT | P133: HX-0014297 | Q133: Storm Emergency_Feb24 OPEX | R133: HX-0014297-1 | S133: Feb24 Storm Costs NetOps PC 12014 | T133: 9999 | U133: INTERNAL COST CAPTURE | V133: 1000/11000 | W133: Sweep Profit Centre | X133: 850 | Y133: Overtime | Z133: 1000/# | AA133: 1000/Not assigned | AB133: 4 | AE133: 411.44
A134: 10000847 | B134: Brendan West | C134: 1000/16001 | D134: Inspection & Assessm | E134: 16.02.2024 | F134: 21.02.2024 | G134: 4012895 | H134: Feb24 Storm Costs NetOps PC 12014 | I134: 4012895/0010 | J134: Feb24 Storm Timesheet Dx 12014 | K134: 4012895 | L134: 4012895 | M134: 0010 | N134: 1000/AINSPN | O134: Asset Inspector NT | P134: HX-0014297 | Q134: Storm Emergency_Feb24 OPEX | R134: HX-0014297-1 | S134: Feb24 Storm Costs NetOps PC 12014 | T134: 9999 | U134: INTERNAL COST CAPTURE | V134: 1000/11000 | W134: Sweep Profit Centre | X134: 800 | Y134: Normal Time | Z134: 1000/# | AA134: 1000/Not assigned | AB134: 8 | AE134: 570.48
A135: 10000847 | B135: Brendan West | C135: 1000/16001 | D135: Inspection & Assessm | E135: 16.02.2024 | F135: 21.02.2024 | G135: 4012895 | H135: Feb24 Storm Costs NetOps PC 12014 | I135: 4012895/0010 | J135: Feb24 Storm Timesheet Dx 12014 | K135: 4012895 | L135: 4012895 | M135: 0010 | N135: 1000/AINSPO | O135: Asset Inspector OT | P135: HX-0014297 | Q135: Storm Emergency_Feb24 OPEX | R135: HX-0014297-1 | S135: Feb24 Storm Costs NetOps PC 12014 | T135: 9999 | U135: INTERNAL COST CAPTURE | V135: 1000/11000 | W135: Sweep Profit Centre | X135: 850 | Y135: Overtime | Z135: 1000/# | AA135: 1000/Not assigned | AB135: 3 | AE135: 308.58
A136: 10000868 | B136: Peter Quinn | C136: 1000/13332 | D136: Customer Central | E136: 13.02.2024 | F136: 08.03.2024 | G136: 4012895 | H136: Feb24 Storm Costs NetOps PC 12014 | I136: 4012895/0010 | J136: Feb24 Storm Timesheet Dx 12014 | K136: 4012895 | L136: 4012895 | M136: 0010 | N136: 1000/CMNGAN | O136: 1000/CMNGAN | P136: HX-0014297 | Q136: Storm Emergency_Feb24 OPEX | R136: HX-0014297-1 | S136: Feb24 Storm Costs NetOps PC 12014 | T136: 9999 | U136: INTERNAL COST CAPTURE | V136: 1000/11000 | W136: Sweep Profit Centre | X136: 800 | Y136: Normal Time | Z136: 1000/# | AA136: 1000/Not assigned | AB136: 1 | AE136: 152.92
A137: 10000868 | B137: Peter Quinn | C137: 1000/13332 | D137: Customer Central | E137: 13.02.2024 | F137: 08.03.2024 | G137: 4012895 | H137: Feb24 Storm Costs NetOps PC 12014 | I137: 4012895/0010 | J137: Feb24 Storm Timesheet Dx 12014 | K137: 4012895 | L137: 4012895 | M137: 0010 | N137: 1000/CMNGAO | O137: 1000/CMNGAO | P137: HX-0014297 | Q137: Storm Emergency_Feb24 OPEX | R137: HX-0014297-1 | S137: Feb24 Storm Costs NetOps PC 12014 | T137: 9999 | U137: INTERNAL COST CAPTURE | V137: 1000/11000 | W137: Sweep Profit Centre | X137: 850 | Y137: Overtime | Z137: 1000/# | AA137: 1000/Not assigned | AB137: 9 | AE137: 1985.04
A138: 10000868 | B138: Peter Quinn | C138: 1000/13332 | D138: Customer Central | E138: 14.02.2024 | F138: 08.03.2024 | G138: 4012895 | H138: Feb24 Storm Costs NetOps PC 12014 | I138: 4012895/0010 | J138: Feb24 Storm Timesheet Dx 12014 | K138: 4012895 | L138: 4012895 | M138: 0010 | N138: 1000/CMNGAN | O138: 1000/CMNGAN | P138: HX-0014297 | Q138: Storm Emergency_Feb24 OPEX | R138: HX-0014297-1 | S138: Feb24 Storm Costs NetOps PC 12014 | T138: 9999 | U138: INTERNAL COST CAPTURE | V138: 1000/11000 | W138: Sweep Profit Centre | X138: 800 | Y138: Normal Time | Z138: 1000/# | AA138: 1000/Not assigned | AB138: 7.5 | AE138: 1146.9
A139: 10000868 | B139: Peter Quinn | C139: 1000/13332 | D139: Customer Central | E139: 14.02.2024 | F139: 08.03.2024 | G139: 4012895 | H139: Feb24 Storm Costs NetOps PC 12014 | I139: 4012895/0010 | J139: Feb24 Storm Timesheet Dx 12014 | K139: 4012895 | L139: 4012895 | M139: 0010 | N139: 1000/CMNGAO | O139: 1000/CMNGAO | P139: HX-0014297 | Q139: Storm Emergency_Feb24 OPEX | R139: HX-0014297-1 | S139: Feb24 Storm Costs NetOps PC 12014 | T139: 9999 | U139: INTERNAL COST CAPTURE | V139: 1000/11000 | W139: Sweep Profit Centre | X139: 850 | Y139: Overtime | Z139: 1000/# | AA139: 1000/Not assigned | AB139: 6 | AE139: 1323.36
A140: 10000868 | B140: Peter Quinn | C140: 1000/13332 | D140: Customer Central | E140: 15.02.2024 | F140: 08.03.2024 | G140: 4012895 | H140: Feb24 Storm Costs NetOps PC 12014 | I140: 4012895/0010 | J140: Feb24 Storm Timesheet Dx 12014 | K140: 4012895 | L140: 4012895 | M140: 0010 | N140: 1000/CMNGAN | O140: 1000/CMNGAN | P140: HX-0014297 | Q140: Storm Emergency_Feb24 OPEX | R140: HX-0014297-1 | S140: Feb24 Storm Costs NetOps PC 12014 | T140: 9999 | U140: INTERNAL COST CAPTURE | V140: 1000/11000 | W140: Sweep Profit Centre | X140: 800 | Y140: Normal Time | Z140: 1000/# | AA140: 1000/Not assigned | AB140: 7.5 | AE140: 1146.9
A141: 10000868 | B141: Peter Quinn | C141: 1000/13332 | D141: Customer Central | E141: 16.02.2024 | F141: 08.03.2024 | G141: 4012895 | H141: Feb24 Storm Costs NetOps PC 12014 | I141: 4012895/0010 | J141: Feb24 Storm Timesheet Dx 12014 | K141: 4012895 | L141: 4012895 | M141: 0010 | N141: 1000/CMNGAN | O141: 1000/CMNGAN | P141: HX-0014297 | Q141: Storm Emergency_Feb24 OPEX | R141: HX-0014297-1 | S141: Feb24 Storm Costs NetOps PC 12014 | T141: 9999 | U141: INTERNAL COST CAPTURE | V141: 1000/11000 | W141: Sweep Profit Centre | X141: 800 | Y141: Normal Time | Z141: 1000/# | AA141: 1000/Not assigned | AB141: 7.5 | AE141: 1146.9
A142: 10000868 | B142: Peter Quinn | C142: 1000/13332 | D142: Customer Central | E142: 16.02.2024 | F142: 08.03.2024 | G142: 4012895 | H142: Feb24 Storm Costs NetOps PC 12014 | I142: 4012895/0010 | J142: Feb24 Storm Timesheet Dx 12014 | K142: 4012895 | L142: 4012895 | M142: 0010 | N142: 1000/CMNGAO | O142: 1000/CMNGAO | P142: HX-0014297 | Q142: Storm Emergency_Feb24 OPEX | R142: HX-0014297-1 | S142: Feb24 Storm Costs NetOps PC 12014 | T142: 9999 | U142: INTERNAL COST CAPTURE | V142: 1000/11000 | W142: Sweep Profit Centre | X142: 850 | Y142: Overtime | Z142: 1000/# | AA142: 1000/Not assigned | AB142: 7 | AE142: 1543.92
A143: 10000868 | B143: Peter Quinn | C143: 1000/13332 | D143: Customer Central | E143: 17.02.2024 | F143: 08.03.2024 | G143: 4012895 | H143: Feb24 Storm Costs NetOps PC 12014 | I143: 4012895/0010 | J143: Feb24 Storm Timesheet Dx 12014 | K143: 4012895 | L143: 4012895 | M143: 0010 | N143: 1000/CMNGAO | O143: 1000/CMNGAO | P143: HX-0014297 | Q143: Storm Emergency_Feb24 OPEX | R143: HX-0014297-1 | S143: Feb24 Storm Costs NetOps PC 12014 | T143: 9999 | U143: INTERNAL COST CAPTURE | V143: 1000/11000 | W143: Sweep Profit Centre | X143: 850 | Y143: Overtime | Z143: 1000/# | AA143: 1000/Not assigned | AB143: 7 | AE143: 1543.92
A144: 10000886 | B144: Luke Hubben | C144: 1000/16002 | D144: Programs Planning & | E144: 15.02.2024 | F144: 23.02.2024 | G144: 4012895 | H144: Feb24 Storm Costs NetOps PC 12014 | I144: 4012895/0010 | J144: Feb24 Storm Timesheet Dx 12014 | K144: 4012895 | L144: 4012895 | M144: 0010 | N144: 1000/CPSPAN | O144: 1000/CPSPAN | P144: HX-0014297 | Q144: Storm Emergency_Feb24 OPEX | R144: HX-0014297-1 | S144: Feb24 Storm Costs NetOps PC 12014 | T144: 9999 | U144: INTERNAL COST CAPTURE | V144: 1000/11000 | W144: Sweep Profit Centre | X144: 800 | Y144: Normal Time | Z144: 1000/# | AA144: 1000/Not assigned | AB144: 9 | AE144: 925.02
A145: 10000886 | B145: Luke Hubben | C145: 1000/16002 | D145: Programs Planning & | E145: 16.02.2024 | F145: 23.02.2024 | G145: 4012895 | H145: Feb24 Storm Costs NetOps PC 12014 | I145: 4012895/0010 | J145: Feb24 Storm Timesheet Dx 12014 | K145: 4012895 | L145: 4012895 | M145: 0010 | N145: 1000/CPSPAN | O145: 1000/CPSPAN | P145: HX-0014297 | Q145: Storm Emergency_Feb24 OPEX | R145: HX-0014297-1 | S145: Feb24 Storm Costs NetOps PC 12014 | T145: 9999 | U145: INTERNAL COST CAPTURE | V145: 1000/11000 | W145: Sweep Profit Centre | X145: 800 | Y145: Normal Time | Z145: 1000/# | AA145: 1000/Not assigned | AB145: 9 | AE145: 925.02
A146: 10000911 | B146: Shane Davidson | C146: 1000/16001 | D146: Inspection & Assessm | E146: 15.02.2024 | F146: 21.02.2024 | G146: 4012895 | H146: Feb24 Storm Costs NetOps PC 12014 | I146: 4012895/0040 | J146: Feb24 Storm Purchases Orders Dx 12014 | K146: 4012895 | L146: 4012895 | M146: 0040 | N146: 1000/AINSPN | O146: Asset Inspector NT | P146: HX-0014297 | Q146: Storm Emergency_Feb24 OPEX | R146: HX-0014297-1 | S146: Feb24 Storm Costs NetOps PC 12014 | T146: 9999 | U146: INTERNAL COST CAPTURE | V146: 1000/11000 | W146: Sweep Profit Centre | X146: 800 | Y146: Normal Time | Z146: 1000/# | AA146: 1000/Not assigned | AB146: 8 | AE146: 570.48
A147: 10000911 | B147: Shane Davidson | C147: 1000/16001 | D147: Inspection & Assessm | E147: 15.02.2024 | F147: 21.02.2024 | G147: 4012895 | H147: Feb24 Storm Costs NetOps PC 12014 | I147: 4012895/0040 | J147: Feb24 Storm Purchases Orders Dx 12014 | K147: 4012895 | L147: 4012895 | M147: 0040 | N147: 1000/AINSPO | O147: Asset Inspector OT | P147: HX-0014297 | Q147: Storm Emergency_Feb24 OPEX | R147: HX-0014297-1 | S147: Feb24 Storm Costs NetOps PC 12014 | T147: 9999 | U147: INTERNAL COST CAPTURE | V147: 1000/11000 | W147: Sweep Profit Centre | X147: 850 | Y147: Overtime | Z147: 1000/# | AA147: 1000/Not assigned | AB147: 1 | AE147: 102.86
A148: 10000921 | B148: Gavin Bickery | C148: 1000/16001 | D148: Inspection & Assessm | E148: 16.02.2024 | F148: 19.02.2024 | G148: 4012895 | H148: Feb24 Storm Costs NetOps PC 12014 | I148: 4012895/0010 | J148: Feb24 Storm Timesheet Dx 12014 | K148: 4012895 | L148: 4012895 | M148: 0010 | N148: 1000/AINSPN | O148: Asset Inspector NT | P148: HX-0014297 | Q148: Storm Emergency_Feb24 OPEX | R148: HX-0014297-1 | S148: Feb24 Storm Costs NetOps PC 12014 | T148: 9999 | U148: INTERNAL COST CAPTURE | V148: 1000/11000 | W148: Sweep Profit Centre | X148: 800 | Y148: Normal Time | Z148: 1000/# | AA148: 1000/Not assigned | AB148: 8 | AE148: 570.48
A149: 10000921 | B149: Gavin Bickery | C149: 1000/16001 | D149: Inspection & Assessm | E149: 16.02.2024 | F149: 19.02.2024 | G149: 4012895 | H149: Feb24 Storm Costs NetOps PC 12014 | I149: 4012895/0010 | J149: Feb24 Storm Timesheet Dx 12014 | K149: 4012895 | L149: 4012895 | M149: 0010 | N149: 1000/AINSPO | O149: Asset Inspector OT | P149: HX-0014297 | Q149: Storm Emergency_Feb24 OPEX | R149: HX-0014297-1 | S149: Feb24 Storm Costs NetOps PC 12014 | T149: 9999 | U149: INTERNAL COST CAPTURE | V149: 1000/11000 | W149: Sweep Profit Centre | X149: 850 | Y149: Overtime | Z149: 1000/# | AA149: 1000/Not assigned | AB149: 2.5 | AE149: 257.15
A150: 10000922 | B150: Jason Brickley | C150: 1000/16001 | D150: Inspection & Assessm | E150: 15.02.2024 | F150: 19.02.2024 | G150: 4012895 | H150: Feb24 Storm Costs NetOps PC 12014 | I150: 4012895/0010 | J150: Feb24 Storm Timesheet Dx 12014 | K150: 4012895 | L150: 4012895 | M150: 0010 | N150: 1000/AINSPN | O150: Asset Inspector NT | P150: HX-0014297 | Q150: Storm Emergency_Feb24 OPEX | R150: HX-0014297-1 | S150: Feb24 Storm Costs NetOps PC 12014 | T150: 9999 | U150: INTERNAL COST CAPTURE | V150: 1000/11000 | W150: Sweep Profit Centre | X150: 800 | Y150: Normal Time | Z150: 1000/# | AA150: 1000/Not assigned | AB150: 8 | AE150: 570.48
A151: 10000922 | B151: Jason Brickley | C151: 1000/16001 | D151: Inspection & Assessm | E151: 15.02.2024 | F151: 19.02.2024 | G151: 4012895 | H151: Feb24 Storm Costs NetOps PC 12014 | I151: 4012895/0010 | J151: Feb24 Storm Timesheet Dx 12014 | K151: 4012895 | L151: 4012895 | M151: 0010 | N151: 1000/AINSPO | O151: Asset Inspector OT | P151: HX-0014297 | Q151: Storm Emergency_Feb24 OPEX | R151: HX-0014297-1 | S151: Feb24 Storm Costs NetOps PC 12014 | T151: 9999 | U151: INTERNAL COST CAPTURE | V151: 1000/11000 | W151: Sweep Profit Centre | X151: 850 | Y151: Overtime | Z151: 1000/# | AA151: 1000/Not assigned | AB151: 2.5 | AE151: 257.15
A152: 10000922 | B152: Jason Brickley | C152: 1000/16001 | D152: Inspection & Assessm | E152: 16.02.2024 | F152: 19.02.2024 | G152: 4012895 | H152: Feb24 Storm Costs NetOps PC 12014 | I152: 4012895/0010 | J152: Feb24 Storm Timesheet Dx 12014 | K152: 4012895 | L152: 4012895 | M152: 0010 | N152: 1000/AINSPN | O152: Asset Inspector NT | P152: HX-0014297 | Q152: Storm Emergency_Feb24 OPEX | R152: HX-0014297-1 | S152: Feb24 Storm Costs NetOps PC 12014 | T152: 9999 | U152: INTERNAL COST CAPTURE | V152: 1000/11000 | W152: Sweep Profit Centre | X152: 800 | Y152: Normal Time | Z152: 1000/# | AA152: 1000/Not assigned | AB152: 8 | AE152: 570.48
A153: 10000922 | B153: Jason Brickley | C153: 1000/16001 | D153: Inspection & Assessm | E153: 16.02.2024 | F153: 19.02.2024 | G153: 4012895 | H153: Feb24 Storm Costs NetOps PC 12014 | I153: 4012895/0010 | J153: Feb24 Storm Timesheet Dx 12014 | K153: 4012895 | L153: 4012895 | M153: 0010 | N153: 1000/AINSPO | O153: Asset Inspector OT | P153: HX-0014297 | Q153: Storm Emergency_Feb24 OPEX | R153: HX-0014297-1 | S153: Feb24 Storm Costs NetOps PC 12014 | T153: 9999 | U153: INTERNAL COST CAPTURE | V153: 1000/11000 | W153: Sweep Profit Centre | X153: 850 | Y153: Overtime | Z153: 1000/# | AA153: 1000/Not assigned | AB153: 3.5 | AE153: 360.01
A154: 10000922 | B154: Jason Brickley | C154: 1000/16001 | D154: Inspection & Assessm | E154: 17.02.2024 | F154: 19.02.2024 | G154: 4012895 | H154: Feb24 Storm Costs NetOps PC 12014 | I154: 4012895/0010 | J154: Feb24 Storm Timesheet Dx 12014 | K154: 4012895 | L154: 4012895 | M154: 0010 | N154: 1000/AINSPO | O154: Asset Inspector OT | P154: HX-0014297 | Q154: Storm Emergency_Feb24 OPEX | R154: HX-0014297-1 | S154: Feb24 Storm Costs NetOps PC 12014 | T154: 9999 | U154: INTERNAL COST CAPTURE | V154: 1000/11000 | W154: Sweep Profit Centre | X154: 850 | Y154: Overtime | Z154: 1000/# | AA154: 1000/Not assigned | AB154: 8 | AE154: 822.88
A155: 10000926 | B155: Jarrod Phillips | C155: 1000/16001 | D155: Inspection & Assessm | E155: 15.02.2024 | F155: 20.02.2024 | G155: 4012895 | H155: Feb24 Storm Costs NetOps PC 12014 | I155: 4012895/0010 | J155: Feb24 Storm Timesheet Dx 12014 | K155: 4012895 | L155: 4012895 | M155: 0010 | N155: 1000/AINSPN | O155: Asset Inspector NT | P155: HX-0014297 | Q155: Storm Emergency_Feb24 OPEX | R155: HX-0014297-1 | S155: Feb24 Storm Costs NetOps PC 12014 | T155: 9999 | U155: INTERNAL COST CAPTURE | V155: 1000/11000 | W155: Sweep Profit Centre | X155: 800 | Y155: Normal Time | Z155: 1000/# | AA155: 1000/Not assigned | AB155: 8 | AE155: 570.48
A156: 10000926 | B156: Jarrod Phillips | C156: 1000/16001 | D156: Inspection & Assessm | E156: 15.02.2024 | F156: 20.02.2024 | G156: 4012895 | H156: Feb24 Storm Costs NetOps PC 12014 | I156: 4012895/0010 | J156: Feb24 Storm Timesheet Dx 12014 | K156: 4012895 | L156: 4012895 | M156: 0010 | N156: 1000/AINSPO | O156: Asset Inspector OT | P156: HX-0014297 | Q156: Storm Emergency_Feb24 OPEX | R156: HX-0014297-1 | S156: Feb24 Storm Costs NetOps PC 12014 | T156: 9999 | U156: INTERNAL COST CAPTURE | V156: 1000/11000 | W156: Sweep Profit Centre | X156: 850 | Y156: Overtime | Z156: 1000/# | AA156: 1000/Not assigned | AB156: 1 | AE156: 102.86
A157: 10000926 | B157: Jarrod Phillips | C157: 1000/16001 | D157: Inspection & Assessm | E157: 16.02.2024 | F157: 20.02.2024 | G157: 4012895 | H157: Feb24 Storm Costs NetOps PC 12014 | I157: 4012895/0010 | J157: Feb24 Storm Timesheet Dx 12014 | K157: 4012895 | L157: 4012895 | M157: 0010 | N157: 1000/AINSPN | O157: Asset Inspector NT | P157: HX-0014297 | Q157: Storm Emergency_Feb24 OPEX | R157: HX-0014297-1 | S157: Feb24 Storm Costs NetOps PC 12014 | T157: 9999 | U157: INTERNAL COST CAPTURE | V157: 1000/11000 | W157: Sweep Profit Centre | X157: 800 | Y157: Normal Time | Z157: 1000/# | AA157: 1000/Not assigned | AB157: 5 | AE157: 356.55
A158: 10000949 | B158: Jade Marshall | C158: 1000/16001 | D158: Inspection & Assessm | E158: 15.02.2024 | F158: 20.02.2024 | G158: 4012895 | H158: Feb24 Storm Costs NetOps PC 12014 | I158: 4012895/0040 | J158: Feb24 Storm Purchases Orders Dx 12014 | K158: 4012895 | L158: 4012895 | M158: 0040 | N158: 1000/AINSPO | O158: Asset Inspector OT | P158: HX-0014297 | Q158: Storm Emergency_Feb24 OPEX | R158: HX-0014297-1 | S158: Feb24 Storm Costs NetOps PC 12014 | T158: 9999 | U158: INTERNAL COST CAPTURE | V158: 1000/11000 | W158: Sweep Profit Centre | X158: 850 | Y158: Overtime | Z158: 1000/# | AA158: 1000/Not assigned | AB158: 2 | AE158: 205.72
A159: 10000949 | B159: Jade Marshall | C159: 1000/16001 | D159: Inspection & Assessm | E159: 16.02.2024 | F159: 20.02.2024 | G159: 4012895 | H159: Feb24 Storm Costs NetOps PC 12014 | I159: 4012895/0040 | J159: Feb24 Storm Purchases Orders Dx 12014 | K159: 4012895 | L159: 4012895 | M159: 0040 | N159: 1000/AINSPN | O159: Asset Inspector NT | P159: HX-0014297 | Q159: Storm Emergency_Feb24 OPEX | R159: HX-0014297-1 | S159: Feb24 Storm Costs NetOps PC 12014 | T159: 9999 | U159: INTERNAL COST CAPTURE | V159: 1000/11000 | W159: Sweep Profit Centre | X159: 800 | Y159: Normal Time | Z159: 1000/# | AA159: 1000/Not assigned | AB159: 4.5 | AE159: 320.9
A160: 10001132 | B160: Paul Clarke | C160: 1000/16001 | D160: Inspection & Assessm | E160: 15.02.2024 | F160: 20.02.2024 | G160: 4012895 | H160: Feb24 Storm Costs NetOps PC 12014 | I160: 4012895/0040 | J160: Feb24 Storm Purchases Orders Dx 12014 | K160: 4012895 | L160: 4012895 | M160: 0040 | N160: 1000/CSUPHN | O160: 1000/CSUPHN | P160: HX-0014297 | Q160: Storm Emergency_Feb24 OPEX | R160: HX-0014297-1 | S160: Feb24 Storm Costs NetOps PC 12014 | T160: 9999 | U160: INTERNAL COST CAPTURE | V160: 1000/11000 | W160: Sweep Profit Centre | X160: 800 | Y160: Normal Time | Z160: 1000/# | AA160: 1000/Not assigned | AB160: 5 | AE160: 372.55
A161: 10001155 | B161: Alanna Pollock | C161: 1000/13031 | D161: Operations Optimisat | E161: 13.02.2024 | F161: 26.02.2024 | G161: 4012895 | H161: Feb24 Storm Costs NetOps PC 12014 | I161: 4012895/0010 | J161: Feb24 Storm Timesheet Dx 12014 | K161: 4012895 | L161: 4012895 | M161: 0010 | N161: 1000/CPSVAO | O161: 1000/CPSVAO | P161: HX-0014297 | Q161: Storm Emergency_Feb24 OPEX | R161: HX-0014297-1 | S161: Feb24 Storm Costs NetOps PC 12014 | T161: 9999 | U161: INTERNAL COST CAPTURE | V161: 1000/11000 | W161: Sweep Profit Centre | X161: 850 | Y161: Overtime | Z161: 1000/# | AA161: 1000/Not assigned | AB161: 4.5 | AE161: 883.4
A162: 10001155 | B162: Alanna Pollock | C162: 1000/13031 | D162: Operations Optimisat | E162: 14.02.2024 | F162: 26.02.2024 | G162: 4012895 | H162: Feb24 Storm Costs NetOps PC 12014 | I162: 4012895/0010 | J162: Feb24 Storm Timesheet Dx 12014 | K162: 4012895 | L162: 4012895 | M162: 0010 | N162: 1000/CPSVAN | O162: 1000/CPSVAN | P162: HX-0014297 | Q162: Storm Emergency_Feb24 OPEX | R162: HX-0014297-1 | S162: Feb24 Storm Costs NetOps PC 12014 | T162: 9999 | U162: INTERNAL COST CAPTURE | V162: 1000/11000 | W162: Sweep Profit Centre | X162: 800 | Y162: Normal Time | Z162: 1000/# | AA162: 1000/Not assigned | AB162: 8 | AE162: 1020.72
A163: 10001155 | B163: Alanna Pollock | C163: 1000/13031 | D163: Operations Optimisat | E163: 14.02.2024 | F163: 26.02.2024 | G163: 4012895 | H163: Feb24 Storm Costs NetOps PC 12014 | I163: 4012895/0010 | J163: Feb24 Storm Timesheet Dx 12014 | K163: 4012895 | L163: 4012895 | M163: 0010 | N163: 1000/CPSVAO | O163: 1000/CPSVAO | P163: HX-0014297 | Q163: Storm Emergency_Feb24 OPEX | R163: HX-0014297-1 | S163: Feb24 Storm Costs NetOps PC 12014 | T163: 9999 | U163: INTERNAL COST CAPTURE | V163: 1000/11000 | W163: Sweep Profit Centre | X163: 850 | Y163: Overtime | Z163: 1000/# | AA163: 1000/Not assigned | AB163: 6 | AE163: 1177.86
A164: 10001155 | B164: Alanna Pollock | C164: 1000/13031 | D164: Operations Optimisat | E164: 15.02.2024 | F164: 26.02.2024 | G164: 4012895 | H164: Feb24 Storm Costs NetOps PC 12014 | I164: 4012895/0010 | J164: Feb24 Storm Timesheet Dx 12014 | K164: 4012895 | L164: 4012895 | M164: 0010 | N164: 1000/CPSVAN | O164: 1000/CPSVAN | P164: HX-0014297 | Q164: Storm Emergency_Feb24 OPEX | R164: HX-0014297-1 | S164: Feb24 Storm Costs NetOps PC 12014 | T164: 9999 | U164: INTERNAL COST CAPTURE | V164: 1000/11000 | W164: Sweep Profit Centre | X164: 800 | Y164: Normal Time | Z164: 1000/# | AA164: 1000/Not assigned | AB164: 8 | AE164: 1020.72
A165: 10001155 | B165: Alanna Pollock | C165: 1000/13031 | D165: Operations Optimisat | E165: 15.02.2024 | F165: 26.02.2024 | G165: 4012895 | H165: Feb24 Storm Costs NetOps PC 12014 | I165: 4012895/0010 | J165: Feb24 Storm Timesheet Dx 12014 | K165: 4012895 | L165: 4012895 | M165: 0010 | N165: 1000/CPSVAO | O165: 1000/CPSVAO | P165: HX-0014297 | Q165: Storm Emergency_Feb24 OPEX | R165: HX-0014297-1 | S165: Feb24 Storm Costs NetOps PC 12014 | T165: 9999 | U165: INTERNAL COST CAPTURE | V165: 1000/11000 | W165: Sweep Profit Centre | X165: 850 | Y165: Overtime | Z165: 1000/# | AA165: 1000/Not assigned | AB165: 5 | AE165: 981.55
A166: 10001155 | B166: Alanna Pollock | C166: 1000/13031 | D166: Operations Optimisat | E166: 16.02.2024 | F166: 26.02.2024 | G166: 4012895 | H166: Feb24 Storm Costs NetOps PC 12014 | I166: 4012895/0010 | J166: Feb24 Storm Timesheet Dx 12014 | K166: 4012895 | L166: 4012895 | M166: 0010 | N166: 1000/CPSVAN | O166: 1000/CPSVAN | P166: HX-0014297 | Q166: Storm Emergency_Feb24 OPEX | R166: HX-0014297-1 | S166: Feb24 Storm Costs NetOps PC 12014 | T166: 9999 | U166: INTERNAL COST CAPTURE | V166: 1000/11000 | W166: Sweep Profit Centre | X166: 800 | Y166: Normal Time | Z166: 1000/# | AA166: 1000/Not assigned | AB166: 8 | AE166: 1020.72
A167: 10001155 | B167: Alanna Pollock | C167: 1000/13031 | D167: Operations Optimisat | E167: 16.02.2024 | F167: 26.02.2024 | G167: 4012895 | H167: Feb24 Storm Costs NetOps PC 12014 | I167: 4012895/0010 | J167: Feb24 Storm Timesheet Dx 12014 | K167: 4012895 | L167: 4012895 | M167: 0010 | N167: 1000/CPSVAO | O167: 1000/CPSVAO | P167: HX-0014297 | Q167: Storm Emergency_Feb24 OPEX | R167: HX-0014297-1 | S167: Feb24 Storm Costs NetOps PC 12014 | T167: 9999 | U167: INTERNAL COST CAPTURE | V167: 1000/11000 | W167: Sweep Profit Centre | X167: 850 | Y167: Overtime | Z167: 1000/# | AA167: 1000/Not assigned | AB167: 5 | AE167: 981.55
A168: 10001155 | B168: Alanna Pollock | C168: 1000/13031 | D168: Operations Optimisat | E168: 17.02.2024 | F168: 26.02.2024 | G168: 4012895 | H168: Feb24 Storm Costs NetOps PC 12014 | I168: 4012895/0010 | J168: Feb24 Storm Timesheet Dx 12014 | K168: 4012895 | L168: 4012895 | M168: 0010 | N168: 1000/CPSVAO | O168: 1000/CPSVAO | P168: HX-0014297 | Q168: Storm Emergency_Feb24 OPEX | R168: HX-0014297-1 | S168: Feb24 Storm Costs NetOps PC 12014 | T168: 9999 | U168: INTERNAL COST CAPTURE | V168: 1000/11000 | W168: Sweep Profit Centre | X168: 850 | Y168: Overtime | Z168: 1000/# | AA168: 1000/Not assigned | AB168: 8 | AE168: 1570.48
A169: 10001155 | B169: Alanna Pollock | C169: 1000/13031 | D169: Operations Optimisat | E169: 18.02.2024 | F169: 26.02.2024 | G169: 4012895 | H169: Feb24 Storm Costs NetOps PC 12014 | I169: 4012895/0010 | J169: Feb24 Storm Timesheet Dx 12014 | K169: 4012895 | L169: 4012895 | M169: 0010 | N169: 1000/CPSVAO | O169: 1000/CPSVAO | P169: HX-0014297 | Q169: Storm Emergency_Feb24 OPEX | R169: HX-0014297-1 | S169: Feb24 Storm Costs NetOps PC 12014 | T169: 9999 | U169: INTERNAL COST CAPTURE | V169: 1000/11000 | W169: Sweep Profit Centre | X169: 850 | Y169: Overtime | Z169: 1000/# | AA169: 1000/Not assigned | AB169: 8 | AE169: 1570.48
A170: 10001155 | B170: Alanna Pollock | C170: 1000/13031 | D170: Operations Optimisat | E170: 19.02.2024 | F170: 26.02.2024 | G170: 4012895 | H170: Feb24 Storm Costs NetOps PC 12014 | I170: 4012895/0010 | J170: Feb24 Storm Timesheet Dx 12014 | K170: 4012895 | L170: 4012895 | M170: 0010 | N170: 1000/CPSVAN | O170: 1000/CPSVAN | P170: HX-0014297 | Q170: Storm Emergency_Feb24 OPEX | R170: HX-0014297-1 | S170: Feb24 Storm Costs NetOps PC 12014 | T170: 9999 | U170: INTERNAL COST CAPTURE | V170: 1000/11000 | W170: Sweep Profit Centre | X170: 800 | Y170: Normal Time | Z170: 1000/# | AA170: 1000/Not assigned | AB170: 9 | AE170: 1020.69
A171: 10001155 | B171: Alanna Pollock | C171: 1000/13031 | D171: Operations Optimisat | E171: 20.02.2024 | F171: 26.02.2024 | G171: 4012895 | H171: Feb24 Storm Costs NetOps PC 12014 | I171: 4012895/0010 | J171: Feb24 Storm Timesheet Dx 12014 | K171: 4012895 | L171: 4012895 | M171: 0010 | N171: 1000/CPSVAN | O171: 1000/CPSVAN | P171: HX-0014297 | Q171: Storm Emergency_Feb24 OPEX | R171: HX-0014297-1 | S171: Feb24 Storm Costs NetOps PC 12014 | T171: 9999 | U171: INTERNAL COST CAPTURE | V171: 1000/11000 | W171: Sweep Profit Centre | X171: 800 | Y171: Normal Time | Z171: 1000/# | AA171: 1000/Not assigned | AB171: 11.5 | AE171: 1020.74
A172: 10001155 | B172: Alanna Pollock | C172: 1000/13031 | D172: Operations Optimisat | E172: 22.02.2024 | F172: 26.02.2024 | G172: 4012895 | H172: Feb24 Storm Costs NetOps PC 12014 | I172: 4012895/0010 | J172: Feb24 Storm Timesheet Dx 12014 | K172: 4012895 | L172: 4012895 | M172: 0010 | N172: 1000/CPSVAN | O172: 1000/CPSVAN | P172: HX-0014297 | Q172: Storm Emergency_Feb24 OPEX | R172: HX-0014297-1 | S172: Feb24 Storm Costs NetOps PC 12014 | T172: 9999 | U172: INTERNAL COST CAPTURE | V172: 1000/11000 | W172: Sweep Profit Centre | X172: 800 | Y172: Normal Time | Z172: 1000/# | AA172: 1000/Not assigned | AB172: 8 | AE172: 1020.72
A173: 10001155 | B173: Alanna Pollock | C173: 1000/13031 | D173: Operations Optimisat | E173: 22.02.2024 | F173: 26.02.2024 | G173: 4012895 | H173: Feb24 Storm Costs NetOps PC 12014 | I173: 4012895/0010 | J173: Feb24 Storm Timesheet Dx 12014 | K173: 4012895 | L173: 4012895 | M173: 0010 | N173: 1000/CPSVAO | O173: 1000/CPSVAO | P173: HX-0014297 | Q173: Storm Emergency_Feb24 OPEX | R173: HX-0014297-1 | S173: Feb24 Storm Costs NetOps PC 12014 | T173: 9999 | U173: INTERNAL COST CAPTURE | V173: 1000/11000 | W173: Sweep Profit Centre | X173: 850 | Y173: Overtime | Z173: 1000/# | AA173: 1000/Not assigned | AB173: 3 | AE173: 588.93
A174: 10001155 | B174: Alanna Pollock | C174: 1000/13031 | D174: Operations Optimisat | E174: 23.02.2024 | F174: 26.02.2024 | G174: 4012895 | H174: Feb24 Storm Costs NetOps PC 12014 | I174: 4012895/0010 | J174: Feb24 Storm Timesheet Dx 12014 | K174: 4012895 | L174: 4012895 | M174: 0010 | N174: 1000/CPSVAN | O174: 1000/CPSVAN | P174: HX-0014297 | Q174: Storm Emergency_Feb24 OPEX | R174: HX-0014297-1 | S174: Feb24 Storm Costs NetOps PC 12014 | T174: 9999 | U174: INTERNAL COST CAPTURE | V174: 1000/11000 | W174: Sweep Profit Centre | X174: 800 | Y174: Normal Time | Z174: 1000/# | AA174: 1000/Not assigned | AB174: 8 | AE174: 1020.72
A175: 10001155 | B175: Alanna Pollock | C175: 1000/13031 | D175: Operations Optimisat | E175: 23.02.2024 | F175: 26.02.2024 | G175: 4012895 | H175: Feb24 Storm Costs NetOps PC 12014 | I175: 4012895/0010 | J175: Feb24 Storm Timesheet Dx 12014 | K175: 4012895 | L175: 4012895 | M175: 0010 | N175: 1000/CPSVAO | O175: 1000/CPSVAO | P175: HX-0014297 | Q175: Storm Emergency_Feb24 OPEX | R175: HX-0014297-1 | S175: Feb24 Storm Costs NetOps PC 12014 | T175: 9999 | U175: INTERNAL COST CAPTURE | V175: 1000/11000 | W175: Sweep Profit Centre | X175: 850 | Y175: Overtime | Z175: 1000/# | AA175: 1000/Not assigned | AB175: 2 | AE175: 392.62
A176: 10001170 | B176: Mark Snell | C176: 1000/12182 | D176: Health, Safety E & Q | E176: 14.02.2024 | F176: 19.02.2024 | G176: 4012895 | H176: Feb24 Storm Costs NetOps PC 12014 | I176: 4012895/0020 | J176: Feb24 Storm Timesheet Tx 12014 | K176: 4012895 | L176: 4012895 | M176: 0020 | N176: 1000/PMNGRN | O176: Project Manager NT | P176: HX-0014297 | Q176: Storm Emergency_Feb24 OPEX | R176: HX-0014297-1 | S176: Feb24 Storm Costs NetOps PC 12014 | T176: 9999 | U176: INTERNAL COST CAPTURE | V176: 1000/11000 | W176: Sweep Profit Centre | X176: 800 | Y176: Normal Time | Z176: 1000/# | AA176: 1000/Not assigned | AB176: 3 | AE176: 402.6
A177: 10001170 | B177: Mark Snell | C177: 1000/12182 | D177: Health, Safety E & Q | E177: 15.02.2024 | F177: 19.02.2024 | G177: 4012895 | H177: Feb24 Storm Costs NetOps PC 12014 | I177: 4012895/0020 | J177: Feb24 Storm Timesheet Tx 12014 | K177: 4012895 | L177: 4012895 | M177: 0020 | N177: 1000/PMNGRN | O177: Project Manager NT | P177: HX-0014297 | Q177: Storm Emergency_Feb24 OPEX | R177: HX-0014297-1 | S177: Feb24 Storm Costs NetOps PC 12014 | T177: 9999 | U177: INTERNAL COST CAPTURE | V177: 1000/11000 | W177: Sweep Profit Centre | X177: 800 | Y177: Normal Time | Z177: 1000/# | AA177: 1000/Not assigned | AB177: 2.5 | AE177: 335.5
A178: 10001174 | B178: Patrick Hide | C178: 1000/16001 | D178: Inspection & Assessm | E178: 15.02.2024 | F178: 19.02.2024 | G178: 4012895 | H178: Feb24 Storm Costs NetOps PC 12014 | I178: 4012895/0010 | J178: Feb24 Storm Timesheet Dx 12014 | K178: 4012895 | L178: 4012895 | M178: 0010 | N178: 1000/AINSPN | O178: Asset Inspector NT | P178: HX-0014297 | Q178: Storm Emergency_Feb24 OPEX | R178: HX-0014297-1 | S178: Feb24 Storm Costs NetOps PC 12014 | T178: 9999 | U178: INTERNAL COST CAPTURE | V178: 1000/11000 | W178: Sweep Profit Centre | X178: 800 | Y178: Normal Time | Z178: 1000/# | AA178: 1000/Not assigned | AB178: 4 | AE178: 285.24
A179: 10001176 | B179: Lucas Roberts | C179: 1000/16001 | D179: Inspection & Assessm | E179: 15.02.2024 | F179: 19.02.2024 | G179: 4012895 | H179: Feb24 Storm Costs NetOps PC 12014 | I179: 4012895/0010 | J179: Feb24 Storm Timesheet Dx 12014 | K179: 4012895 | L179: 4012895 | M179: 0010 | N179: 1000/AINSPN | O179: Asset Inspector NT | P179: HX-0014297 | Q179: Storm Emergency_Feb24 OPEX | R179: HX-0014297-1 | S179: Feb24 Storm Costs NetOps PC 12014 | T179: 9999 | U179: INTERNAL COST CAPTURE | V179: 1000/11000 | W179: Sweep Profit Centre | X179: 800 | Y179: Normal Time | Z179: 1000/# | AA179: 1000/Not assigned | AB179: 8 | AE179: 570.48
A180: 10001176 | B180: Lucas Roberts | C180: 1000/16001 | D180: Inspection & Assessm | E180: 15.02.2024 | F180: 19.02.2024 | G180: 4012895 | H180: Feb24 Storm Costs NetOps PC 12014 | I180: 4012895/0010 | J180: Feb24 Storm Timesheet Dx 12014 | K180: 4012895 | L180: 4012895 | M180: 0010 | N180: 1000/AINSPO | O180: Asset Inspector OT | P180: HX-0014297 | Q180: Storm Emergency_Feb24 OPEX | R180: HX-0014297-1 | S180: Feb24 Storm Costs NetOps PC 12014 | T180: 9999 | U180: INTERNAL COST CAPTURE | V180: 1000/11000 | W180: Sweep Profit Centre | X180: 850 | Y180: Overtime | Z180: 1000/# | AA180: 1000/Not assigned | AB180: 3 | AE180: 308.58
A181: 10001176 | B181: Lucas Roberts | C181: 1000/16001 | D181: Inspection & Assessm | E181: 16.02.2024 | F181: 19.02.2024 | G181: 4012895 | H181: Feb24 Storm Costs NetOps PC 12014 | I181: 4012895/0010 | J181: Feb24 Storm Timesheet Dx 12014 | K181: 4012895 | L181: 4012895 | M181: 0010 | N181: 1000/AINSPN | O181: Asset Inspector NT | P181: HX-0014297 | Q181: Storm Emergency_Feb24 OPEX | R181: HX-0014297-1 | S181: Feb24 Storm Costs NetOps PC 12014 | T181: 9999 | U181: INTERNAL COST CAPTURE | V181: 1000/11000 | W181: Sweep Profit Centre | X181: 800 | Y181: Normal Time | Z181: 1000/# | AA181: 1000/Not assigned | AB181: 8 | AE181: 570.48
A182: 10001176 | B182: Lucas Roberts | C182: 1000/16001 | D182: Inspection & Assessm | E182: 16.02.2024 | F182: 19.02.2024 | G182: 4012895 | H182: Feb24 Storm Costs NetOps PC 12014 | I182: 4012895/0010 | J182: Feb24 Storm Timesheet Dx 12014 | K182: 4012895 | L182: 4012895 | M182: 0010 | N182: 1000/AINSPO | O182: Asset Inspector OT | P182: HX-0014297 | Q182: Storm Emergency_Feb24 OPEX | R182: HX-0014297-1 | S182: Feb24 Storm Costs NetOps PC 12014 | T182: 9999 | U182: INTERNAL COST CAPTURE | V182: 1000/11000 | W182: Sweep Profit Centre | X182: 850 | Y182: Overtime | Z182: 1000/# | AA182: 1000/Not assigned | AB182: 4 | AE182: 411.44
A183: 10001200 | B183: Mathew Durack | C183: 1000/11517 | D183: Contract Manag Dist | E183: 14.02.2024 | F183: 23.02.2024 | G183: 4012895 | H183: Feb24 Storm Costs NetOps PC 12014 | I183: 4012895/0010 | J183: Feb24 Storm Timesheet Dx 12014 | K183: 4012895 | L183: 4012895 | M183: 0010 | N183: 1000/CPSPAN | O183: 1000/CPSPAN | P183: HX-0014297 | Q183: Storm Emergency_Feb24 OPEX | R183: HX-0014297-1 | S183: Feb24 Storm Costs NetOps PC 12014 | T183: 9999 | U183: INTERNAL COST CAPTURE | V183: 1000/11000 | W183: Sweep Profit Centre | X183: 800 | Y183: Normal Time | Z183: 1000/# | AA183: 1000/Not assigned | AB183: 8 | AE183: 925.04
A184: 10001200 | B184: Mathew Durack | C184: 1000/11517 | D184: Contract Manag Dist | E184: 14.02.2024 | F184: 23.02.2024 | G184: 4012895 | H184: Feb24 Storm Costs NetOps PC 12014 | I184: 4012895/0010 | J184: Feb24 Storm Timesheet Dx 12014 | K184: 4012895 | L184: 4012895 | M184: 0010 | N184: 1000/CPSPAO | O184: 1000/CPSPAO | P184: HX-0014297 | Q184: Storm Emergency_Feb24 OPEX | R184: HX-0014297-1 | S184: Feb24 Storm Costs NetOps PC 12014 | T184: 9999 | U184: INTERNAL COST CAPTURE | V184: 1000/11000 | W184: Sweep Profit Centre | X184: 850 | Y184: Overtime | Z184: 1000/# | AA184: 1000/Not assigned | AB184: 4 | AE184: 711.6
A185: 10001200 | B185: Mathew Durack | C185: 1000/11517 | D185: Contract Manag Dist | E185: 15.02.2024 | F185: 23.02.2024 | G185: 4012895 | H185: Feb24 Storm Costs NetOps PC 12014 | I185: 4012895/0010 | J185: Feb24 Storm Timesheet Dx 12014 | K185: 4012895 | L185: 4012895 | M185: 0010 | N185: 1000/CPSPAN | O185: 1000/CPSPAN | P185: HX-0014297 | Q185: Storm Emergency_Feb24 OPEX | R185: HX-0014297-1 | S185: Feb24 Storm Costs NetOps PC 12014 | T185: 9999 | U185: INTERNAL COST CAPTURE | V185: 1000/11000 | W185: Sweep Profit Centre | X185: 800 | Y185: Normal Time | Z185: 1000/# | AA185: 1000/Not assigned | AB185: 8 | AE185: 925.04
A186: 10001200 | B186: Mathew Durack | C186: 1000/11517 | D186: Contract Manag Dist | E186: 15.02.2024 | F186: 23.02.2024 | G186: 4012895 | H186: Feb24 Storm Costs NetOps PC 12014 | I186: 4012895/0010 | J186: Feb24 Storm Timesheet Dx 12014 | K186: 4012895 | L186: 4012895 | M186: 0010 | N186: 1000/CPSPAO | O186: 1000/CPSPAO | P186: HX-0014297 | Q186: Storm Emergency_Feb24 OPEX | R186: HX-0014297-1 | S186: Feb24 Storm Costs NetOps PC 12014 | T186: 9999 | U186: INTERNAL COST CAPTURE | V186: 1000/11000 | W186: Sweep Profit Centre | X186: 850 | Y186: Overtime | Z186: 1000/# | AA186: 1000/Not assigned | AB186: 4.5 | AE186: 800.55
A187: 10001200 | B187: Mathew Durack | C187: 1000/11517 | D187: Contract Manag Dist | E187: 16.02.2024 | F187: 23.02.2024 | G187: 4012895 | H187: Feb24 Storm Costs NetOps PC 12014 | I187: 4012895/0010 | J187: Feb24 Storm Timesheet Dx 12014 | K187: 4012895 | L187: 4012895 | M187: 0010 | N187: 1000/CPSPAN | O187: 1000/CPSPAN | P187: HX-0014297 | Q187: Storm Emergency_Feb24 OPEX | R187: HX-0014297-1 | S187: Feb24 Storm Costs NetOps PC 12014 | T187: 9999 | U187: INTERNAL COST CAPTURE | V187: 1000/11000 | W187: Sweep Profit Centre | X187: 800 | Y187: Normal Time | Z187: 1000/# | AA187: 1000/Not assigned | AB187: 8 | AE187: 925.04
A188: 10001200 | B188: Mathew Durack | C188: 1000/11517 | D188: Contract Manag Dist | E188: 16.02.2024 | F188: 23.02.2024 | G188: 4012895 | H188: Feb24 Storm Costs NetOps PC 12014 | I188: 4012895/0010 | J188: Feb24 Storm Timesheet Dx 12014 | K188: 4012895 | L188: 4012895 | M188: 0010 | N188: 1000/CPSPAO | O188: 1000/CPSPAO | P188: HX-0014297 | Q188: Storm Emergency_Feb24 OPEX | R188: HX-0014297-1 | S188: Feb24 Storm Costs NetOps PC 12014 | T188: 9999 | U188: INTERNAL COST CAPTURE | V188: 1000/11000 | W188: Sweep Profit Centre | X188: 850 | Y188: Overtime | Z188: 1000/# | AA188: 1000/Not assigned | AB188: 8 | AE188: 1423.2
A189: 10001200 | B189: Mathew Durack | C189: 1000/11517 | D189: Contract Manag Dist | E189: 17.02.2024 | F189: 23.02.2024 | G189: 4012895 | H189: Feb24 Storm Costs NetOps PC 12014 | I189: 4012895/0010 | J189: Feb24 Storm Timesheet Dx 12014 | K189: 4012895 | L189: 4012895 | M189: 0010 | N189: 1000/CPSPAO | O189: 1000/CPSPAO | P189: HX-0014297 | Q189: Storm Emergency_Feb24 OPEX | R189: HX-0014297-1 | S189: Feb24 Storm Costs NetOps PC 12014 | T189: 9999 | U189: INTERNAL COST CAPTURE | V189: 1000/11000 | W189: Sweep Profit Centre | X189: 850 | Y189: Overtime | Z189: 1000/# | AA189: 1000/Not assigned | AB189: 9.5 | AE189: 1690.05
A190: 10001200 | B190: Mathew Durack | C190: 1000/11517 | D190: Contract Manag Dist | E190: 18.02.2024 | F190: 23.02.2024 | G190: 4012895 | H190: Feb24 Storm Costs NetOps PC 12014 | I190: 4012895/0010 | J190: Feb24 Storm Timesheet Dx 12014 | K190: 4012895 | L190: 4012895 | M190: 0010 | N190: 1000/CPSPAO | O190: 1000/CPSPAO | P190: HX-0014297 | Q190: Storm Emergency_Feb24 OPEX | R190: HX-0014297-1 | S190: Feb24 Storm Costs NetOps PC 12014 | T190: 9999 | U190: INTERNAL COST CAPTURE | V190: 1000/11000 | W190: Sweep Profit Centre | X190: 850 | Y190: Overtime | Z190: 1000/# | AA190: 1000/Not assigned | AB190: 13.5 | AE190: 2401.65
A191: 10001200 | B191: Mathew Durack | C191: 1000/11517 | D191: Contract Manag Dist | E191: 19.02.2024 | F191: 06.03.2024 | G191: 4012895 | H191: Feb24 Storm Costs NetOps PC 12014 | I191: 4012895/0010 | J191: Feb24 Storm Timesheet Dx 12014 | K191: 4012895 | L191: 4012895 | M191: 0010 | N191: 1000/CPSPAN | O191: 1000/CPSPAN | P191: HX-0014297 | Q191: Storm Emergency_Feb24 OPEX | R191: HX-0014297-1 | S191: Feb24 Storm Costs NetOps PC 12014 | T191: 9999 | U191: INTERNAL COST CAPTURE | V191: 1000/11000 | W191: Sweep Profit Centre | X191: 800 | Y191: Normal Time | Z191: 1000/# | AA191: 1000/Not assigned | AB191: 8 | AE191: 925.04
A192: 10001200 | B192: Mathew Durack | C192: 1000/11517 | D192: Contract Manag Dist | E192: 19.02.2024 | F192: 06.03.2024 | G192: 4012895 | H192: Feb24 Storm Costs NetOps PC 12014 | I192: 4012895/0010 | J192: Feb24 Storm Timesheet Dx 12014 | K192: 4012895 | L192: 4012895 | M192: 0010 | N192: 1000/CPSPAO | O192: 1000/CPSPAO | P192: HX-0014297 | Q192: Storm Emergency_Feb24 OPEX | R192: HX-0014297-1 | S192: Feb24 Storm Costs NetOps PC 12014 | T192: 9999 | U192: INTERNAL COST CAPTURE | V192: 1000/11000 | W192: Sweep Profit Centre | X192: 850 | Y192: Overtime | Z192: 1000/# | AA192: 1000/Not assigned | AB192: 2.5 | AE192: 444.75
A193: 10001200 | B193: Mathew Durack | C193: 1000/11517 | D193: Contract Manag Dist | E193: 20.02.2024 | F193: 06.03.2024 | G193: 4012895 | H193: Feb24 Storm Costs NetOps PC 12014 | I193: 4012895/0010 | J193: Feb24 Storm Timesheet Dx 12014 | K193: 4012895 | L193: 4012895 | M193: 0010 | N193: 1000/CPSPAN | O193: 1000/CPSPAN | P193: HX-0014297 | Q193: Storm Emergency_Feb24 OPEX | R193: HX-0014297-1 | S193: Feb24 Storm Costs NetOps PC 12014 | T193: 9999 | U193: INTERNAL COST CAPTURE | V193: 1000/11000 | W193: Sweep Profit Centre | X193: 800 | Y193: Normal Time | Z193: 1000/# | AA193: 1000/Not assigned | AB193: 8 | AE193: 925.04
A194: 10001200 | B194: Mathew Durack | C194: 1000/11517 | D194: Contract Manag Dist | E194: 21.02.2024 | F194: 06.03.2024 | G194: 4012895 | H194: Feb24 Storm Costs NetOps PC 12014 | I194: 4012895/0010 | J194: Feb24 Storm Timesheet Dx 12014 | K194: 4012895 | L194: 4012895 | M194: 0010 | N194: 1000/CPSPAN | O194: 1000/CPSPAN | P194: HX-0014297 | Q194: Storm Emergency_Feb24 OPEX | R194: HX-0014297-1 | S194: Feb24 Storm Costs NetOps PC 12014 | T194: 9999 | U194: INTERNAL COST CAPTURE | V194: 1000/11000 | W194: Sweep Profit Centre | X194: 800 | Y194: Normal Time | Z194: 1000/# | AA194: 1000/Not assigned | AB194: 8 | AE194: 925.04
A195: 10001200 | B195: Mathew Durack | C195: 1000/11517 | D195: Contract Manag Dist | E195: 21.02.2024 | F195: 06.03.2024 | G195: 4012895 | H195: Feb24 Storm Costs NetOps PC 12014 | I195: 4012895/0010 | J195: Feb24 Storm Timesheet Dx 12014 | K195: 4012895 | L195: 4012895 | M195: 0010 | N195: 1000/CPSPAO | O195: 1000/CPSPAO | P195: HX-0014297 | Q195: Storm Emergency_Feb24 OPEX | R195: HX-0014297-1 | S195: Feb24 Storm Costs NetOps PC 12014 | T195: 9999 | U195: INTERNAL COST CAPTURE | V195: 1000/11000 | W195: Sweep Profit Centre | X195: 850 | Y195: Overtime | Z195: 1000/# | AA195: 1000/Not assigned | AB195: 6.25 | AE195: 1111.88
A196: 10001211 | B196: Brian Brann | C196: 1000/11903 | D196: Eng Serv & Comp (D) | E196: 13.02.2024 | F196: 19.02.2024 | G196: 4012895 | H196: Feb24 Storm Costs NetOps PC 12014 | I196: 4012895/0010 | J196: Feb24 Storm Timesheet Dx 12014 | K196: 4012895 | L196: 4012895 | M196: 0010 | N196: 1000/CPSPEN | O196: Corp Prof Exp NT | P196: HX-0014297 | Q196: Storm Emergency_Feb24 OPEX | R196: HX-0014297-1 | S196: Feb24 Storm Costs NetOps PC 12014 | T196: 9999 | U196: INTERNAL COST CAPTURE | V196: 1000/11000 | W196: Sweep Profit Centre | X196: 800 | Y196: Normal Time | Z196: 1000/# | AA196: 1000/Not assigned | AB196: 5.75 | AE196: 743.71
A197: 10001211 | B197: Brian Brann | C197: 1000/11903 | D197: Eng Serv & Comp (D) | E197: 13.02.2024 | F197: 19.02.2024 | G197: 4012895 | H197: Feb24 Storm Costs NetOps PC 12014 | I197: 4012895/0010 | J197: Feb24 Storm Timesheet Dx 12014 | K197: 4012895 | L197: 4012895 | M197: 0010 | N197: 1000/CPSPEO | O197: Corp Prof Exp OT | P197: HX-0014297 | Q197: Storm Emergency_Feb24 OPEX | R197: HX-0014297-1 | S197: Feb24 Storm Costs NetOps PC 12014 | T197: 9999 | U197: INTERNAL COST CAPTURE | V197: 1000/11000 | W197: Sweep Profit Centre | X197: 850 | Y197: Overtime | Z197: 1000/# | AA197: 1000/Not assigned | AB197: 5 | AE197: 932.8
A198: 10001211 | B198: Brian Brann | C198: 1000/11903 | D198: Eng Serv & Comp (D) | E198: 14.02.2024 | F198: 19.02.2024 | G198: 4012895 | H198: Feb24 Storm Costs NetOps PC 12014 | I198: 4012895/0010 | J198: Feb24 Storm Timesheet Dx 12014 | K198: 4012895 | L198: 4012895 | M198: 0010 | N198: 1000/CPSPEN | O198: Corp Prof Exp NT | P198: HX-0014297 | Q198: Storm Emergency_Feb24 OPEX | R198: HX-0014297-1 | S198: Feb24 Storm Costs NetOps PC 12014 | T198: 9999 | U198: INTERNAL COST CAPTURE | V198: 1000/11000 | W198: Sweep Profit Centre | X198: 800 | Y198: Normal Time | Z198: 1000/# | AA198: 1000/Not assigned | AB198: 7.75 | AE198: 969.99
A199: 10001211 | B199: Brian Brann | C199: 1000/11903 | D199: Eng Serv & Comp (D) | E199: 14.02.2024 | F199: 19.02.2024 | G199: 4012895 | H199: Feb24 Storm Costs NetOps PC 12014 | I199: 4012895/0010 | J199: Feb24 Storm Timesheet Dx 12014 | K199: 4012895 | L199: 4012895 | M199: 0010 | N199: 1000/CPSPEO | O199: Corp Prof Exp OT | P199: HX-0014297 | Q199: Storm Emergency_Feb24 OPEX | R199: HX-0014297-1 | S199: Feb24 Storm Costs NetOps PC 12014 | T199: 9999 | U199: INTERNAL COST CAPTURE | V199: 1000/11000 | W199: Sweep Profit Centre | X199: 850 | Y199: Overtime | Z199: 1000/# | AA199: 1000/Not assigned | AB199: 1.17 | AE199: 218.28
A200: 10001247 | B200: Paul Tanner | C200: 1000/13121 | D200: Cust Prog central | E200: 19.02.2024 | F200: 23.02.2024 | G200: 4012895 | H200: Feb24 Storm Costs NetOps PC 12014 | I200: 4012895/0010 | J200: Feb24 Storm Timesheet Dx 12014 | K200: 4012895 | L200: 4012895 | M200: 0010 | N200: 1000/CPSVAN | O200: 1000/CPSVAN | P200: HX-0014297 | Q200: Storm Emergency_Feb24 OPEX | R200: HX-0014297-1 | S200: Feb24 Storm Costs NetOps PC 12014 | T200: 9999 | U200: INTERNAL COST CAPTURE | V200: 1000/11000 | W200: Sweep Profit Centre | X200: 800 | Y200: Normal Time | Z200: 1000/# | AA200: 1000/Not assigned | AB200: 8.5 | AE200: 1020.77
... 717 more rows

Sheet June21 Storm sheet (hidden)
A1: Original bus. trans | B1: Business Transaction | C1: Document Date | D1: Posting Date | E1: Period | F1: Fiscal Year | G1: Company Code | H1: Document Number | I1: Project definition | J1: WBS element | K1: Object type | L1: Object | M1: CO object name | N1: Cost Element | O1: Cost element name | P1: Val/COArea Crcy | Q1: CO area currency | R1: Name | S1: Reference procedure | T1: User Name | U1: Personnel Number | V1: Material Description | W1: Document type | X1: Timesheet Normally | Y1: Include / Exclude | Z1: Category
A2: RFBU | B2: COIN | C2: 2021-09-29 | D2: 2021-09-29 | E2: 6 | F2: 2022 | G2: 1100 | H2: 108503669 | K2: NWA | L2: 4010246 0010 | M2: Storm -2021- Time Sheet - 12014 | N2: 516204 | O2: Professional Fees | P2: 89800.92 | Q2: AUD | R2: GL Account Corr. to Temp Labour PO 4500122226 | S2: BKPFF | T2: WF-BATCH | U2: 0 | W2: AB | Y2: Include | Z2: Internal
A3: RFBU | B3: COIN | C3: 2021-09-29 | D3: 2021-09-29 | E3: 6 | F3: 2022 | G3: 1100 | H3: 108503669 | K3: NWA | L3: 4010246 0010 | M3: Storm -2021- Time Sheet - 12014 | N3: 506500 | O3: Cont Lab Non-Payroll | P3: -89800.92 | Q3: AUD | R3: GL Account Corr. to Temp Labour PO 4500122226 | S3: BKPFF | T3: WF-BATCH | U3: 0 | W3: AB | Y3: Exclude
A4: RFBU | B4: COIN | C4: 2021-09-29 | D4: 2021-09-29 | E4: 6 | F4: 2022 | G4: 1100 | H4: 108504132 | K4: NWA | L4: 4010246 0010 | M4: Storm -2021- Time Sheet - 12014 | N4: 521100 | O4: Materials | P4: 149.72 | Q4: AUD | R4: PCARD Nicholas Hewes Charger | S4: BKPFF | T4: WF-BATCH | U4: 0 | W4: SA | Y4: Include | Z4: Internal
A5: RFBU | B5: COIN | C5: 2021-09-29 | D5: 2021-09-29 | E5: 6 | F5: 2022 | G5: 1100 | H5: 108504132 | K5: NWA | L5: 4010246 0010 | M5: Storm -2021- Time Sheet - 12014 | N5: 521100 | O5: Materials | P5: 593.18 | Q5: AUD | R5: PCARD Mathew Durack Storms- New POA | S5: BKPFF | T5: WF-BATCH | U5: 0 | W5: SA | Y5: Include | Z5: Internal
A6: RFBU | B6: COIN | C6: 2021-09-29 | D6: 2021-09-29 | E6: 6 | F6: 2022 | G6: 1100 | H6: 108504132 | K6: NWA | L6: 4010246 0010 | M6: Storm -2021- Time Sheet - 12014 | N6: 521508 | O6: Accommodation | P6: -52.23 | Q6: AUD | R6: PCARD Mathew Durack reversed charge | S6: BKPFF | T6: WF-BATCH | U6: 0 | W6: SA | Y6: Include | Z6: Internal
A7: RFBU | B7: COIN | C7: 2021-09-29 | D7: 2021-09-29 | E7: 6 | F7: 2022 | G7: 1100 | H7: 108504132 | K7: NWA | L7: 4010246 0010 | M7: Storm -2021- Time Sheet - 12014 | N7: 521508 | O7: Accommodation | P7: 260 | Q7: AUD | R7: PCARD Sergio Inacio Generator Team Stay - Warragul | S7: BKPFF | T7: WF-BATCH | U7: 0 | W7: SA | Y7: Include | Z7: Internal
A8: RFBU | B8: COIN | C8: 2021-09-29 | D8: 2021-09-29 | E8: 6 | F8: 2022 | G8: 1100 | H8: 108504132 | K8: NWA | L8: 4010246 0010 | M8: Storm -2021- Time Sheet - 12014 | N8: 521508 | O8: Accommodation | P8: 130 | Q8: AUD | R8: PCARD Sergio Inacio Gen Team Night Stay Warragal | S8: BKPFF | T8: WF-BATCH | U8: 0 | W8: SA | Y8: Include | Z8: Internal
A9: RFBU | B9: COIN | C9: 2021-09-29 | D9: 2021-09-29 | E9: 6 | F9: 2022 | G9: 1100 | H9: 108504132 | K9: NWA | L9: 4010246 0010 | M9: Storm -2021- Time Sheet - 12014 | N9: 521508 | O9: Accommodation | P9: 157.26 | Q9: AUD | R9: PCARD Dannie Ploegmakers Accom storms | S9: BKPFF | T9: WF-BATCH | U9: 0 | W9: SA | Y9: Include | Z9: Internal
A10: RFBU | B10: COIN | C10: 2021-09-29 | D10: 2021-09-29 | E10: 6 | F10: 2022 | G10: 1100 | H10: 108504132 | K10: NWA | L10: 4010246 0010 | M10: Storm -2021- Time Sheet - 12014 | N10: 521508 | O10: Accommodation | P10: 262.82 | Q10: AUD | R10: PCARD Dannie Ploegmakers Dinner storm response | S10: BKPFF | T10: WF-BATCH | U10: 0 | W10: SA | Y10: Include | Z10: Internal
A11: RFBU | B11: COIN | C11: 2021-09-29 | D11: 2021-09-29 | E11: 6 | F11: 2022 | G11: 1100 | H11: 108504132 | K11: NWA | L11: 4010246 0010 | M11: Storm -2021- Time Sheet - 12014 | N11: 521508 | O11: Accommodation | P11: 85.73 | Q11: AUD | R11: PCARD Dannie Ploegmakers Bfast storm response | S11: BKPFF | T11: WF-BATCH | U11: 0 | W11: SA | Y11: Include | Z11: Internal
A12: RFBU | B12: COIN | C12: 2021-09-29 | D12: 2021-09-29 | E12: 6 | F12: 2022 | G12: 1100 | H12: 108504132 | K12: NWA | L12: 4010246 0010 | M12: Storm -2021- Time Sheet - 12014 | N12: 521508 | O12: Accommodation | P12: 1743.35 | Q12: AUD | R12: PCARD Dannie Ploegmakers Accom storm response | S12: BKPFF | T12: WF-BATCH | U12: 0 | W12: SA | Y12: Include | Z12: Internal
A13: RFBU | B13: COIN | C13: 2021-09-29 | D13: 2021-09-29 | E13: 6 | F13: 2022 | G13: 1100 | H13: 108504132 | K13: NWA | L13: 4010246 0010 | M13: Storm -2021- Time Sheet - 12014 | N13: 521508 | O13: Accommodation | P13: 36.05 | Q13: AUD | R13: PCARD Nicholas Hewes Meals x 1 Tech | S13: BKPFF | T13: WF-BATCH | U13: 0 | W13: SA | Y13: Include | Z13: Internal
A14: RFBU | B14: COIN | C14: 2021-09-29 | D14: 2021-09-29 | E14: 6 | F14: 2022 | G14: 1100 | H14: 108504132 | K14: NWA | L14: 4010246 0010 | M14: Storm -2021- Time Sheet - 12014 | N14: 521508 | O14: Accommodation | P14: 117.86 | Q14: AUD | R14: PCARD Nicholas Hewes Meals x 2 Techs | S14: BKPFF | T14: WF-BATCH | U14: 0 | W14: SA | Y14: Include | Z14: Internal
A15: RFBU | B15: COIN | C15: 2021-09-29 | D15: 2021-09-29 | E15: 6 | F15: 2022 | G15: 1100 | H15: 108504132 | K15: NWA | L15: 4010246 0010 | M15: Storm -2021- Time Sheet - 12014 | N15: 521508 | O15: Accommodation | P15: 29.36 | Q15: AUD | R15: PCARD Dannie Ploegmakers dinner storm response | S15: BKPFF | T15: WF-BATCH | U15: 0 | W15: SA | Y15: Include | Z15: Internal
A16: RFBU | B16: COIN | C16: 2021-09-29 | D16: 2021-09-29 | E16: 6 | F16: 2022 | G16: 1100 | H16: 108504132 | K16: NWA | L16: 4010246 0010 | M16: Storm -2021- Time Sheet - 12014 | N16: 521508 | O16: Accommodation | P16: 36.73 | Q16: AUD | R16: PCARD Dannie Ploegmakers Lunch storm response | S16: BKPFF | T16: WF-BATCH | U16: 0 | W16: SA | Y16: Include | Z16: Internal
A17: RFBU | B17: COIN | C17: 2021-09-29 | D17: 2021-09-29 | E17: 6 | F17: 2022 | G17: 1100 | H17: 108504132 | K17: NWA | L17: 4010246 0010 | M17: Storm -2021- Time Sheet - 12014 | N17: 521508 | O17: Accommodation | P17: 18.18 | Q17: AUD | R17: PCARD Dannie Ploegmakers Bfast groceries storm res | S17: BKPFF | T17: WF-BATCH | U17: 0 | W17: SA | Y17: Include | Z17: Internal
A18: RFBU | B18: COIN | C18: 2021-09-29 | D18: 2021-09-29 | E18: 6 | F18: 2022 | G18: 1100 | H18: 108504137 | K18: NWA | L18: 4010246 0010 | M18: Storm -2021- Time Sheet - 12014 | N18: 521508 | O18: Accommodation | P18: 63.66 | Q18: AUD | R18: PCARD Mathew Durack Storms event- meals | S18: BKPFF | T18: WF-BATCH | U18: 0 | W18: SA | Y18: Include | Z18: Internal
A19: RFBU | B19: COIN | C19: 2021-09-29 | D19: 2021-09-29 | E19: 6 | F19: 2022 | G19: 1100 | H19: 108504137 | K19: NWA | L19: 4010246 0010 | M19: Storm -2021- Time Sheet - 12014 | N19: 521508 | O19: Accommodation | P19: 91.05 | Q19: AUD | R19: PCARD Mathew Durack Storms event- meal | S19: BKPFF | T19: WF-BATCH | U19: 0 | W19: SA | Y19: Include | Z19: Internal
A20: RFBU | B20: COIN | C20: 2021-09-29 | D20: 2021-09-29 | E20: 6 | F20: 2022 | G20: 1100 | H20: 108504137 | K20: NWA | L20: 4010246 0010 | M20: Storm -2021- Time Sheet - 12014 | N20: 521508 | O20: Accommodation | P20: 52.23 | Q20: AUD | R20: PCARD Mathew Durack this charge was reversed | S20: BKPFF | T20: WF-BATCH | U20: 0 | W20: SA | Y20: Include | Z20: Internal
A21: RFBU | B21: COIN | C21: 2021-09-29 | D21: 2021-09-29 | E21: 6 | F21: 2022 | G21: 1100 | H21: 108504137 | K21: NWA | L21: 4010246 0010 | M21: Storm -2021- Time Sheet - 12014 | N21: 521508 | O21: Accommodation | P21: 45.45 | Q21: AUD | R21: PCARD Mathew Durack Storms- meal for NH & MD | S21: BKPFF | T21: WF-BATCH | U21: 0 | W21: SA | Y21: Include | Z21: Internal
A22: RFBU | B22: COIN | C22: 2021-09-29 | D22: 2021-09-29 | E22: 6 | F22: 2022 | G22: 1100 | H22: 108504137 | K22: NWA | L22: 4010246 0010 | M22: Storm -2021- Time Sheet - 12014 | N22: 521508 | O22: Accommodation | P22: 20.45 | Q22: AUD | R22: PCARD Mathew Durack Storms event- meals x 2 | S22: BKPFF | T22: WF-BATCH | U22: 0 | W22: SA | Y22: Include | Z22: Internal
A23: RFBU | B23: COIN | C23: 2021-09-29 | D23: 2021-09-29 | E23: 6 | F23: 2022 | G23: 1100 | H23: 108504137 | K23: NWA | L23: 4010246 0010 | M23: Storm -2021- Time Sheet - 12014 | N23: 521508 | O23: Accommodation | P23: 110 | Q23: AUD | R23: PCARD Brian Brann BB | S23: BKPFF | T23: WF-BATCH | U23: 0 | W23: SA | Y23: Include | Z23: Internal
A24: RFBU | B24: COIN | C24: 2021-09-29 | D24: 2021-09-29 | E24: 6 | F24: 2022 | G24: 1100 | H24: 108504137 | K24: NWA | L24: 4010246 0010 | M24: Storm -2021- Time Sheet - 12014 | N24: 521508 | O24: Accommodation | P24: 10.77 | Q24: AUD | R24: PCARD Brian Brann B Brann breakfast LDL storms | S24: BKPFF | T24: WF-BATCH | U24: 0 | W24: SA | Y24: Include | Z24: Internal
A25: RFBU | B25: COIN | C25: 2021-09-29 | D25: 2021-09-29 | E25: 6 | F25: 2022 | G25: 1100 | H25: 108504137 | K25: NWA | L25: 4010246 0010 | M25: Storm -2021- Time Sheet - 12014 | N25: 521508 | O25: Accommodation | P25: 24.09 | Q25: AUD | R25: PCARD Brian Brann BB & DP breakfast LDL storms | S25: BKPFF | T25: WF-BATCH | U25: 0 | W25: SA | Y25: Include | Z25: Internal
A26: RFBU | B26: COIN | C26: 2021-09-29 | D26: 2021-09-29 | E26: 6 | F26: 2022 | G26: 1100 | H26: 108504137 | K26: NWA | L26: 4010246 0010 | M26: Storm -2021- Time Sheet - 12014 | N26: 521508 | O26: Accommodation | P26: 15.45 | Q26: AUD | R26: PCARD Brian Brann B Brann lunch LDL storms | S26: BKPFF | T26: WF-BATCH | U26: 0 | W26: SA | Y26: Include | Z26: Internal
A27: RFBU | B27: COIN | C27: 2021-09-29 | D27: 2021-09-29 | E27: 6 | F27: 2022 | G27: 1100 | H27: 108504137 | K27: NWA | L27: 4010246 0010 | M27: Storm -2021- Time Sheet - 12014 | N27: 521508 | O27: Accommodation | P27: 438.51 | Q27: AUD | R27: PCARD Brian Brann B Brann accom Lilydale storms | S27: BKPFF | T27: WF-BATCH | U27: 0 | W27: SA | Y27: Include | Z27: Internal
A28: RFBU | B28: COIN | C28: 2021-09-29 | D28: 2021-09-29 | E28: 6 | F28: 2022 | G28: 1100 | H28: 108504137 | K28: NWA | L28: 4010246 0010 | M28: Storm -2021- Time Sheet - 12014 | N28: 521508 | O28: Accommodation | P28: 23.18 | Q28: AUD | R28: PCARD Brian Brann B Brann evening meal LDL storm | S28: BKPFF | T28: WF-BATCH | U28: 0 | W28: SA | Y28: Include | Z28: Internal
A29: RFBU | B29: COIN | C29: 2021-09-29 | D29: 2021-09-29 | E29: 6 | F29: 2022 | G29: 1100 | H29: 108504147 | K29: NWA | L29: 4010246 0010 | M29: Storm -2021- Time Sheet - 12014 | N29: 521100 | O29: Materials | P29: -164.69 | Q29: AUD | R29: PCARD Nicholas Hewes Charger | S29: BKPFF | T29: WF-BATCH | U29: 0 | W29: SA | Y29: Include | Z29: Internal
A30: RFBU | B30: COIN | C30: 2021-09-29 | D30: 2021-09-29 | E30: 6 | F30: 2022 | G30: 1100 | H30: 108504147 | K30: NWA | L30: 4010246 0010 | M30: Storm -2021- Time Sheet - 12014 | N30: 521100 | O30: Materials | P30: -652.5 | Q30: AUD | R30: PCARD Mathew Durack Storms- New POA | S30: BKPFF | T30: WF-BATCH | U30: 0 | W30: SA | Y30: Include | Z30: Internal
A31: RFBU | B31: COIN | C31: 2021-09-29 | D31: 2021-09-29 | E31: 6 | F31: 2022 | G31: 1100 | H31: 108504147 | K31: NWA | L31: 4010246 0010 | M31: Storm -2021- Time Sheet - 12014 | N31: 521508 | O31: Accommodation | P31: 57.45 | Q31: AUD | R31: PCARD Mathew Durack reversed charge | S31: BKPFF | T31: WF-BATCH | U31: 0 | W31: SA | Y31: Include | Z31: Internal
A32: RFBU | B32: COIN | C32: 2021-09-29 | D32: 2021-09-29 | E32: 6 | F32: 2022 | G32: 1100 | H32: 108504147 | K32: NWA | L32: 4010246 0010 | M32: Storm -2021- Time Sheet - 12014 | N32: 521508 | O32: Accommodation | P32: -286 | Q32: AUD | R32: PCARD Sergio Inacio Generator Team Stay - Warragul | S32: BKPFF | T32: WF-BATCH | U32: 0 | W32: SA | Y32: Include | Z32: Internal
A33: RFBU | B33: COIN | C33: 2021-09-29 | D33: 2021-09-29 | E33: 6 | F33: 2022 | G33: 1100 | H33: 108504147 | K33: NWA | L33: 4010246 0010 | M33: Storm -2021- Time Sheet - 12014 | N33: 521508 | O33: Accommodation | P33: -143 | Q33: AUD | R33: PCARD Sergio Inacio Gen Team Night Stay Warragal | S33: BKPFF | T33: WF-BATCH | U33: 0 | W33: SA | Y33: Include | Z33: Internal
A34: RFBU | B34: COIN | C34: 2021-09-29 | D34: 2021-09-29 | E34: 6 | F34: 2022 | G34: 1100 | H34: 108504147 | K34: NWA | L34: 4010246 0010 | M34: Storm -2021- Time Sheet - 12014 | N34: 521508 | O34: Accommodation | P34: -172.99 | Q34: AUD | R34: PCARD Dannie Ploegmakers Accom storms | S34: BKPFF | T34: WF-BATCH | U34: 0 | W34: SA | Y34: Include | Z34: Internal
A35: RFBU | B35: COIN | C35: 2021-09-29 | D35: 2021-09-29 | E35: 6 | F35: 2022 | G35: 1100 | H35: 108504147 | K35: NWA | L35: 4010246 0010 | M35: Storm -2021- Time Sheet - 12014 | N35: 521508 | O35: Accommodation | P35: -289.1 | Q35: AUD | R35: PCARD Dannie Ploegmakers Dinner storm response | S35: BKPFF | T35: WF-BATCH | U35: 0 | W35: SA | Y35: Include | Z35: Internal
A36: RFBU | B36: COIN | C36: 2021-09-29 | D36: 2021-09-29 | E36: 6 | F36: 2022 | G36: 1100 | H36: 108504147 | K36: NWA | L36: 4010246 0010 | M36: Storm -2021- Time Sheet - 12014 | N36: 521508 | O36: Accommodation | P36: -94.3 | Q36: AUD | R36: PCARD Dannie Ploegmakers Bfast storm response | S36: BKPFF | T36: WF-BATCH | U36: 0 | W36: SA | Y36: Include | Z36: Internal
A37: RFBU | B37: COIN | C37: 2021-09-29 | D37: 2021-09-29 | E37: 6 | F37: 2022 | G37: 1100 | H37: 108504147 | K37: NWA | L37: 4010246 0010 | M37: Storm -2021- Time Sheet - 12014 | N37: 521508 | O37: Accommodation | P37: -1917.69 | Q37: AUD | R37: PCARD Dannie Ploegmakers Accom storm response | S37: BKPFF | T37: WF-BATCH | U37: 0 | W37: SA | Y37: Include | Z37: Internal
A38: RFBU | B38: COIN | C38: 2021-09-29 | D38: 2021-09-29 | E38: 6 | F38: 2022 | G38: 1100 | H38: 108504147 | K38: NWA | L38: 4010246 0010 | M38: Storm -2021- Time Sheet - 12014 | N38: 521508 | O38: Accommodation | P38: -39.65 | Q38: AUD | R38: PCARD Nicholas Hewes Meals x 1 Tech | S38: BKPFF | T38: WF-BATCH | U38: 0 | W38: SA | Y38: Include | Z38: Internal
A39: RFBU | B39: COIN | C39: 2021-09-29 | D39: 2021-09-29 | E39: 6 | F39: 2022 | G39: 1100 | H39: 108504147 | K39: NWA | L39: 4010246 0010 | M39: Storm -2021- Time Sheet - 12014 | N39: 521508 | O39: Accommodation | P39: -129.65 | Q39: AUD | R39: PCARD Nicholas Hewes Meals x 2 Techs | S39: BKPFF | T39: WF-BATCH | U39: 0 | W39: SA | Y39: Include | Z39: Internal
A40: RFBU | B40: COIN | C40: 2021-09-29 | D40: 2021-09-29 | E40: 6 | F40: 2022 | G40: 1100 | H40: 108504147 | K40: NWA | L40: 4010246 0010 | M40: Storm -2021- Time Sheet - 12014 | N40: 521508 | O40: Accommodation | P40: -32.3 | Q40: AUD | R40: PCARD Dannie Ploegmakers dinner storm response | S40: BKPFF | T40: WF-BATCH | U40: 0 | W40: SA | Y40: Include | Z40: Internal
A41: RFBU | B41: COIN | C41: 2021-09-29 | D41: 2021-09-29 | E41: 6 | F41: 2022 | G41: 1100 | H41: 108504147 | K41: NWA | L41: 4010246 0010 | M41: Storm -2021- Time Sheet - 12014 | N41: 521508 | O41: Accommodation | P41: -40.4 | Q41: AUD | R41: PCARD Dannie Ploegmakers Lunch storm response | S41: BKPFF | T41: WF-BATCH | U41: 0 | W41: SA | Y41: Include | Z41: Internal
A42: RFBU | B42: COIN | C42: 2021-09-29 | D42: 2021-09-29 | E42: 6 | F42: 2022 | G42: 1100 | H42: 108504147 | K42: NWA | L42: 4010246 0010 | M42: Storm -2021- Time Sheet - 12014 | N42: 521508 | O42: Accommodation | P42: -20 | Q42: AUD | R42: PCARD Dannie Ploegmakers Bfast groceries storm res | S42: BKPFF | T42: WF-BATCH | U42: 0 | W42: SA | Y42: Include | Z42: Internal
A43: RFBU | B43: COIN | C43: 2021-09-29 | D43: 2021-09-29 | E43: 6 | F43: 2022 | G43: 1100 | H43: 108504147 | K43: NWA | L43: 4010246 0010 | M43: Storm -2021- Time Sheet - 12014 | N43: 521508 | O43: Accommodation | P43: -70.03 | Q43: AUD | R43: PCARD Mathew Durack Storms event- meals | S43: BKPFF | T43: WF-BATCH | U43: 0 | W43: SA | Y43: Include | Z43: Internal
A44: RFBU | B44: COIN | C44: 2021-09-29 | D44: 2021-09-29 | E44: 6 | F44: 2022 | G44: 1100 | H44: 108504147 | K44: NWA | L44: 4010246 0010 | M44: Storm -2021- Time Sheet - 12014 | N44: 521508 | O44: Accommodation | P44: -100.15 | Q44: AUD | R44: PCARD Mathew Durack Storms event- meal | S44: BKPFF | T44: WF-BATCH | U44: 0 | W44: SA | Y44: Include | Z44: Internal
A45: RFBU | B45: COIN | C45: 2021-09-29 | D45: 2021-09-29 | E45: 6 | F45: 2022 | G45: 1100 | H45: 108504147 | K45: NWA | L45: 4010246 0010 | M45: Storm -2021- Time Sheet - 12014 | N45: 521508 | O45: Accommodation | P45: -57.45 | Q45: AUD | R45: PCARD Mathew Durack this charge was reversed | S45: BKPFF | T45: WF-BATCH | U45: 0 | W45: SA | Y45: Include | Z45: Internal
A46: RFBU | B46: COIN | C46: 2021-09-29 | D46: 2021-09-29 | E46: 6 | F46: 2022 | G46: 1100 | H46: 108504147 | K46: NWA | L46: 4010246 0010 | M46: Storm -2021- Time Sheet - 12014 | N46: 521508 | O46: Accommodation | P46: -50 | Q46: AUD | R46: PCARD Mathew Durack Storms- meal for NH & MD | S46: BKPFF | T46: WF-BATCH | U46: 0 | W46: SA | Y46: Include | Z46: Internal
A47: RFBU | B47: COIN | C47: 2021-09-29 | D47: 2021-09-29 | E47: 6 | F47: 2022 | G47: 1100 | H47: 108504147 | K47: NWA | L47: 4010246 0010 | M47: Storm -2021- Time Sheet - 12014 | N47: 521508 | O47: Accommodation | P47: -22.5 | Q47: AUD | R47: PCARD Mathew Durack Storms event- meals x 2 | S47: BKPFF | T47: WF-BATCH | U47: 0 | W47: SA | Y47: Include | Z47: Internal
A48: RFBU | B48: COIN | C48: 2021-09-29 | D48: 2021-09-29 | E48: 6 | F48: 2022 | G48: 1100 | H48: 108504147 | K48: NWA | L48: 4010246 0010 | M48: Storm -2021- Time Sheet - 12014 | N48: 521508 | O48: Accommodation | P48: -121 | Q48: AUD | R48: PCARD Brian Brann BB | S48: BKPFF | T48: WF-BATCH | U48: 0 | W48: SA | Y48: Include | Z48: Internal
A49: RFBU | B49: COIN | C49: 2021-09-29 | D49: 2021-09-29 | E49: 6 | F49: 2022 | G49: 1100 | H49: 108504147 | K49: NWA | L49: 4010246 0010 | M49: Storm -2021- Time Sheet - 12014 | N49: 521508 | O49: Accommodation | P49: -11.85 | Q49: AUD | R49: PCARD Brian Brann B Brann breakfast LDL storms | S49: BKPFF | T49: WF-BATCH | U49: 0 | W49: SA | Y49: Include | Z49: Internal
A50: RFBU | B50: COIN | C50: 2021-09-29 | D50: 2021-09-29 | E50: 6 | F50: 2022 | G50: 1100 | H50: 108504147 | K50: NWA | L50: 4010246 0010 | M50: Storm -2021- Time Sheet - 12014 | N50: 521508 | O50: Accommodation | P50: -26.5 | Q50: AUD | R50: PCARD Brian Brann BB & DP breakfast LDL storms | S50: BKPFF | T50: WF-BATCH | U50: 0 | W50: SA | Y50: Include | Z50: Internal
A51: RFBU | B51: COIN | C51: 2021-09-29 | D51: 2021-09-29 | E51: 6 | F51: 2022 | G51: 1100 | H51: 108504147 | K51: NWA | L51: 4010246 0010 | M51: Storm -2021- Time Sheet - 12014 | N51: 521508 | O51: Accommodation | P51: -17 | Q51: AUD | R51: PCARD Brian Brann B Brann lunch LDL storms | S51: BKPFF | T51: WF-BATCH | U51: 0 | W51: SA | Y51: Include | Z51: Internal
A52: RFBU | B52: COIN | C52: 2021-09-29 | D52: 2021-09-29 | E52: 6 | F52: 2022 | G52: 1100 | H52: 108504147 | K52: NWA | L52: 4010246 0010 | M52: Storm -2021- Time Sheet - 12014 | N52: 521508 | O52: Accommodation | P52: -482.36 | Q52: AUD | R52: PCARD Brian Brann B Brann accom Lilydale storms | S52: BKPFF | T52: WF-BATCH | U52: 0 | W52: SA | Y52: Include | Z52: Internal
A53: RFBU | B53: COIN | C53: 2021-09-29 | D53: 2021-09-29 | E53: 6 | F53: 2022 | G53: 1100 | H53: 108504147 | K53: NWA | L53: 4010246 0010 | M53: Storm -2021- Time Sheet - 12014 | N53: 521508 | O53: Accommodation | P53: -25.5 | Q53: AUD | R53: PCARD Brian Brann B Brann evening meal LDL storm | S53: BKPFF | T53: WF-BATCH | U53: 0 | W53: SA | Y53: Include | Z53: Internal
A54: RFBU | B54: COIN | C54: 2021-06-29 | D54: 2021-06-29 | E54: 3 | F54: 2022 | G54: 1100 | H54: 108174747 | K54: NWA | L54: 4010246 0010 | M54: Storm -2021- Time Sheet - 12014 | N54: 506401 | O54: S&W Proj - NT Adj | P54: 9662.69 | Q54: AUD | R54: Storm Timesheet - JT | S54: BKPFF | T54: WF-BATCH | U54: 0 | W54: AB | Y54: Exclude
A55: RFBU | B55: COIN | C55: 2021-06-29 | D55: 2021-06-29 | E55: 3 | F55: 2022 | G55: 1100 | H55: 108174747 | K55: NWA | L55: 4010246 0010 | M55: Storm -2021- Time Sheet - 12014 | N55: 506401 | O55: S&W Proj - NT Adj | P55: 3844.84 | Q55: AUD | R55: Storm Timesheet - TD | S55: BKPFF | T55: WF-BATCH | U55: 0 | W55: AB | Y55: Exclude
A56: RFBU | B56: COIN | C56: 2021-06-29 | D56: 2021-06-29 | E56: 3 | F56: 2022 | G56: 1100 | H56: 108174747 | K56: NWA | L56: 4010246 0010 | M56: Storm -2021- Time Sheet - 12014 | N56: 506401 | O56: S&W Proj - NT Adj | P56: 8195.58 | Q56: AUD | R56: Storm Timesheet - RQ | S56: BKPFF | T56: WF-BATCH | U56: 0 | W56: AB | Y56: Exclude
A57: RFBU | B57: COIN | C57: 2021-06-29 | D57: 2021-06-29 | E57: 3 | F57: 2022 | G57: 1100 | H57: 108174747 | K57: NWA | L57: 4010246 0010 | M57: Storm -2021- Time Sheet - 12014 | N57: 506401 | O57: S&W Proj - NT Adj | P57: 12242.78 | Q57: AUD | R57: Storm Timesheet - LW | S57: BKPFF | T57: WF-BATCH | U57: 0 | W57: AB | Y57: Exclude
A58: RFBU | B58: COIN | C58: 2021-06-29 | D58: 2021-06-29 | E58: 3 | F58: 2022 | G58: 1100 | H58: 108174747 | K58: NWA | L58: 4010246 0010 | M58: Storm -2021- Time Sheet - 12014 | N58: 506401 | O58: S&W Proj - NT Adj | P58: 8397.94 | Q58: AUD | R58: Storm Timesheet - SJ | S58: BKPFF | T58: WF-BATCH | U58: 0 | W58: AB | Y58: Exclude
A59: RFBU | B59: COIN | C59: 2021-06-29 | D59: 2021-06-29 | E59: 3 | F59: 2022 | G59: 1100 | H59: 108174747 | K59: NWA | L59: 4010246 0010 | M59: Storm -2021- Time Sheet - 12014 | N59: 506401 | O59: S&W Proj - NT Adj | P59: 7487.32 | Q59: AUD | R59: Storm Timesheet - LH | S59: BKPFF | T59: WF-BATCH | U59: 0 | W59: AB | Y59: Exclude
A60: RFBU | B60: COIN | C60: 2021-06-29 | D60: 2021-06-29 | E60: 3 | F60: 2022 | G60: 1100 | H60: 108174747 | K60: NWA | L60: 4010246 0010 | M60: Storm -2021- Time Sheet - 12014 | N60: 506401 | O60: S&W Proj - NT Adj | P60: 3237.76 | Q60: AUD | R60: Storm Timesheet - LW | S60: BKPFF | T60: WF-BATCH | U60: 0 | W60: AB | Y60: Exclude
A61: RFBU | B61: COIN | C61: 2021-06-29 | D61: 2021-06-29 | E61: 3 | F61: 2022 | G61: 1100 | H61: 108174980 | K61: NWA | L61: 4010246 0010 | M61: Storm -2021- Time Sheet - 12014 | N61: 506401 | O61: S&W Proj - NT Adj | P61: 133381.17 | Q61: AUD | R61: June-21 Storm Costs Timesheet Reallocation - NOCP | S61: BKPFF | T61: WF-BATCH | U61: 0 | W61: AB | Y61: Exclude
A62: RFBU | B62: COIN | C62: 2021-06-29 | D62: 2021-06-29 | E62: 3 | F62: 2022 | G62: 1100 | H62: 108174980 | K62: NWA | L62: 4010246 0010 | M62: Storm -2021- Time Sheet - 12014 | N62: 506401 | O62: S&W Proj - NT Adj | P62: 31964.46 | Q62: AUD | R62: June-21 Storm Costs Timesheet Reallocation - NOES | S62: BKPFF | T62: WF-BATCH | U62: 0 | W62: AB | Y62: Exclude
A63: RFBU | B63: COIN | C63: 2021-06-29 | D63: 2021-06-29 | E63: 3 | F63: 2022 | G63: 1100 | H63: 108174980 | K63: NWA | L63: 4010246 0010 | M63: Storm -2021- Time Sheet - 12014 | N63: 506401 | O63: S&W Proj - NT Adj | P63: 11019.62 | Q63: AUD | R63: June-21 Storm Costs Timesheet Reallocation - NOMP | S63: BKPFF | T63: WF-BATCH | U63: 0 | W63: AB | Y63: Exclude
A64: RFBU | B64: COIN | C64: 2021-06-29 | D64: 2021-06-29 | E64: 3 | F64: 2022 | G64: 1100 | H64: 108175027 | K64: NWA | L64: 4010246 0010 | M64: Storm -2021- Time Sheet - 12014 | N64: 506401 | O64: S&W Proj - NT Adj | P64: 8467.5 | Q64: AUD | R64: Compliance Storm Inspection - AC | S64: BKPFF | T64: WF-BATCH | U64: 0 | W64: AB | Y64: Exclude
A65: RFBU | B65: COIN | C65: 2021-06-29 | D65: 2021-06-29 | E65: 3 | F65: 2022 | G65: 1100 | H65: 108175027 | K65: NWA | L65: 4010246 0010 | M65: Storm -2021- Time Sheet - 12014 | N65: 506401 | O65: S&W Proj - NT Adj | P65: 8467.5 | Q65: AUD | R65: Compliance Storm Inspection - BB | S65: BKPFF | T65: WF-BATCH | U65: 0 | W65: AB | Y65: Exclude
A66: RFBU | B66: COIN | C66: 2021-06-29 | D66: 2021-06-29 | E66: 3 | F66: 2022 | G66: 1100 | H66: 108175027 | K66: NWA | L66: 4010246 0010 | M66: Storm -2021- Time Sheet - 12014 | N66: 506401 | O66: S&W Proj - NT Adj | P66: 8467.5 | Q66: AUD | R66: Compliance Storm Inspection - DP | S66: BKPFF | T66: WF-BATCH | U66: 0 | W66: AB | Y66: Exclude
A67: RFBU | B67: COIN | C67: 2021-06-29 | D67: 2021-06-29 | E67: 3 | F67: 2022 | G67: 1100 | H67: 108175027 | K67: NWA | L67: 4010246 0010 | M67: Storm -2021- Time Sheet - 12014 | N67: 506401 | O67: S&W Proj - NT Adj | P67: 8467.5 | Q67: AUD | R67: Compliance Storm Inspection - RB | S67: BKPFF | T67: WF-BATCH | U67: 0 | W67: AB | Y67: Exclude
A68: RFBU | B68: COIN | C68: 2021-06-29 | D68: 2021-06-29 | E68: 3 | F68: 2022 | G68: 1100 | H68: 108175027 | K68: NWA | L68: 4010246 0010 | M68: Storm -2021- Time Sheet - 12014 | N68: 506401 | O68: S&W Proj - NT Adj | P68: 8467.5 | Q68: AUD | R68: Compliance Storm Inspection - BP | S68: BKPFF | T68: WF-BATCH | U68: 0 | W68: AB | Y68: Exclude
A69: RFBU | B69: COIN | C69: 2021-06-29 | D69: 2021-06-29 | E69: 3 | F69: 2022 | G69: 1100 | H69: 108175027 | K69: NWA | L69: 4010246 0010 | M69: Storm -2021- Time Sheet - 12014 | N69: 506401 | O69: S&W Proj - NT Adj | P69: 8467.5 | Q69: AUD | R69: Compliance Storm Inspection - MP | S69: BKPFF | T69: WF-BATCH | U69: 0 | W69: AB | Y69: Exclude
A70: RFBU | B70: COIN | C70: 2021-06-29 | D70: 2021-06-29 | E70: 3 | F70: 2022 | G70: 1100 | H70: 108175027 | K70: NWA | L70: 4010246 0010 | M70: Storm -2021- Time Sheet - 12014 | N70: 506401 | O70: S&W Proj - NT Adj | P70: 8467.5 | Q70: AUD | R70: Compliance Storm Inspection - DH | S70: BKPFF | T70: WF-BATCH | U70: 0 | W70: AB | Y70: Exclude
A71: RFBU | B71: COIN | C71: 2021-06-29 | D71: 2021-07-02 | E71: 4 | F71: 2022 | G71: 1100 | H71: 108243036 | K71: NWA | L71: 4010246 0010 | M71: Storm -2021- Time Sheet - 12014 | N71: 506401 | O71: S&W Proj - NT Adj | P71: -133381.17 | Q71: AUD | R71: June-21 Storm Costs Timesheet Reallocation - NOCP | S71: BKPFF | T71: PRAVEENK | U71: 0 | W71: AB | Y71: Exclude
A72: RFBU | B72: COIN | C72: 2021-06-29 | D72: 2021-07-02 | E72: 4 | F72: 2022 | G72: 1100 | H72: 108243036 | K72: NWA | L72: 4010246 0010 | M72: Storm -2021- Time Sheet - 12014 | N72: 506401 | O72: S&W Proj - NT Adj | P72: -31964.46 | Q72: AUD | R72: June-21 Storm Costs Timesheet Reallocation - NOES | S72: BKPFF | T72: PRAVEENK | U72: 0 | W72: AB | Y72: Exclude
A73: RFBU | B73: COIN | C73: 2021-06-29 | D73: 2021-07-02 | E73: 4 | F73: 2022 | G73: 1100 | H73: 108243036 | K73: NWA | L73: 4010246 0010 | M73: Storm -2021- Time Sheet - 12014 | N73: 506401 | O73: S&W Proj - NT Adj | P73: -11019.62 | Q73: AUD | R73: June-21 Storm Costs Timesheet Reallocation - NOMP | S73: BKPFF | T73: PRAVEENK | U73: 0 | W73: AB | Y73: Exclude
A74: RFBU | B74: COIN | C74: 2021-07-24 | D74: 2021-07-24 | E74: 4 | F74: 2022 | G74: 1100 | H74: 108276188 | K74: NWA | L74: 4010246 0010 | M74: Storm -2021- Time Sheet - 12014 | N74: 516413 | O74: Light Meals on Site | P74: 72.79 | Q74: AUD | R74: PCARD Keang Ung Ceot dinner 13/06 4 storm even | S74: BKPFF | T74: SYS_BCBATCH | U74: 0 | W74: SA | Y74: Include | Z74: Internal
A75: RFBU | B75: COIN | C75: 2021-07-24 | D75: 2021-07-24 | E75: 4 | F75: 2022 | G75: 1100 | H75: 108276188 | K75: NWA | L75: 4010246 0010 | M75: Storm -2021- Time Sheet - 12014 | N75: 516413 | O75: Light Meals on Site | P75: 50.5 | Q75: AUD | R75: PCARD Keang Ung CEOT beverage for storm event | S75: BKPFF | T75: SYS_BCBATCH | U75: 0 | W75: SA | Y75: Include | Z75: Internal
A76: RFBU | B76: COIN | C76: 2021-07-24 | D76: 2021-07-24 | E76: 4 | F76: 2022 | G76: 1100 | H76: 108276188 | K76: NWA | L76: 4010246 0010 | M76: Storm -2021- Time Sheet - 12014 | N76: 516413 | O76: Light Meals on Site | P76: 430.85 | Q76: AUD | R76: PCARD Keang Ung CEOT Lunch for Storm Event | S76: BKPFF | T76: SYS_BCBATCH | U76: 0 | W76: SA | Y76: Include | Z76: Internal
A77: RFBU | B77: COIN | C77: 2021-07-24 | D77: 2021-07-24 | E77: 4 | F77: 2022 | G77: 1100 | H77: 108276188 | K77: NWA | L77: 4010246 0010 | M77: Storm -2021- Time Sheet - 12014 | N77: 516413 | O77: Light Meals on Site | P77: 23.5 | Q77: AUD | R77: PCARD Keang Ung Ceot beverage for storm event | S77: BKPFF | T77: SYS_BCBATCH | U77: 0 | W77: SA | Y77: Include | Z77: Internal
A78: RFBU | B78: COIN | C78: 2021-07-24 | D78: 2021-07-24 | E78: 4 | F78: 2022 | G78: 1100 | H78: 108276188 | K78: NWA | L78: 4010246 0010 | M78: Storm -2021- Time Sheet - 12014 | N78: 516413 | O78: Light Meals on Site | P78: 300.49 | Q78: AUD | R78: PCARD Keang Ung CEOT Lunch for Storm Event | S78: BKPFF | T78: SYS_BCBATCH | U78: 0 | W78: SA | Y78: Include | Z78: Internal
A79: RFBU | B79: COIN | C79: 2021-07-24 | D79: 2021-07-24 | E79: 4 | F79: 2022 | G79: 1100 | H79: 108276188 | K79: NWA | L79: 4010246 0010 | M79: Storm -2021- Time Sheet - 12014 | N79: 516413 | O79: Light Meals on Site | P79: 33.44 | Q79: AUD | R79: PCARD Keang Ung 21/06 dinner for storm event | S79: BKPFF | T79: SYS_BCBATCH | U79: 0 | W79: SA | Y79: Include | Z79: Internal
A80: RFBU | B80: COIN | C80: 2021-07-24 | D80: 2021-07-24 | E80: 4 | F80: 2022 | G80: 1100 | H80: 108276188 | K80: NWA | L80: 4010246 0010 | M80: Storm -2021- Time Sheet - 12014 | N80: 516413 | O80: Light Meals on Site | P80: 97.69 | Q80: AUD | R80: PCARD Keang Ung CEOT meal storm event | S80: BKPFF | T80: SYS_BCBATCH | U80: 0 | W80: SA | Y80: Include | Z80: Internal
A81: RFBU | B81: COIN | C81: 2021-07-24 | D81: 2021-07-24 | E81: 4 | F81: 2022 | G81: 1100 | H81: 108276188 | K81: NWA | L81: 4010246 0010 | M81: Storm -2021- Time Sheet - 12014 | N81: 521508 | O81: Accommodation | P81: 22 | Q81: AUD | R81: PCARD Nicholas Hewes Meals x 1 Tech | S81: BKPFF | T81: SYS_BCBATCH | U81: 0 | W81: SA | Y81: Include | Z81: Internal
A82: RFBU | B82: COIN | C82: 2021-07-24 | D82: 2021-07-24 | E82: 4 | F82: 2022 | G82: 1100 | H82: 108276188 | K82: NWA | L82: 4010246 0010 | M82: Storm -2021- Time Sheet - 12014 | N82: 521100 | O82: Materials | P82: 146.95 | Q82: AUD | R82: PCARD Nicholas Hewes Straps | S82: BKPFF | T82: SYS_BCBATCH | U82: 0 | W82: SA | Y82: Include | Z82: Internal
A83: RFBU | B83: COIN | C83: 2021-07-24 | D83: 2021-07-24 | E83: 4 | F83: 2022 | G83: 1100 | H83: 108276188 | K83: NWA | L83: 4010246 0010 | M83: Storm -2021- Time Sheet - 12014 | N83: 521508 | O83: Accommodation | P83: 47.15 | Q83: AUD | R83: PCARD Nicholas Hewes Meals x 2 Techs | S83: BKPFF | T83: SYS_BCBATCH | U83: 0 | W83: SA | Y83: Include | Z83: Internal
A84: RFBU | B84: COIN | C84: 2021-07-24 | D84: 2021-07-24 | E84: 4 | F84: 2022 | G84: 1100 | H84: 108276188 | K84: NWA | L84: 4010246 0010 | M84: Storm -2021- Time Sheet - 12014 | N84: 521508 | O84: Accommodation | P84: 17.65 | Q84: AUD | R84: PCARD Nicholas Hewes Meals x 1 Tech | S84: BKPFF | T84: SYS_BCBATCH | U84: 0 | W84: SA | Y84: Include | Z84: Internal
A85: RFBU | B85: COIN | C85: 2021-07-24 | D85: 2021-07-24 | E85: 4 | F85: 2022 | G85: 1100 | H85: 108276188 | K85: NWA | L85: 4010246 0010 | M85: Storm -2021- Time Sheet - 12014 | N85: 521100 | O85: Materials | P85: 660 | Q85: AUD | R85: PCARD Nicholas Hewes Gen Tags & Defib Sticker | S85: BKPFF | T85: SYS_BCBATCH | U85: 0 | W85: SA | Y85: Include | Z85: Internal
A86: RFBU | B86: COIN | C86: 2021-07-24 | D86: 2021-07-24 | E86: 4 | F86: 2022 | G86: 1100 | H86: 108276188 | K86: NWA | L86: 4010246 0010 | M86: Storm -2021- Time Sheet - 12014 | N86: 521508 | O86: Accommodation | P86: 82.5 | Q86: AUD | R86: PCARD Nicholas Hewes Meals x 2 Techs | S86: BKPFF | T86: SYS_BCBATCH | U86: 0 | W86: SA | Y86: Include | Z86: Internal
A87: RFBU | B87: COIN | C87: 2021-07-24 | D87: 2021-07-24 | E87: 4 | F87: 2022 | G87: 1100 | H87: 108277707 | K87: NWA | L87: 4010246 0010 | M87: Storm -2021- Time Sheet - 12014 | N87: 521100 | O87: Materials | P87: 164.69 | Q87: AUD | R87: PCARD Nicholas Hewes Charger | S87: BKPFF | T87: SYS_BCBATCH | U87: 0 | W87: SA | Y87: Include | Z87: Internal
A88: RMWE | B88: COIN | C88: 2021-07-26 | D88: 2021-07-26 | E88: 4 | F88: 2022 | G88: 1100 | H88: 108278461 | K88: NWA | L88: 4010246 0010 | M88: Storm -2021- Time Sheet - 12014 | N88: 516204 | O88: Professional Fees | P88: 125000 | Q88: AUD | R88: SMS | S88: MKPF | T88: KLANCAST | U88: 0 | W88: WE | Y88: Include | Z88: Internal
A89: RFBU | B89: COIN | C89: 2021-07-26 | D89: 2021-07-26 | E89: 4 | F89: 2022 | G89: 1100 | H89: 108278574 | K89: NWA | L89: 4010246 0010 | M89: Storm -2021- Time Sheet - 12014 | N89: 506401 | O89: S&W Proj - NT Adj | P89: 41806.54 | Q89: AUD | R89: Timesheet Transfers - 13187 | S89: BKPFF | T89: WF-BATCH | U89: 0 | W89: AB | Y89: Exclude
A90: RFBU | B90: COIN | C90: 2021-07-26 | D90: 2021-07-26 | E90: 4 | F90: 2022 | G90: 1100 | H90: 108278574 | K90: NWA | L90: 4010246 0010 | M90: Storm -2021- Time Sheet - 12014 | N90: 506401 | O90: S&W Proj - NT Adj | P90: 31820.44 | Q90: AUD | R90: Timesheet Transfers - 15006 | S90: BKPFF | T90: WF-BATCH | U90: 0 | W90: AB | Y90: Exclude
A91: RFBU | B91: COIN | C91: 2021-07-26 | D91: 2021-07-26 | E91: 4 | F91: 2022 | G91: 1100 | H91: 108278574 | K91: NWA | L91: 4010246 0010 | M91: Storm -2021- Time Sheet - 12014 | N91: 506401 | O91: S&W Proj - NT Adj | P91: 136761.71 | Q91: AUD | R91: Timesheet Transfers - 13175 | S91: BKPFF | T91: WF-BATCH | U91: 0 | W91: AB | Y91: Exclude
A92: RFBU | B92: COIN | C92: 2021-07-26 | D92: 2021-07-26 | E92: 4 | F92: 2022 | G92: 1100 | H92: 108278574 | K92: NWA | L92: 4010246 0010 | M92: Storm -2021- Time Sheet - 12014 | N92: 506401 | O92: S&W Proj - NT Adj | P92: 18461.49 | Q92: AUD | R92: Timesheet Transfers - 12018 | S92: BKPFF | T92: WF-BATCH | U92: 0 | W92: AB | Y92: Exclude
A93: RFBU | B93: COIN | C93: 2021-07-26 | D93: 2021-07-26 | E93: 4 | F93: 2022 | G93: 1100 | H93: 108278574 | K93: NWA | L93: 4010246 0010 | M93: Storm -2021- Time Sheet - 12014 | N93: 506401 | O93: S&W Proj - NT Adj | P93: 6127.03 | Q93: AUD | R93: Timesheet Transfers - 14620 | S93: BKPFF | T93: WF-BATCH | U93: 0 | W93: AB | Y93: Exclude
A94: RFBU | B94: COIN | C94: 2021-07-27 | D94: 2021-07-27 | E94: 4 | F94: 2022 | G94: 1100 | H94: 108282081 | K94: NWA | L94: 4010246 0010 | M94: Storm -2021- Time Sheet - 12014 | N94: 506500 | O94: Cont Lab Non-Payroll | P94: 8292.77 | Q94: AUD | R94: Mary's work for Storm Response | S94: BKPFF | T94: WF-BATCH | U94: 0 | W94: AB | Y94: Exclude
A95: RMWE | B95: COIN | C95: 2021-07-28 | D95: 2021-07-28 | E95: 4 | F95: 2022 | G95: 1100 | H95: 108282960 | K95: NWA | L95: 4010246 0010 | M95: Storm -2021- Time Sheet - 12014 | N95: 506500 | O95: Cont Lab Non-Payroll | P95: 4909.17 | Q95: AUD | R95: Siobhan Contractor w/c June 13 | S95: MKPF | T95: CSAID | U95: 0 | W95: WE | Y95: Exclude
A96: RMWE | B96: COIN | C96: 2021-07-28 | D96: 2021-07-28 | E96: 4 | F96: 2022 | G96: 1100 | H96: 108282961 | K96: NWA | L96: 4010246 0010 | M96: Storm -2021- Time Sheet - 12014 | N96: 506500 | O96: Cont Lab Non-Payroll | P96: 4178.36 | Q96: AUD | R96: Siobhan contractor w/e June 20 | S96: MKPF | T96: CSAID | U96: 0 | W96: WE | Y96: Exclude
A97: RFBU | B97: COIN | C97: 2021-07-28 | D97: 2021-07-28 | E97: 4 | F97: 2022 | G97: 1100 | H97: 108284892 | K97: NWA | L97: 4010246 0010 | M97: Storm -2021- Time Sheet - 12014 | N97: 516204 | O97: Professional Fees | P97: -125000 | Q97: AUD | R97: GL Account Corr. to Temp Labour PO 4500122226 | S97: BKPFF | T97: WF-BATCH | U97: 0 | W97: AB | Y97: Include | Z97: Internal
A98: RFBU | B98: COIN | C98: 2021-07-28 | D98: 2021-07-28 | E98: 4 | F98: 2022 | G98: 1100 | H98: 108284892 | K98: NWA | L98: 4010246 0010 | M98: Storm -2021- Time Sheet - 12014 | N98: 506500 | O98: Cont Lab Non-Payroll | P98: 125000 | Q98: AUD | R98: GL Account Corr. to Temp Labour PO 4500122226 | S98: BKPFF | T98: WF-BATCH | U98: 0 | W98: AB | Y98: Exclude
A99: RFBU | B99: COIN | C99: 2021-07-29 | D99: 2021-07-29 | E99: 4 | F99: 2022 | G99: 1100 | H99: 108284989 | K99: NWA | L99: 4010246 0010 | M99: Storm -2021- Time Sheet - 12014 | N99: 506401 | O99: S&W Proj - NT Adj | P99: -6810.47 | Q99: AUD | R99: Downer Storm Transfers | S99: BKPFF | T99: WF-BATCH | U99: 0 | W99: AB | Y99: Exclude
A100: RFBU | B100: COIN | C100: 2021-07-29 | D100: 2021-07-29 | E100: 4 | F100: 2022 | G100: 1100 | H100: 108284989 | K100: NWA | L100: 4010246 0010 | M100: Storm -2021- Time Sheet - 12014 | N100: 506401 | O100: S&W Proj - NT Adj | P100: 136824.84 | Q100: AUD | R100: Downer Storm Transfers | S100: BKPFF | T100: WF-BATCH | U100: 0 | W100: AB | Y100: Exclude
A101: RFBU | B101: COIN | C101: 2021-07-29 | D101: 2021-07-29 | E101: 4 | F101: 2022 | G101: 1100 | H101: 108284989 | K101: NWA | L101: 4010246 0010 | M101: Storm -2021- Time Sheet - 12014 | N101: 506401 | O101: S&W Proj - NT Adj | P101: 35972.7 | Q101: AUD | R101: Downer Storm Transfers | S101: BKPFF | T101: WF-BATCH | U101: 0 | W101: AB | Y101: Exclude
A102: RFBU | B102: COIN | C102: 2021-08-17 | D102: 2021-08-17 | E102: 5 | F102: 2022 | G102: 1100 | H102: 108367054 | K102: NWA | L102: 4010246 0010 | M102: Storm -2021- Time Sheet - 12014 | N102: 516204 | O102: Professional Fees | P102: 125000 | Q102: AUD | R102: GL Account Corr. to Temp Labour PO 4500122226 | S102: BKPFF | T102: WF-BATCH | U102: 0 | W102: AB | Y102: Include | Z102: Internal
A103: RFBU | B103: COIN | C103: 2021-08-17 | D103: 2021-08-17 | E103: 5 | F103: 2022 | G103: 1100 | H103: 108367054 | K103: NWA | L103: 4010246 0010 | M103: Storm -2021- Time Sheet - 12014 | N103: 506500 | O103: Cont Lab Non-Payroll | P103: -125000 | Q103: AUD | R103: GL Account Corr. to Temp Labour PO 4500122226 | S103: BKPFF | T103: WF-BATCH | U103: 0 | W103: AB | Y103: Exclude
A104: RFBU | B104: COIN | C104: 2021-08-31 | D104: 2021-08-31 | E104: 5 | F104: 2022 | G104: 1100 | H104: 108372009 | K104: NWA | L104: 4010246 0010 | M104: Storm -2021- Time Sheet - 12014 | N104: 506401 | O104: S&W Proj - NT Adj | P104: 8653.31 | Q104: AUD | R104: CEOT Julie OT storms time | S104: BKPFF | T104: WF-BATCH | U104: 0 | W104: AB | Y104: Exclude
A105: RMWE | B105: COIN | C105: 2021-07-26 | D105: 2021-09-02 | E105: 6 | F105: 2022 | G105: 1100 | H105: 108461552 | K105: NWA | L105: 4010246 0010 | M105: Storm -2021- Time Sheet - 12014 | N105: 516204 | O105: Professional Fees | P105: -125000 | Q105: AUD | R105: SMS | S105: MKPF | T105: SHALI | U105: 0 | W105: WE | Y105: Include | Z105: Internal
A106: RMWE | B106: COIN | C106: 2021-09-06 | D106: 2021-09-06 | E106: 6 | F106: 2022 | G106: 1100 | H106: 108464854 | K106: NWA | L106: 4010246 0010 | M106: Storm -2021- Time Sheet - 12014 | N106: 516204 | O106: Professional Fees | P106: 5818.03 | Q106: AUD | R106: Customer & Engagement Specialist | S106: MKPF | T106: STUFFEN | U106: 0 | W106: WE | Y106: Include | Z106: Internal
A107: RMWE | B107: COIN | C107: 2021-09-06 | D107: 2021-09-06 | E107: 6 | F107: 2022 | G107: 1100 | H107: 108464855 | K107: NWA | L107: 4010246 0010 | M107: Storm -2021- Time Sheet - 12014 | N107: 516204 | O107: Professional Fees | P107: 5818.03 | Q107: AUD | R107: Consultant | S107: MKPF | T107: STUFFEN | U107: 0 | W107: WE | Y107: Include | Z107: Internal
A108: RMWE | B108: COIN | C108: 2021-09-06 | D108: 2021-09-06 | E108: 6 | F108: 2022 | G108: 1100 | H108: 108464859 | K108: NWA | L108: 4010246 0010 | M108: Storm -2021- Time Sheet - 12014 | N108: 516204 | O108: Professional Fees | P108: 5818.03 | Q108: AUD | R108: Contractor | S108: MKPF | T108: STUFFEN | U108: 0 | W108: WE | Y108: Include | Z108: Internal
A109: RMWE | B109: COIN | C109: 2021-09-06 | D109: 2021-09-06 | E109: 6 | F109: 2022 | G109: 1100 | H109: 108464862 | K109: NWA | L109: 4010246 0010 | M109: Storm -2021- Time Sheet - 12014 | N109: 516204 | O109: Professional Fees | P109: 6787.7 | Q109: AUD | R109: Contractor | S109: MKPF | T109: STUFFEN | U109: 0 | W109: WE | Y109: Include | Z109: Internal
A110: RMWE | B110: COIN | C110: 2021-09-21 | D110: 2021-09-21 | E110: 6 | F110: 2022 | G110: 1100 | H110: 108488730 | K110: NWA | L110: 4010246 0010 | M110: Storm -2021- Time Sheet - 12014 | N110: 516204 | O110: Professional Fees | P110: 5139.26 | Q110: AUD | R110: Customer Engagement Specialist | S110: MKPF | T110: STUFFEN | U110: 0 | W110: WE | Y110: Include | Z110: Internal
A111: RMWE | B111: COIN | C111: 2021-09-21 | D111: 2021-09-21 | E111: 6 | F111: 2022 | G111: 1100 | H111: 108488732 | K111: NWA | L111: 4010246 0010 | M111: Storm -2021- Time Sheet - 12014 | N111: 516204 | O111: Professional Fees | P111: 5818.03 | Q111: AUD | R111: Customer Engagement Speci | S111: MKPF | T111: STUFFEN | U111: 0 | W111: WE | Y111: Include | Z111: Internal
A112: RMRU | B112: RKL | C112: 2021-06-16 | D112: 2021-06-16 | E112: 3 | F112: 2022 | G112: 1100 | H112: 309350084 | K112: NWA | L112: 4010246 0010 | M112: Storm -2021- Time Sheet - 12014 | N112: 810143 | O112: Corp Support NT | P112: 117.54 | Q112: AUD | R112: Storm | S112: AFRU | T112: SYS_BCBATCH | U112: 10009884 | X112: =VLOOKUP(U112,'[1]3. Labour - TS'!$R:$Y,8,0) -> NO | Y112: Exclude
A113: RMRU | B113: RKL | C113: 2021-06-16 | D113: 2021-06-16 | E113: 3 | F113: 2022 | G113: 1100 | H113: 309350085 | K113: NWA | L113: 4010246 0010 | M113: Storm -2021- Time Sheet - 12014 | N113: 810143 | O113: Corp Support NT | P113: 235.08 | Q113: AUD | R113: Storm | S113: AFRU | T113: SYS_BCBATCH | U113: 10009884 | X113: =VLOOKUP(U113,'[1]3. Labour - TS'!$R:$Y,8,0) -> NO | Y113: Exclude
A114: RMRU | B114: RKL | C114: 2021-06-16 | D114: 2021-06-16 | E114: 3 | F114: 2022 | G114: 1100 | H114: 309350086 | K114: NWA | L114: 4010246 0010 | M114: Storm -2021- Time Sheet - 12014 | N114: 810143 | O114: Corp Support NT | P114: 313.44 | Q114: AUD | R114: Storm | S114: AFRU | T114: SYS_BCBATCH | U114: 10009884 | X114: =VLOOKUP(U114,'[1]3. Labour - TS'!$R:$Y,8,0) -> NO | Y114: Exclude
A115: RMRU | B115: RKL | C115: 2021-06-16 | D115: 2021-06-16 | E115: 3 | F115: 2022 | G115: 1100 | H115: 309350087 | K115: NWA | L115: 4010246 0010 | M115: Storm -2021- Time Sheet - 12014 | N115: 810243 | O115: Corp Support OT | P115: 289.68 | Q115: AUD | R115: storm | S115: AFRU | T115: SYS_BCBATCH | U115: 10006935 | X115: =VLOOKUP(U115,'[1]3. Labour - TS'!$R:$Y,8,0) -> NO | Y115: Exclude
A116: RMRU | B116: RKL | C116: 2021-06-16 | D116: 2021-06-16 | E116: 3 | F116: 2022 | G116: 1100 | H116: 309350088 | K116: NWA | L116: 4010246 0010 | M116: Storm -2021- Time Sheet - 12014 | N116: 810243 | O116: Corp Support OT | P116: 217.26 | Q116: AUD | R116: Storm -2021- Time Sheet - 12014 | S116: AFRU | T116: SYS_BCBATCH | U116: 10006935 | X116: =VLOOKUP(U116,'[1]3. Labour - TS'!$R:$Y,8,0) -> NO | Y116: Exclude
A117: RMRU | B117: RKL | C117: 2021-06-16 | D117: 2021-06-16 | E117: 3 | F117: 2022 | G117: 1100 | H117: 309350089 | K117: NWA | L117: 4010246 0010 | M117: Storm -2021- Time Sheet - 12014 | N117: 810243 | O117: Corp Support OT | P117: 362.1 | Q117: AUD | R117: Storm -2021- Time Sheet - 12014 | S117: AFRU | T117: SYS_BCBATCH | U117: 10006935 | X117: =VLOOKUP(U117,'[1]3. Labour - TS'!$R:$Y,8,0) -> NO | Y117: Exclude
A118: RMRU | B118: RKL | C118: 2021-06-16 | D118: 2021-06-16 | E118: 3 | F118: 2022 | G118: 1100 | H118: 309350090 | K118: NWA | L118: 4010246 0010 | M118: Storm -2021- Time Sheet - 12014 | N118: 810243 | O118: Corp Support OT | P118: 525.05 | Q118: AUD | R118: Storm -2021- Time Sheet - 12014 | S118: AFRU | T118: SYS_BCBATCH | U118: 10006935 | X118: =VLOOKUP(U118,'[1]3. Labour - TS'!$R:$Y,8,0) -> NO | Y118: Exclude
A119: RMRU | B119: RKL | C119: 2021-06-16 | D119: 2021-06-16 | E119: 3 | F119: 2022 | G119: 1100 | H119: 309350091 | K119: NWA | L119: 4010246 0010 | M119: Storm -2021- Time Sheet - 12014 | N119: 810223 | O119: Corp Prof OT | P119: 1161.99 | Q119: AUD | S119: AFRU | T119: SYS_BCBATCH | U119: 10000557 | X119: =VLOOKUP(U119,'[1]3. Labour - TS'!$R:$Y,8,0) -> NO | Y119: Exclude
A120: RMRU | B120: RKL | C120: 2021-06-16 | D120: 2021-06-16 | E120: 3 | F120: 2022 | G120: 1100 | H120: 309350092 | K120: NWA | L120: 4010246 0010 | M120: Storm -2021- Time Sheet - 12014 | N120: 810223 | O120: Corp Prof OT | P120: 1161.99 | Q120: AUD | S120: AFRU | T120: SYS_BCBATCH | U120: 10000557 | X120: =VLOOKUP(U120,'[1]3. Labour - TS'!$R:$Y,8,0) -> NO | Y120: Exclude
A121: RMRU | B121: RKL | C121: 2021-06-16 | D121: 2021-06-16 | E121: 3 | F121: 2022 | G121: 1100 | H121: 309350093 | K121: NWA | L121: 4010246 0010 | M121: Storm -2021- Time Sheet - 12014 | N121: 810223 | O121: Corp Prof OT | P121: 1032.88 | Q121: AUD | S121: AFRU | T121: SYS_BCBATCH | U121: 10000557 | X121: =VLOOKUP(U121,'[1]3. Labour - TS'!$R:$Y,8,0) -> NO | Y121: Exclude
A122: RMRU | B122: RKL | C122: 2021-06-16 | D122: 2021-06-16 | E122: 3 | F122: 2022 | G122: 1100 | H122: 309350095 | K122: NWA | L122: 4010246 0010 | M122: Storm -2021- Time Sheet - 12014 | N122: 810160 | O122: Corp Manager NT | P122: 896.85 | Q122: AUD | S122: AFRU | T122: SYS_BCBATCH | U122: 10001211 | X122: =VLOOKUP(U122,'[1]3. Labour - TS'!$R:$Y,8,0) -> NO | Y122: Exclude
A123: RMRU | B123: RKL | C123: 2021-06-16 | D123: 2021-06-16 | E123: 3 | F123: 2022 | G123: 1100 | H123: 309350096 | K123: NWA | L123: 4010246 0010 | M123: Storm -2021- Time Sheet - 12014 | N123: 810160 | O123: Corp Manager NT | P123: 896.85 | Q123: AUD | S123: AFRU | T123: SYS_BCBATCH | U123: 10001211 | X123: =VLOOKUP(U123,'[1]3. Labour - TS'!$R:$Y,8,0) -> NO | Y123: Exclude
A124: RMRU | B124: RKL | C124: 2021-06-16 | D124: 2021-06-16 | E124: 3 | F124: 2022 | G124: 1100 | H124: 309350097 | K124: NWA | L124: 4010246 0010 | M124: Storm -2021- Time Sheet - 12014 | N124: 810160 | O124: Corp Manager NT | P124: 896.85 | Q124: AUD | S124: AFRU | T124: SYS_BCBATCH | U124: 10001211 | X124: =VLOOKUP(U124,'[1]3. Labour - TS'!$R:$Y,8,0) -> NO | Y124: Exclude
A125: RMRU | B125: RKL | C125: 2021-06-16 | D125: 2021-06-16 | E125: 3 | F125: 2022 | G125: 1100 | H125: 309350098 | K125: NWA | L125: 4010246 0010 | M125: Storm -2021- Time Sheet - 12014 | N125: 810160 | O125: Corp Manager NT | P125: 239.16 | Q125: AUD | S125: AFRU | T125: SYS_BCBATCH | U125: 10001211 | X125: =VLOOKUP(U125,'[1]3. Labour - TS'!$R:$Y,8,0) -> NO | Y125: Exclude
B126: RKL | C126: 2021-06-11 | D126: 2021-06-16 | E126: 3 | F126: 2022 | G126: 1100 | H126: 309350258 | K126: NWA | L126: 4010246 0010 | M126: Storm -2021- Time Sheet - 12014 | N126: 810300 | O126: Allowance Expenses | P126: 538.11 | Q126: AUD | R126: Fri 11/6/21 Storm response 7am - 6pm. 3 | S126: CATS | T126: SYS_BCBATCH | U126: 10001211 | X126: =VLOOKUP(U126,'[1]3. Labour - TS'!$R:$Y,8,0) -> NO | Y126: Exclude
B127: RKL | C127: 2021-06-11 | D127: 2021-06-16 | E127: 3 | F127: 2022 | G127: 1100 | H127: 309350258 | K127: NWA | L127: 4010246 0010 | M127: Storm -2021- Time Sheet - 12014 | N127: 810300 | O127: Allowance Expenses | P127: 1883.39 | Q127: AUD | R127: Sat 12/6/21 Storm response 8:30am to 7pm | S127: CATS | T127: SYS_BCBATCH | U127: 10001211 | X127: =VLOOKUP(U127,'[1]3. Labour - TS'!$R:$Y,8,0) -> NO | Y127: Exclude
B128: RKL | C128: 2021-06-11 | D128: 2021-06-16 | E128: 3 | F128: 2022 | G128: 1100 | H128: 309350258 | K128: NWA | L128: 4010246 0010 | M128: Storm -2021- Time Sheet - 12014 | N128: 810300 | O128: Allowance Expenses | P128: 1704.02 | Q128: AUD | R128: Sun 13/6/21 Storm response 7:30am to 5pm | S128: CATS | T128: SYS_BCBATCH | U128: 10001211 | X128: =VLOOKUP(U128,'[1]3. Labour - TS'!$R:$Y,8,0) -> NO | Y128: Exclude
B129: RKL | C129: 2021-06-06 | D129: 2021-06-17 | E129: 3 | F129: 2022 | G129: 1100 | H129: 309350490 | K129: NWA | L129: 4010246 0010 | M129: Storm -2021- Time Sheet - 12014 | N129: 810300 | O129: Allowance Expenses | P129: 387.33 | Q129: AUD | S129: CATS | T129: SYS_BCBATCH | U129: 10001415 | X129: =VLOOKUP(U129,'[1]3. Labour - TS'!$R:$Y,8,0) -> Yes | Y129: Include | Z129: Internal
B130: RKL | C130: 2021-06-06 | D130: 2021-06-17 | E130: 3 | F130: 2022 | G130: 1100 | H130: 309350490 | K130: NWA | L130: 4010246 0010 | M130: Storm -2021- Time Sheet - 12014 | N130: 810300 | O130: Allowance Expenses | P130: 322.78 | Q130: AUD | S130: CATS | T130: SYS_BCBATCH | U130: 10001415 | X130: =VLOOKUP(U130,'[1]3. Labour - TS'!$R:$Y,8,0) -> Yes | Y130: Include | Z130: Internal
B131: RKL | C131: 2021-06-06 | D131: 2021-06-17 | E131: 3 | F131: 2022 | G131: 1100 | H131: 309350490 | K131: NWA | L131: 4010246 0010 | M131: Storm -2021- Time Sheet - 12014 | N131: 810300 | O131: Allowance Expenses | P131: 1613.88 | Q131: AUD | S131: CATS | T131: SYS_BCBATCH | U131: 10001415 | X131: =VLOOKUP(U131,'[1]3. Labour - TS'!$R:$Y,8,0) -> Yes | Y131: Include | Z131: Internal
B132: RKL | C132: 2021-06-06 | D132: 2021-06-17 | E132: 3 | F132: 2022 | G132: 1100 | H132: 309350490 | K132: NWA | L132: 4010246 0010 | M132: Storm -2021- Time Sheet - 12014 | N132: 810300 | O132: Allowance Expenses | P132: 60.36 | Q132: AUD | S132: CATS | T132: SYS_BCBATCH | U132: 10001415 | X132: =VLOOKUP(U132,'[1]3. Labour - TS'!$R:$Y,8,0) -> Yes | Y132: Include | Z132: Internal
B133: RKL | C133: 2021-06-06 | D133: 2021-06-17 | E133: 3 | F133: 2022 | G133: 1100 | H133: 309350490 | K133: NWA | L133: 4010246 0010 | M133: Storm -2021- Time Sheet - 12014 | N133: 810300 | O133: Allowance Expenses | P133: 1549.32 | Q133: AUD | S133: CATS | T133: SYS_BCBATCH | U133: 10001415 | X133: =VLOOKUP(U133,'[1]3. Labour - TS'!$R:$Y,8,0) -> Yes | Y133: Include | Z133: Internal
B134: RKL | C134: 2021-06-06 | D134: 2021-06-17 | E134: 3 | F134: 2022 | G134: 1100 | H134: 309350490 | K134: NWA | L134: 4010246 0010 | M134: Storm -2021- Time Sheet - 12014 | N134: 810300 | O134: Allowance Expenses | P134: 40.24 | Q134: AUD | S134: CATS | T134: SYS_BCBATCH | U134: 10001415 | X134: =VLOOKUP(U134,'[1]3. Labour - TS'!$R:$Y,8,0) -> Yes | Y134: Include | Z134: Internal
B135: RKL | C135: 2021-06-06 | D135: 2021-06-17 | E135: 3 | F135: 2022 | G135: 1100 | H135: 309350490 | K135: NWA | L135: 4010246 0010 | M135: Storm -2021- Time Sheet - 12014 | N135: 810300 | O135: Allowance Expenses | P135: 1291.1 | Q135: AUD | S135: CATS | T135: SYS_BCBATCH | U135: 10001415 | X135: =VLOOKUP(U135,'[1]3. Labour - TS'!$R:$Y,8,0) -> Yes | Y135: Include | Z135: Internal
B136: RKL | C136: 2021-06-06 | D136: 2021-06-17 | E136: 3 | F136: 2022 | G136: 1100 | H136: 309350490 | K136: NWA | L136: 4010246 0010 | M136: Storm -2021- Time Sheet - 12014 | N136: 810300 | O136: Allowance Expenses | P136: 40.24 | Q136: AUD | S136: CATS | T136: SYS_BCBATCH | U136: 10001415 | X136: =VLOOKUP(U136,'[1]3. Labour - TS'!$R:$Y,8,0) -> Yes | Y136: Include | Z136: Internal
B137: RKL | C137: 2021-06-06 | D137: 2021-06-17 | E137: 3 | F137: 2022 | G137: 1100 | H137: 309350490 | K137: NWA | L137: 4010246 0010 | M137: Storm -2021- Time Sheet - 12014 | N137: 810300 | O137: Allowance Expenses | P137: 322.78 | Q137: AUD | S137: CATS | T137: SYS_BCBATCH | U137: 10001415 | X137: =VLOOKUP(U137,'[1]3. Labour - TS'!$R:$Y,8,0) -> Yes | Y137: Include | Z137: Internal
B138: RKL | C138: 2021-06-06 | D138: 2021-06-17 | E138: 3 | F138: 2022 | G138: 1100 | H138: 309350490 | K138: NWA | L138: 4010246 0010 | M138: Storm -2021- Time Sheet - 12014 | N138: 810300 | O138: Allowance Expenses | P138: 20.12 | Q138: AUD | S138: CATS | T138: SYS_BCBATCH | U138: 10001415 | X138: =VLOOKUP(U138,'[1]3. Labour - TS'!$R:$Y,8,0) -> Yes | Y138: Include | Z138: Internal
A139: RMRU | B139: RKL | C139: 2021-06-16 | D139: 2021-06-16 | E139: 3 | F139: 2022 | G139: 1100 | H139: 309351391 | K139: NWA | L139: 4010246 0010 | M139: Storm -2021- Time Sheet - 12014 | N139: 810220 | O139: Corp Ops Lead OT | P139: 1166.6 | Q139: AUD | S139: AFRU | T139: SYS_BCBATCH | U139: 10001704 | X139: =VLOOKUP(U139,'[1]3. Labour - TS'!$R:$Y,8,0) -> NO | Y139: Exclude
A140: RMRU | B140: RKL | C140: 2021-06-16 | D140: 2021-06-16 | E140: 3 | F140: 2022 | G140: 1100 | H140: 309351393 | K140: NWA | L140: 4010246 0010 | M140: Storm -2021- Time Sheet - 12014 | N140: 810123 | O140: Corp Prof NT | P140: 387.32 | Q140: AUD | R140: EMT- Recovery Hubs Strike Team | S140: AFRU | T140: SYS_BCBATCH | U140: 10001155 | X140: =VLOOKUP(U140,'[1]3. Labour - TS'!$R:$Y,8,0) -> NO | Y140: Exclude
A141: RMRU | B141: RKL | C141: 2021-06-16 | D141: 2021-06-16 | E141: 3 | F141: 2022 | G141: 1100 | H141: 309351394 | K141: NWA | L141: 4010246 0010 | M141: Storm -2021- Time Sheet - 12014 | N141: 810122 | O141: Corp Prof Exp NT | P141: 758.85 | Q141: AUD | R141: EMT - Recovery Hub Strike Team | S141: AFRU | T141: SYS_BCBATCH | U141: 10009892 | X141: =VLOOKUP(U141,'[1]3. Labour - TS'!$R:$Y,8,0) -> NO | Y141: Exclude
A142: RMRU | B142: RKL | C142: 2021-06-16 | D142: 2021-06-16 | E142: 3 | F142: 2022 | G142: 1100 | H142: 309351395 | K142: NWA | L142: 4010246 0010 | M142: Storm -2021- Time Sheet - 12014 | N142: 810136 | O142: Corp Semi Prof NT | P142: 235.66 | Q142: AUD | S142: AFRU | T142: SYS_BCBATCH | U142: 10002370 | X142: =VLOOKUP(U142,'[1]3. Labour - TS'!$R:$Y,8,0) -> Yes | Y142: Include | Z142: Internal
A143: RMRU | B143: RKL | C143: 2021-06-17 | D143: 2021-06-17 | E143: 3 | F143: 2022 | G143: 1100 | H143: 309353567 | K143: NWA | L143: 4010246 0010 | M143: Storm -2021- Time Sheet - 12014 | N143: 810118 | O143: Project Manager NT | P143: 854.03 | Q143: AUD | S143: AFRU | T143: SYS_BCBATCH | U143: 10000641 | X143: =VLOOKUP(U143,'[1]3. Labour - TS'!$R:$Y,8,0) -> Yes | Y143: Include | Z143: Internal
A144: RMRU | B144: RKL | C144: 2021-06-17 | D144: 2021-06-17 | E144: 3 | F144: 2022 | G144: 1100 | H144: 309353568 | K144: NWA | L144: 4010246 0010 | M144: Storm -2021- Time Sheet - 12014 | N144: 810122 | O144: Corp Prof Exp NT | P144: 758.85 | Q144: AUD | R144: EMT - recovery hub strike team | S144: AFRU | T144: SYS_BCBATCH | U144: 10009892 | X144: =VLOOKUP(U144,'[1]3. Labour - TS'!$R:$Y,8,0) -> NO | Y144: Exclude
A145: RMRU | B145: RKL | C145: 2021-06-17 | D145: 2021-06-17 | E145: 3 | F145: 2022 | G145: 1100 | H145: 309353570 | K145: NWA | L145: 4010246 0010 | M145: Storm -2021- Time Sheet - 12014 | N145: 810122 | O145: Corp Prof Exp NT | P145: 716.1 | Q145: AUD | R145: Storm Response | S145: AFRU | T145: SYS_BCBATCH | U145: 10001451 | X145: =VLOOKUP(U145,'[1]3. Labour - TS'!$R:$Y,8,0) -> NO | Y145: Exclude
A146: RMRU | B146: RKL | C146: 2021-06-17 | D146: 2021-06-17 | E146: 3 | F146: 2022 | G146: 1100 | H146: 309353571 | K146: NWA | L146: 4010246 0010 | M146: Storm -2021- Time Sheet - 12014 | N146: 810122 | O146: Corp Prof Exp NT | P146: 716.1 | Q146: AUD | R146: Storm Response | S146: AFRU | T146: SYS_BCBATCH | U146: 10001451 | X146: =VLOOKUP(U146,'[1]3. Labour - TS'!$R:$Y,8,0) -> NO | Y146: Exclude
A147: RMRU | B147: RKL | C147: 2021-06-17 | D147: 2021-06-17 | E147: 3 | F147: 2022 | G147: 1100 | H147: 309353572 | K147: NWA | L147: 4010246 0010 | M147: Storm -2021- Time Sheet - 12014 | N147: 810122 | O147: Corp Prof Exp NT | P147: 716.1 | Q147: AUD | R147: Storm Response | S147: AFRU | T147: SYS_BCBATCH | U147: 10001451 | X147: =VLOOKUP(U147,'[1]3. Labour - TS'!$R:$Y,8,0) -> NO | Y147: Exclude
A148: RMRU | B148: RKL | C148: 2021-06-17 | D148: 2021-06-17 | E148: 3 | F148: 2022 | G148: 1100 | H148: 309353573 | K148: NWA | L148: 4010246 0010 | M148: Storm -2021- Time Sheet - 12014 | N148: 810122 | O148: Corp Prof Exp NT | P148: 716.1 | Q148: AUD | R148: Storm Response | S148: AFRU | T148: SYS_BCBATCH | U148: 10001451 | X148: =VLOOKUP(U148,'[1]3. Labour - TS'!$R:$Y,8,0) -> NO | Y148: Exclude
A149: RMRU | B149: RKL | C149: 2021-06-17 | D149: 2021-06-17 | E149: 3 | F149: 2022 | G149: 1100 | H149: 309353575 | K149: NWA | L149: 4010246 0010 | M149: Storm -2021- Time Sheet - 12014 | N149: 810136 | O149: Corp Semi Prof NT | P149: 545.25 | Q149: AUD | S149: AFRU | T149: SYS_BCBATCH | U149: 10002617 | X149: =VLOOKUP(U149,'[1]3. Labour - TS'!$R:$Y,8,0) -> Yes | Y149: Include | Z149: Internal
A150: RMRU | B150: RKL | C150: 2021-06-17 | D150: 2021-06-17 | E150: 3 | F150: 2022 | G150: 1100 | H150: 309353576 | K150: NWA | L150: 4010246 0010 | M150: Storm -2021- Time Sheet - 12014 | N150: 810136 | O150: Corp Semi Prof NT | P150: 545.25 | Q150: AUD | S150: AFRU | T150: SYS_BCBATCH | U150: 10002617 | X150: =VLOOKUP(U150,'[1]3. Labour - TS'!$R:$Y,8,0) -> Yes | Y150: Include | Z150: Internal
A151: RMRU | B151: RKL | C151: 2021-06-17 | D151: 2021-06-17 | E151: 3 | F151: 2022 | G151: 1100 | H151: 309353577 | K151: NWA | L151: 4010246 0010 | M151: Storm -2021- Time Sheet - 12014 | N151: 810136 | O151: Corp Semi Prof NT | P151: 72.7 | Q151: AUD | S151: AFRU | T151: SYS_BCBATCH | U151: 10002617 | X151: =VLOOKUP(U151,'[1]3. Labour - TS'!$R:$Y,8,0) -> Yes | Y151: Include | Z151: Internal
A152: RMRU | B152: RKL | C152: 2021-06-17 | D152: 2021-06-17 | E152: 3 | F152: 2022 | G152: 1100 | H152: 309353578 | K152: NWA | L152: 4010246 0010 | M152: Storm -2021- Time Sheet - 12014 | N152: 810136 | O152: Corp Semi Prof NT | P152: 399.85 | Q152: AUD | S152: AFRU | T152: SYS_BCBATCH | U152: 10002617 | X152: =VLOOKUP(U152,'[1]3. Labour - TS'!$R:$Y,8,0) -> Yes | Y152: Include | Z152: Internal
A153: RMRU | B153: RKL | C153: 2021-06-17 | D153: 2021-06-17 | E153: 3 | F153: 2022 | G153: 1100 | H153: 309353579 | K153: NWA | L153: 4010246 0010 | M153: Storm -2021- Time Sheet - 12014 | N153: 810123 | O153: Corp Prof NT | P153: 645.53 | Q153: AUD | S153: AFRU | T153: SYS_BCBATCH | U153: 10001415 | X153: =VLOOKUP(U153,'[1]3. Labour - TS'!$R:$Y,8,0) -> Yes | Y153: Include | Z153: Internal
A154: RMRU | B154: RKL | C154: 2021-06-17 | D154: 2021-06-17 | E154: 3 | F154: 2022 | G154: 1100 | H154: 309353580 | K154: NWA | L154: 4010246 0010 | M154: Storm -2021- Time Sheet - 12014 | N154: 810123 | O154: Corp Prof NT | P154: 645.53 | Q154: AUD | S154: AFRU | T154: SYS_BCBATCH | U154: 10001415 | X154: =VLOOKUP(U154,'[1]3. Labour - TS'!$R:$Y,8,0) -> Yes | Y154: Include | Z154: Internal
A155: RMRU | B155: RKL | C155: 2021-06-17 | D155: 2021-06-17 | E155: 3 | F155: 2022 | G155: 1100 | H155: 309353586 | K155: NWA | L155: 4010246 0010 | M155: Storm -2021- Time Sheet - 12014 | N155: 810123 | O155: Corp Prof NT | P155: 645.53 | Q155: AUD | S155: AFRU | T155: SYS_BCBATCH | U155: 10001415 | X155: =VLOOKUP(U155,'[1]3. Labour - TS'!$R:$Y,8,0) -> Yes | Y155: Include | Z155: Internal
A156: RMRU | B156: RKL | C156: 2021-06-17 | D156: 2021-06-17 | E156: 3 | F156: 2022 | G156: 1100 | H156: 309353587 | K156: NWA | L156: 4010246 0010 | M156: Storm -2021- Time Sheet - 12014 | N156: 810123 | O156: Corp Prof NT | P156: 645.53 | Q156: AUD | S156: AFRU | T156: SYS_BCBATCH | U156: 10001415 | X156: =VLOOKUP(U156,'[1]3. Labour - TS'!$R:$Y,8,0) -> Yes | Y156: Include | Z156: Internal
A157: RMRU | B157: RKL | C157: 2021-06-17 | D157: 2021-06-17 | E157: 3 | F157: 2022 | G157: 1100 | H157: 309353589 | K157: NWA | L157: 4010246 0010 | M157: Storm -2021- Time Sheet - 12014 | N157: 810120 | O157: Corp Ops Lead NT | P157: 570.78 | Q157: AUD | S157: AFRU | T157: SYS_BCBATCH | U157: 10002532 | X157: =VLOOKUP(U157,'[1]3. Labour - TS'!$R:$Y,8,0) -> Yes | Y157: Include | Z157: Internal
B158: RKL | C158: 2021-06-12 | D158: 2021-06-18 | E158: 3 | F158: 2022 | G158: 1100 | H158: 309358258 | K158: NWA | L158: 4010246 0010 | M158: Storm -2021- Time Sheet - 12014 | N158: 810300 | O158: Allowance Expenses | P158: 60.36 | Q158: AUD | S158: CATS | T158: SYS_BCBATCH | U158: 10002617 | X158: =VLOOKUP(U158,'[1]3. Labour - TS'!$R:$Y,8,0) -> Yes | Y158: Include | Z158: Internal
B159: RKL | C159: 2021-06-12 | D159: 2021-06-18 | E159: 3 | F159: 2022 | G159: 1100 | H159: 309358258 | K159: NWA | L159: 4010246 0010 | M159: Storm -2021- Time Sheet - 12014 | N159: 810300 | O159: Allowance Expenses | P159: 60.36 | Q159: AUD | S159: CATS | T159: SYS_BCBATCH | U159: 10002617 | X159: =VLOOKUP(U159,'[1]3. Labour - TS'!$R:$Y,8,0) -> Yes | Y159: Include | Z159: Internal
B160: RKL | C160: 2021-06-12 | D160: 2021-06-18 | E160: 3 | F160: 2022 | G160: 1100 | H160: 309358258 | K160: NWA | L160: 4010246 0010 | M160: Storm -2021- Time Sheet - 12014 | N160: 810300 | O160: Allowance Expenses | P160: 40.24 | Q160: AUD | S160: CATS | T160: SYS_BCBATCH | U160: 10002617 | X160: =VLOOKUP(U160,'[1]3. Labour - TS'!$R:$Y,8,0) -> Yes | Y160: Include | Z160: Internal
A161: RMRU | B161: RKL | C161: 2021-06-18 | D161: 2021-06-18 | E161: 3 | F161: 2022 | G161: 1100 | H161: 309359094 | K161: NWA | L161: 4010246 0010 | M161: Storm -2021- Time Sheet - 12014 | N161: 810160 | O161: Corp Manager NT | P161: 958.73 | Q161: AUD | S161: AFRU | T161: SYS_BCBATCH | U161: 10009915 | X161: =VLOOKUP(U161,'[1]3. Labour - TS'!$R:$Y,8,0) -> Yes | Y161: Include | Z161: Internal
A162: RMRU | B162: RKL | C162: 2021-06-18 | D162: 2021-06-18 | E162: 3 | F162: 2022 | G162: 1100 | H162: 309359095 | K162: NWA | L162: 4010246 0010 | M162: Storm -2021- Time Sheet - 12014 | N162: 810160 | O162: Corp Manager NT | P162: 958.73 | Q162: AUD | S162: AFRU | T162: SYS_BCBATCH | U162: 10009915 | X162: =VLOOKUP(U162,'[1]3. Labour - TS'!$R:$Y,8,0) -> Yes | Y162: Include | Z162: Internal
A163: RMRU | B163: RKL | C163: 2021-06-18 | D163: 2021-06-18 | E163: 3 | F163: 2022 | G163: 1100 | H163: 309359096 | K163: NWA | L163: 4010246 0010 | M163: Storm -2021- Time Sheet - 12014 | N163: 810160 | O163: Corp Manager NT | P163: 958.73 | Q163: AUD | S163: AFRU | T163: SYS_BCBATCH | U163: 10009915 | X163: =VLOOKUP(U163,'[1]3. Labour - TS'!$R:$Y,8,0) -> Yes | Y163: Include | Z163: Internal
A164: RMRU | B164: RKL | C164: 2021-06-18 | D164: 2021-06-18 | E164: 3 | F164: 2022 | G164: 1100 | H164: 309359107 | K164: NWA | L164: 4010246 0010 | M164: Storm -2021- Time Sheet - 12014 | N164: 810236 | O164: Corp Semi Prof OT | P164: 163.58 | Q164: AUD | S164: AFRU | T164: SYS_BCBATCH | U164: 10002617 | X164: =VLOOKUP(U164,'[1]3. Labour - TS'!$R:$Y,8,0) -> Yes | Y164: Include | Z164: Internal
A165: RMRU | B165: RKL | C165: 2021-06-18 | D165: 2021-06-18 | E165: 3 | F165: 2022 | G165: 1100 | H165: 309359108 | K165: NWA | L165: 4010246 0010 | M165: Storm -2021- Time Sheet - 12014 | N165: 810236 | O165: Corp Semi Prof OT | P165: 1363.13 | Q165: AUD | S165: AFRU | T165: SYS_BCBATCH | U165: 10002617 | X165: =VLOOKUP(U165,'[1]3. Labour - TS'!$R:$Y,8,0) -> Yes | Y165: Include | Z165: Internal
A166: RMRU | B166: RKL | C166: 2021-06-18 | D166: 2021-06-18 | E166: 3 | F166: 2022 | G166: 1100 | H166: 309359109 | K166: NWA | L166: 4010246 0010 | M166: Storm -2021- Time Sheet - 12014 | N166: 810236 | O166: Corp Semi Prof OT | P166: 1308.6 | Q166: AUD | S166: AFRU | T166: SYS_BCBATCH | U166: 10002617 | X166: =VLOOKUP(U166,'[1]3. Labour - TS'!$R:$Y,8,0) -> Yes | Y166: Include | Z166: Internal
A167: RMRU | B167: RKL | C167: 2021-06-18 | D167: 2021-06-18 | E167: 3 | F167: 2022 | G167: 1100 | H167: 309359110 | K167: NWA | L167: 4010246 0010 | M167: Storm -2021- Time Sheet - 12014 | N167: 810236 | O167: Corp Semi Prof OT | P167: 981.45 | Q167: AUD | S167: AFRU | T167: SYS_BCBATCH | U167: 10002617 | X167: =VLOOKUP(U167,'[1]3. Labour - TS'!$R:$Y,8,0) -> Yes | Y167: Include | Z167: Internal
A168: RMRU | B168: RKL | C168: 2021-06-18 | D168: 2021-06-18 | E168: 3 | F168: 2022 | G168: 1100 | H168: 309359111 | K168: NWA | L168: 4010246 0010 | M168: Storm -2021- Time Sheet - 12014 | N168: 810236 | O168: Corp Semi Prof OT | P168: 54.53 | Q168: AUD | S168: AFRU | T168: SYS_BCBATCH | U168: 10002617 | X168: =VLOOKUP(U168,'[1]3. Labour - TS'!$R:$Y,8,0) -> Yes | Y168: Include | Z168: Internal
A169: RMRU | B169: RKL | C169: 2021-06-18 | D169: 2021-06-18 | E169: 3 | F169: 2022 | G169: 1100 | H169: 309359112 | K169: NWA | L169: 4010246 0010 | M169: Storm -2021- Time Sheet - 12014 | N169: 810236 | O169: Corp Semi Prof OT | P169: 218.1 | Q169: AUD | S169: AFRU | T169: SYS_BCBATCH | U169: 10002617 | X169: =VLOOKUP(U169,'[1]3. Labour - TS'!$R:$Y,8,0) -> Yes | Y169: Include | Z169: Internal
A170: RMRU | B170: RKL | C170: 2021-06-18 | D170: 2021-06-18 | E170: 3 | F170: 2022 | G170: 1100 | H170: 309359125 | K170: NWA | L170: 4010246 0010 | M170: Storm -2021- Time Sheet - 12014 | N170: 810141 | O170: Corp Snr Mngr NT | P170: 1213.35 | Q170: AUD | S170: AFRU | T170: SYS_BCBATCH | U170: 10001047 | X170: =VLOOKUP(U170,'[1]3. Labour - TS'!$R:$Y,8,0) -> Yes | Y170: Include | Z170: Internal
A171: RMRU | B171: RKL | C171: 2021-06-18 | D171: 2021-06-18 | E171: 3 | F171: 2022 | G171: 1100 | H171: 309359126 | K171: NWA | L171: 4010246 0010 | M171: Storm -2021- Time Sheet - 12014 | N171: 810141 | O171: Corp Snr Mngr NT | P171: 1213.35 | Q171: AUD | S171: AFRU | T171: SYS_BCBATCH | U171: 10001047 | X171: =VLOOKUP(U171,'[1]3. Labour - TS'!$R:$Y,8,0) -> Yes | Y171: Include | Z171: Internal
A172: RMRU | B172: RKL | C172: 2021-06-18 | D172: 2021-06-18 | E172: 3 | F172: 2022 | G172: 1100 | H172: 309359127 | K172: NWA | L172: 4010246 0010 | M172: Storm -2021- Time Sheet - 12014 | N172: 810141 | O172: Corp Snr Mngr NT | P172: 1213.35 | Q172: AUD | S172: AFRU | T172: SYS_BCBATCH | U172: 10001047 | X172: =VLOOKUP(U172,'[1]3. Labour - TS'!$R:$Y,8,0) -> Yes | Y172: Include | Z172: Internal
A173: RMRU | B173: RKL | C173: 2021-06-18 | D173: 2021-06-18 | E173: 3 | F173: 2022 | G173: 1100 | H173: 309359128 | K173: NWA | L173: 4010246 0010 | M173: Storm -2021- Time Sheet - 12014 | N173: 810141 | O173: Corp Snr Mngr NT | P173: 1213.35 | Q173: AUD | S173: AFRU | T173: SYS_BCBATCH | U173: 10001047 | X173: =VLOOKUP(U173,'[1]3. Labour - TS'!$R:$Y,8,0) -> Yes | Y173: Include | Z173: Internal
B174: RKL | C174: 2021-06-17 | D174: 2021-06-24 | E174: 3 | F174: 2022 | G174: 1100 | H174: 309359172 | K174: NWA | L174: 4010246 0010 | M174: Storm -2021- Time Sheet - 12014 | N174: 810300 | O174: Allowance Expenses | P174: 716.1 | Q174: AUD | S174: CATS | T174: SYS_BCBATCH | U174: 10001318 | X174: =VLOOKUP(U174,'[1]3. Labour - TS'!$R:$Y,8,0) -> Yes | Y174: Include | Z174: Internal
B175: RKL | C175: 2021-06-17 | D175: 2021-06-24 | E175: 3 | F175: 2022 | G175: 1100 | H175: 309359172 | K175: NWA | L175: 4010246 0010 | M175: Storm -2021- Time Sheet - 12014 | N175: 810300 | O175: Allowance Expenses | P175: 20.12 | Q175: AUD | S175: CATS | T175: SYS_BCBATCH | U175: 10001318 | X175: =VLOOKUP(U175,'[1]3. Labour - TS'!$R:$Y,8,0) -> Yes | Y175: Include | Z175: Internal
A176: RMRU | B176: RKL | C176: 2021-06-25 | D176: 2021-06-25 | E176: 3 | F176: 2022 | G176: 1100 | H176: 309359199 | K176: NWA | L176: 4010246 0010 | M176: Storm -2021- Time Sheet - 12014 | N176: 810122 | O176: Corp Prof Exp NT | P176: -1315.34 | Q176: AUD | R176: Customer Communications | S176: AFRU | T176: SYS_BCBATCH | U176: 10009135 | X176: =VLOOKUP(U176,'[1]3. Labour - TS'!$R:$Y,8,0) -> NO | Y176: Exclude
A177: RMRU | B177: RKL | C177: 2021-06-20 | D177: 2021-06-20 | E177: 3 | F177: 2022 | G177: 1100 | H177: 309360453 | K177: NWA | L177: 4010246 0010 | M177: Storm -2021- Time Sheet - 12014 | N177: 810123 | O177: Corp Prof NT | P177: 676.05 | Q177: AUD | S177: AFRU | T177: SYS_BCBATCH | U177: 10002256 | X177: =VLOOKUP(U177,'[1]3. Labour - TS'!$R:$Y,8,0) -> Yes | Y177: Include | Z177: Internal
A178: RMRU | B178: RKL | C178: 2021-06-20 | D178: 2021-06-20 | E178: 3 | F178: 2022 | G178: 1100 | H178: 309360454 | K178: NWA | L178: 4010246 0010 | M178: Storm -2021- Time Sheet - 12014 | N178: 810123 | O178: Corp Prof NT | P178: 676.05 | Q178: AUD | S178: AFRU | T178: SYS_BCBATCH | U178: 10002256 | X178: =VLOOKUP(U178,'[1]3. Labour - TS'!$R:$Y,8,0) -> Yes | Y178: Include | Z178: Internal
A179: RMRU | B179: RKL | C179: 2021-06-20 | D179: 2021-06-20 | E179: 3 | F179: 2022 | G179: 1100 | H179: 309360455 | K179: NWA | L179: 4010246 0010 | M179: Storm -2021- Time Sheet - 12014 | N179: 810123 | O179: Corp Prof NT | P179: 676.05 | Q179: AUD | S179: AFRU | T179: SYS_BCBATCH | U179: 10002256 | X179: =VLOOKUP(U179,'[1]3. Labour - TS'!$R:$Y,8,0) -> Yes | Y179: Include | Z179: Internal
A180: RMRU | B180: RKL | C180: 2021-06-20 | D180: 2021-06-20 | E180: 3 | F180: 2022 | G180: 1100 | H180: 309360456 | K180: NWA | L180: 4010246 0010 | M180: Storm -2021- Time Sheet - 12014 | N180: 810123 | O180: Corp Prof NT | P180: 676.05 | Q180: AUD | S180: AFRU | T180: SYS_BCBATCH | U180: 10002256 | X180: =VLOOKUP(U180,'[1]3. Labour - TS'!$R:$Y,8,0) -> Yes | Y180: Include | Z180: Internal
A181: RMRU | B181: RKL | C181: 2021-06-20 | D181: 2021-06-20 | E181: 3 | F181: 2022 | G181: 1100 | H181: 309360457 | K181: NWA | L181: 4010246 0010 | M181: Storm -2021- Time Sheet - 12014 | N181: 810123 | O181: Corp Prof NT | P181: 676.05 | Q181: AUD | S181: AFRU | T181: SYS_BCBATCH | U181: 10002256 | X181: =VLOOKUP(U181,'[1]3. Labour - TS'!$R:$Y,8,0) -> Yes | Y181: Include | Z181: Internal
A182: RMRU | B182: RKL | C182: 2021-06-20 | D182: 2021-06-20 | E182: 3 | F182: 2022 | G182: 1100 | H182: 309360458 | K182: NWA | L182: 4010246 0010 | M182: Storm -2021- Time Sheet - 12014 | N182: 810123 | O182: Corp Prof NT | P182: 676.05 | Q182: AUD | S182: AFRU | T182: SYS_BCBATCH | U182: 10002256 | X182: =VLOOKUP(U182,'[1]3. Labour - TS'!$R:$Y,8,0) -> Yes | Y182: Include | Z182: Internal
A183: RMRU | B183: RKL | C183: 2021-06-21 | D183: 2021-06-21 | E183: 3 | F183: 2022 | G183: 1100 | H183: 309360610 | K183: NWA | L183: 4010246 0010 | M183: Storm -2021- Time Sheet - 12014 | N183: 810118 | O183: Project Manager NT | P183: 854.03 | Q183: AUD | S183: AFRU | T183: SYS_BCBATCH | U183: 10000641 | X183: =VLOOKUP(U183,'[1]3. Labour - TS'!$R:$Y,8,0) -> Yes | Y183: Include | Z183: Internal
A184: RMRU | B184: RKL | C184: 2021-06-21 | D184: 2021-06-21 | E184: 3 | F184: 2022 | G184: 1100 | H184: 309360611 | K184: NWA | L184: 4010246 0010 | M184: Storm -2021- Time Sheet - 12014 | N184: 810122 | O184: Corp Prof Exp NT | P184: 758.85 | Q184: AUD | R184: EMT Recovery Hub Strike Team | S184: AFRU | T184: SYS_BCBATCH | U184: 10009892 | X184: =VLOOKUP(U184,'[1]3. Labour - TS'!$R:$Y,8,0) -> NO | Y184: Exclude
A185: RMRU | B185: RKL | C185: 2021-06-21 | D185: 2021-06-21 | E185: 3 | F185: 2022 | G185: 1100 | H185: 309360614 | K185: NWA | L185: 4010246 0010 | M185: Storm -2021- Time Sheet - 12014 | N185: 810122 | O185: Corp Prof Exp NT | P185: 607.08 | Q185: AUD | R185: EMT - Customer contact centre training, | S185: AFRU | T185: SYS_BCBATCH | U185: 10009892 | X185: =VLOOKUP(U185,'[1]3. Labour - TS'!$R:$Y,8,0) -> NO | Y185: Exclude
A186: RMRU | B186: RKL | C186: 2021-06-21 | D186: 2021-06-21 | E186: 3 | F186: 2022 | G186: 1100 | H186: 309361099 | K186: NWA | L186: 4010246 0010 | M186: Storm -2021- Time Sheet - 12014 | N186: 810236 | O186: Corp Semi Prof OT | P186: 404 | Q186: AUD | R186: Storm Response Customer Comms | S186: AFRU | T186: SYS_BCBATCH | U186: 10008965 | X186: =VLOOKUP(U186,'[1]3. Labour - TS'!$R:$Y,8,0) -> NO | Y186: Exclude
A187: RMRU | B187: RKL | C187: 2021-06-21 | D187: 2021-06-21 | E187: 3 | F187: 2022 | G187: 1100 | H187: 309361100 | K187: NWA | L187: 4010246 0010 | M187: Storm -2021- Time Sheet - 12014 | N187: 810236 | O187: Corp Semi Prof OT | P187: 303 | Q187: AUD | R187: Storm Response Customer Comms | S187: AFRU | T187: SYS_BCBATCH | U187: 10008965 | X187: =VLOOKUP(U187,'[1]3. Labour - TS'!$R:$Y,8,0) -> NO | Y187: Exclude
A188: RMRU | B188: RKL | C188: 2021-06-21 | D188: 2021-06-21 | E188: 3 | F188: 2022 | G188: 1100 | H188: 309361101 | K188: NWA | L188: 4010246 0010 | M188: Storm -2021- Time Sheet - 12014 | N188: 810236 | O188: Corp Semi Prof OT | P188: 303 | Q188: AUD | R188: Storm Response Customer Comms | S188: AFRU | T188: SYS_BCBATCH | U188: 10008965 | X188: =VLOOKUP(U188,'[1]3. Labour - TS'!$R:$Y,8,0) -> NO | Y188: Exclude
A189: RMRU | B189: RKL | C189: 2021-06-21 | D189: 2021-06-21 | E189: 3 | F189: 2022 | G189: 1100 | H189: 309361102 | K189: NWA | L189: 4010246 0010 | M189: Storm -2021- Time Sheet - 12014 | N189: 810236 | O189: Corp Semi Prof OT | P189: 1060.5 | Q189: AUD | R189: Storm Response Customer Comms | S189: AFRU | T189: SYS_BCBATCH | U189: 10008965 | X189: =VLOOKUP(U189,'[1]3. Labour - TS'!$R:$Y,8,0) -> NO | Y189: Exclude
A190: RMRU | B190: RKL | C190: 2021-06-21 | D190: 2021-06-21 | E190: 3 | F190: 2022 | G190: 1100 | H190: 309361103 | K190: NWA | L190: 4010246 0010 | M190: Storm -2021- Time Sheet - 12014 | N190: 810122 | O190: Corp Prof Exp NT | P190: 716.1 | Q190: AUD | S190: AFRU | T190: SYS_BCBATCH | U190: 10001318 | X190: =VLOOKUP(U190,'[1]3. Labour - TS'!$R:$Y,8,0) -> Yes | Y190: Include | Z190: Internal
A191: RMRU | B191: RKL | C191: 2021-06-21 | D191: 2021-06-21 | E191: 3 | F191: 2022 | G191: 1100 | H191: 309361104 | K191: NWA | L191: 4010246 0010 | M191: Storm -2021- Time Sheet - 12014 | N191: 810122 | O191: Corp Prof Exp NT | P191: 716.1 | Q191: AUD | S191: AFRU | T191: SYS_BCBATCH | U191: 10001318 | X191: =VLOOKUP(U191,'[1]3. Labour - TS'!$R:$Y,8,0) -> Yes | Y191: Include | Z191: Internal
A192: RMRU | B192: RKL | C192: 2021-06-21 | D192: 2021-06-21 | E192: 3 | F192: 2022 | G192: 1100 | H192: 309361105 | K192: NWA | L192: 4010246 0010 | M192: Storm -2021- Time Sheet - 12014 | N192: 810236 | O192: Corp Semi Prof OT | P192: 1212 | Q192: AUD | R192: Storm Response Customer Comms | S192: AFRU | T192: SYS_BCBATCH | U192: 10008965 | X192: =VLOOKUP(U192,'[1]3. Labour - TS'!$R:$Y,8,0) -> NO | Y192: Exclude
A193: RMRU | B193: RKL | C193: 2021-06-21 | D193: 2021-06-21 | E193: 3 | F193: 2022 | G193: 1100 | H193: 309361106 | K193: NWA | L193: 4010246 0010 | M193: Storm -2021- Time Sheet - 12014 | N193: 810236 | O193: Corp Semi Prof OT | P193: 303 | Q193: AUD | R193: Storm Response Customer Comms | S193: AFRU | T193: SYS_BCBATCH | U193: 10008965 | X193: =VLOOKUP(U193,'[1]3. Labour - TS'!$R:$Y,8,0) -> NO | Y193: Exclude
A194: RMRU | B194: RKL | C194: 2021-06-21 | D194: 2021-06-21 | E194: 3 | F194: 2022 | G194: 1100 | H194: 309361107 | K194: NWA | L194: 4010246 0010 | M194: Storm -2021- Time Sheet - 12014 | N194: 810236 | O194: Corp Semi Prof OT | P194: 252.5 | Q194: AUD | R194: Storm Response Customer Comms | S194: AFRU | T194: SYS_BCBATCH | U194: 10008965 | X194: =VLOOKUP(U194,'[1]3. Labour - TS'!$R:$Y,8,0) -> NO | Y194: Exclude
A195: RMRU | B195: RKL | C195: 2021-06-21 | D195: 2021-06-21 | E195: 3 | F195: 2022 | G195: 1100 | H195: 309361108 | K195: NWA | L195: 4010246 0010 | M195: Storm -2021- Time Sheet - 12014 | N195: 810122 | O195: Corp Prof Exp NT | P195: 1315.34 | Q195: AUD | R195: Customer Communications | S195: AFRU | T195: SYS_BCBATCH | U195: 10009135 | X195: =VLOOKUP(U195,'[1]3. Labour - TS'!$R:$Y,8,0) -> NO | Y195: Exclude
A196: RMRU | B196: RKL | C196: 2021-06-21 | D196: 2021-06-21 | E196: 3 | F196: 2022 | G196: 1100 | H196: 309361109 | K196: NWA | L196: 4010246 0010 | M196: Storm -2021- Time Sheet - 12014 | N196: 810124 | O196: Corp Prof Spec NT | P196: 618.26 | Q196: AUD | S196: AFRU | T196: SYS_BCBATCH | U196: 10000868 | X196: =VLOOKUP(U196,'[1]3. Labour - TS'!$R:$Y,8,0) -> NO | Y196: Exclude
A197: RMRU | B197: RKL | C197: 2021-06-21 | D197: 2021-06-21 | E197: 3 | F197: 2022 | G197: 1100 | H197: 309361110 | K197: NWA | L197: 4010246 0010 | M197: Storm -2021- Time Sheet - 12014 | N197: 810220 | O197: Corp Ops Lead OT | P197: 291.65 | Q197: AUD | S197: AFRU | T197: SYS_BCBATCH | U197: 10001233 | X197: =VLOOKUP(U197,'[1]3. Labour - TS'!$R:$Y,8,0) -> NO | Y197: Exclude
A198: RMRU | B198: RKL | C198: 2021-06-21 | D198: 2021-06-21 | E198: 3 | F198: 2022 | G198: 1100 | H198: 309361111 | K198: NWA | L198: 4010246 0010 | M198: Storm -2021- Time Sheet - 12014 | N198: 810120 | O198: Corp Ops Lead NT | P198: 647.82 | Q198: AUD | S198: AFRU | T198: SYS_BCBATCH | U198: 10001233 | X198: =VLOOKUP(U198,'[1]3. Labour - TS'!$R:$Y,8,0) -> NO | Y198: Exclude
A199: RMRU | B199: RKL | C199: 2021-06-21 | D199: 2021-06-21 | E199: 3 | F199: 2022 | G199: 1100 | H199: 309361112 | K199: NWA | L199: 4010246 0010 | M199: Storm -2021- Time Sheet - 12014 | N199: 810220 | O199: Corp Ops Lead OT | P199: 174.99 | Q199: AUD | S199: AFRU | T199: SYS_BCBATCH | U199: 10001233 | X199: =VLOOKUP(U199,'[1]3. Labour - TS'!$R:$Y,8,0) -> NO | Y199: Exclude
A200: RMRU | B200: RKL | C200: 2021-06-21 | D200: 2021-06-21 | E200: 3 | F200: 2022 | G200: 1100 | H200: 309361113 | K200: NWA | L200: 4010246 0010 | M200: Storm -2021- Time Sheet - 12014 | N200: 810120 | O200: Corp Ops Lead NT | P200: 647.82 | Q200: AUD | S200: AFRU | T200: SYS_BCBATCH | U200: 10001233 | X200: =VLOOKUP(U200,'[1]3. Labour - TS'!$R:$Y,8,0) -> NO | Y200: Exclude
... 1489 more rows

Sheet Positions TS & cons.June21 Stor (hidden)
A1: Division | B1: Org Unit | C1: Org Unit Description | D1: Cost Center | E1: Cost Center Desc | F1: Employee No. | G1: Employee Name | H1: Position | I1: Position - Description | J1: Manager's Emp No. | K1: Manager's Name | L1: Manager's Position | M1: Manager's Position Desc | N1: Location ID | O1: Location | P1: Employment Status | Q1: Type | R1: Company Code | S1: Company Code Desc | T1: Hours per week | U1: Headcount | V1: FTE
A2: Network Operations & Safety | B2: 10000053 | C2: CEOT | D2: 13104 | E2: Distribution Control | F2: 10010010 | G2: Peter Galey | H2: 30022480 | I2: Network Control Support Manager | J2: 10000174 | K2: Julie Warke | L2: 30019834 | M2: Manager, CEOT | N2: 3005 | O2: Flinders St | P2: Permanent Full Time | Q2: IEA | R2: 1200 | S2: AusNet Electricity Srvs | T2: 37.50 | U2: 1 | V2: 1
A3: Network Operations & Safety | B3: 10000199 | C3: Transmission Performance | D3: 13263 | E3: Transmission Control | F3: 10000711 | G3: Martin Cavanagh | H3: 30000172 | I3: Manager, Operational and Access Planning | J3: 10000087 | K3: Tim Lloyd | L3: 30018660 | M3: GM Network Control & Operations | N3: 3005 | O3: Flinders St | P3: Permanent Full Time | Q3: IEA | R3: 2100 | S3: AusNet Transmission Grp | T3: 37.50 | U3: 1 | V3: 1
A4: Network Operations & Safety | B4: 10000209 | C4: Customer & Support - East | D4: 13187 | E4: Community Engagement | F4: 10000478 | G4: Derek Walton | H4: 30020895 | I4: Community Engagement Manager | J4: 10009850 | K4: Kate Lancaster | L4: 30021390 | M4: Customer Comms & Engagement Manager | N4: 3022 | O4: Traralgon | P4: Permanent Full Time | Q4: IEA | R4: 1200 | S4: AusNet Electricity Srvs | T4: 37.50 | U4: 1 | V4: 1
A5: Network Operations & Safety | B5: 10000263 | C5: Commissioning & Construction | D5: 13513 | E5: Commissioning & Cons | F5: 10001121 | G5: Nick Hewes | H5: 30001063 | I5: Lines Connect Engineer | J5: 10007676 | K5: Matthew Yob | L5: 30021190 | M5: Group Leader Commissioning & Constructn | N5: 3011 | O5: Malvern | P5: Permanent Full Time | Q5: IEA | R5: 1200 | S5: AusNet Electricity Srvs | T5: 37.50 | U5: 1 | V5: 1
A6: Network Operations & Safety | B6: 10000263 | C6: Commissioning & Construction | D6: 13513 | E6: Commissioning & Cons | F6: 10001200 | G6: Mathew Durack | H6: 30001128 | I6: Lines Connect Engineer | J6: 10007676 | K6: Matthew Yob | L6: 30021190 | M6: Group Leader Commissioning & Constructn | N6: 3011 | O6: Malvern | P6: Permanent Full Time | Q6: IEA | R6: 1200 | S6: AusNet Electricity Srvs | T6: 37.50 | U6: 1 | V6: 1
A7: Network Operations & Safety | B7: 10000290 | C7: Lines Engineering Design | D7: 12012 | E7: Engineering Solution | F7: 10009019 | G7: Rafi Muneer | H7: 30002212 | I7: Design Engineer | J7: 10010038 | K7: Gope Gunaratnam | L7: 30022598 | M7: Team Leader Engineering Design | N7: 3010 | O7: Lilydale | P7: Permanent Full Time | Q7: IEA | R7: 1200 | S7: AusNet Electricity Srvs | T7: 37.50 | U7: 1 | V7: 1
A8: Network Operations & Safety | B8: 10000290 | C8: Lines Engineering Design | D8: 12012 | E8: Engineering Solution | F8: 10002617 | G8: Stephanie Phillips | H8: 30010826 | I8: Design Officer | J8: 10010038 | K8: Gope Gunaratnam | L8: 30022598 | M8: Team Leader Engineering Design | N8: 3010 | O8: Lilydale | P8: Permanent Full Time | Q8: ASU/APESMA | R8: 1200 | S8: AusNet Electricity Srvs | T8: 37.50 | U8: 1 | V8: 1
A9: Network Operations & Safety | B9: 10000328 | C9: Local Network Service Provider (LNSP) | D9: 12018 | E9: Mark Data & Mter Ser | F9: 10008666 | G9: Khyati Shah | H9: 30001672 | I9: LNSP Analyst | J9: 10001682 | K9: Prachi Mehta | L9: 30010802 | M9: LNSP Team Leader | N9: 3007 | O9: Freshwater Pl | P9: Permanent Full Time | Q9: IEA | R9: 1200 | S9: AusNet Electricity Srvs | T9: 37.50 | U9: 1 | V9: 1
A10: Network Operations & Safety | B10: 10000343 | C10: Customer Programs - North | D10: 13121 | E10: Cust Prog central | F10: 10002224 | G10: Matt Parker | H10: 30022670 | I10: Energy Project Coordinator - Complex | J10: 10001247 | K10: Paul Tanner | L10: 30020888 | M10: Customer Program Manager - North | N10: 3026 | O10: Wodonga | P10: Permanent Full Time | Q10: IEA | R10: 1200 | S10: AusNet Electricity Srvs | T10: 37.50 | U10: 1 | V10: 1
A11: Network Operations & Safety | B11: 10000343 | C11: Customer Programs - North | D11: 13121 | E11: Cust Prog central | F11: 10001415 | G11: Paul Kempton | H11: 30021197 | I11: Energy Project Coordinator - Complex | J11: 10001247 | K11: Paul Tanner | L11: 30020888 | M11: Customer Program Manager - North | N11: 3010 | O11: Lilydale | P11: Permanent Full Time | Q11: ASU/APESMA | R11: 1200 | S11: AusNet Electricity Srvs | T11: 37.50 | U11: 1 | V11: 1
A12: Network Operations & Safety | B12: 10000407 | C12: Network Control 3 | D12: 13104 | E12: Distribution Control | F12: 10002460 | G12: Matt McEwan | H12: 30007469 | I12: Network Controller (D) | J12: 10000593 | K12: Sergio Inacio | L12: 30008519 | M12: Shift Manager | N12: 3005 | O12: Flinders St | P12: Permanent Full Time | Q12: IEA Shift 12 | R12: 1200 | S12: AusNet Electricity Srvs | T12: 37.50 | U12: 1 | V12: 1
A13: Network Operations & Safety | B13: 10002231 | C13: Customer Programs - East | D13: 13723 | E13: Cust Prog Cent East | F13: 10000368 | G13: Gareth Downes | H13: 30020736 | I13: Customer Program Manager - East | J13: 10009397 | K13: Scott Harvey | L13: 30018448 | M13: Customer Projects Manager | N13: 3001 | O13: Beaconsfield | P13: Permanent Full Time | Q13: IEA | R13: 1200 | S13: AusNet Electricity Srvs | T13: 37.50 | U13: 1 | V13: 1
A14: Network Operations & Safety | B14: 10002317 | C14: Distribution Network Access Planning | D14: 13031 | E14: Operations Optimisat | F14: 10002256 | G14: Dulan Gamage | H14: 30021138 | I14: Network Reliability Perf Engineer Lead | J14: 10004457 | K14: Johnny Mangala | L14: 30020613 | M14: Distribution Network Access Manager | N14: 3005 | O14: Flinders St | P14: Permanent Full Time | Q14: IEA | R14: 1200 | S14: AusNet Electricity Srvs | T14: 37.50 | U14: 1 | V14: 1
A15: Network Operations & Safety | B15: 10002317 | C15: Distribution Network Access Planning | D15: 13031 | E15: Operations Optimisat | F15: 10002501 | G15: Lin Wu | H15: 30021137 | I15: Network Reliability Analyst | J15: 10004457 | K15: Johnny Mangala | L15: 30020613 | M15: Distribution Network Access Manager | N15: 3005 | O15: Flinders St | P15: Permanent Full Time | Q15: IEA | R15: 2100 | S15: AusNet Transmission Grp | T15: 37.50 | U15: 1 | V15: 1
A16: Network Operations & Safety | B16: 10004392 | C16: Metering Field Data Collection - LDL | D16: 16008 | E16: Business Enablement | F16: 10002370 | G16: Willem VanEkeris | H16: 30002458 | I16: Field Service Representative Lilydale | J16: 10000402 | K16: Terry Poulton | L16: 30000441 | M16: Fld Data Collectn Manager Central | N16: 3010 | O16: Lilydale | P16: Permanent Full Time | Q16: ASU/APESMA | R16: 1200 | S16: AusNet Electricity Srvs | T16: 37.50 | U16: 1 | V16: 1
A17: Network Management & Digital | B17: 10004485 | C17: Human Centred Design | D17: 12213 | E17: Digital Futures&Inno | F17: 10000507 | G17: Lance Robson | H17: 30018351 | I17: Business Analyst | J17: 10007159 | K17: Rebecca Monaghan | L17: 30014005 | M17: Head of Human Centred Design | N17: 3007 | O17: Freshwater Pl | P17: Permanent Full Time | Q17: IEA | R17: 2100 | S17: AusNet Transmission Grp | T17: 37.50 | U17: 1 | V17: 1
A18: Network Operations & Safety | B18: 10004529 | C18: Security & Emergency Services | D18: 13981 | E18: Security & Emergency | F18: 10009860 | G18: Tony Jifkins | H18: 30014712 | I18: Project Security Advisor | J18: 10007022 | K18: James Radalj | L18: 30000338 | M18: Security & Emergency Serv Manager | N18: 3007 | O18: Freshwater Pl | P18: Permanent Full Time | Q18: IEA | R18: 1200 | S18: AusNet Electricity Srvs | T18: 37.50 | U18: 1 | V18: 1
A19: Network Operations & Safety | B19: 10005903 | C19: TX Contract Management | D19: 14605 | E19: Contract Mang Trans | F19: 10000113 | G19: Geoff Thorn | H19: 30021437 | I19: Transmission Contract Manager | J19: 10000097 | K19: Dean Kemp | L19: 30018661 | M19: GM Field Operations | N19: 3007 | O19: Freshwater Pl | P19: Permanent Full Time | Q19: IEA | R19: 2100 | S19: AusNet Transmission Grp | T19: 37.50 | U19: 1 | V19: 1
A20: Network Management & Digital | B20: 10006354 | C20: 5MS | D20: 12029 | E20: Future Technology Pl | F20: 10009915 | G20: Amy Miller | H20: 30021340 | I20: Project Manager (Enterprise) | J20: 10009538 | K20: Suresh Maguluri | L20: 30019857 | M20: Program Director - 5MS | N20: 3007 | O20: Freshwater Pl | P20: Permanent Full Time | Q20: IEA | R20: 1200 | S20: AusNet Electricity Srvs | T20: 37.50 | U20: 1 | V20: 1
A21: Network Operations & Safety | B21: 10007210 | C21: 3D CAD/BIM Lines Central/North | D21: 12012 | E21: Engineering Solution | F21: 10002532 | G21: Dean Wright | H21: 30002622 | I21: Line Designer | J21: 10010021 | K21: Travis Saunders | L21: 30022286 | M21: Team Leader 3D CAD BIM Lines | N21: 3010 | O21: Lilydale | P21: Permanent Full Time | Q21: ASU/APESMA | R21: 1200 | S21: AusNet Electricity Srvs | T21: 37.50 | U21: 1 | V21: 1
A22: Network Operations & Safety | B22: 10007210 | C22: 3D CAD/BIM Lines Central/North | D22: 12012 | E22: Engineering Solution | F22: 10002562 | G22: Daniel Calgaro | H22: 30002649 | I22: Line Designer | J22: 10010021 | K22: Travis Saunders | L22: 30022286 | M22: Team Leader 3D CAD BIM Lines | N22: 3010 | O22: Lilydale | P22: Permanent Full Time | Q22: ASU/APESMA | R22: 1200 | S22: AusNet Electricity Srvs | T22: 37.50 | U22: 1 | V22: 1
A23: Network Operations & Safety | B23: 10007210 | C23: 3D CAD/BIM Lines Central/North | D23: 12012 | E23: Engineering Solution | F23: 10008903 | G23: Tobias Binkert | H23: 30002229 | I23: Drafter | J23: 10010021 | K23: Travis Saunders | L23: 30022286 | M23: Team Leader 3D CAD BIM Lines | N23: 3010 | O23: Lilydale | P23: Permanent Full Time | Q23: ASU/APESMA | R23: 1200 | S23: AusNet Electricity Srvs | T23: 37.50 | U23: 1 | V23: 1
A24: Network Operations & Safety | B24: 10007366 | C24: Energy Projects - North 2 | D24: 13121 | E24: Cust Prog central | F24: 10001395 | G24: Paul Hoffman | H24: 30021198 | I24: Lead Energy Project Coordinator | J24: 10001247 | K24: Paul Tanner | L24: 30020888 | M24: Customer Program Manager - North | N24: 3026 | O24: Wodonga | P24: Permanent Full Time | Q24: IEA | R24: 1200 | S24: AusNet Electricity Srvs | T24: 37.50 | U24: 1 | V24: 1
A25: Network Operations & Safety | B25: 10007367 | C25: Energy Projects - East 2 | D25: 13723 | E25: Cust Prog Cent East | F25: 10001318 | G25: Tom Minogue | H25: 30021196 | I25: Lead Energy Project Coordinator | J25: 10000368 | K25: Gareth Downes | L25: 30020736 | M25: Customer Program Manager - East | N25: 3001 | O25: Beaconsfield | P25: Permanent Full Time | Q25: IEA | R25: 1200 | S25: AusNet Electricity Srvs | T25: 37.50 | U25: 1 | V25: 1
A26: Network Operations & Safety | B26: 10007367 | C26: Energy Projects - East 2 | D26: 13723 | E26: Cust Prog Cent East | F26: 10001596 | G26: Will Joshua | H26: 30013633 | I26: Electricity Network Representative | J26: 10001318 | K26: Tom Minogue | L26: 30021196 | M26: Lead Energy Project Coordinator | N26: 3001 | O26: Beaconsfield | P26: Permanent Full Time | Q26: ASU/APESMA | R26: 1200 | S26: AusNet Electricity Srvs | T26: 37.50 | U26: 1 | V26: 1
A27: Network Operations & Safety | B27: 10007433 | C27: Major Projects Distribution | D27: 13260 | E27: Major Projects Trans | F27: 10000641 | G27: Ross Gibb | H27: 30000667 | I27: Project Manager | J27: 10000189 | K27: Ross Stewart | L27: 30022262 | M27: Group Leader Major Projects Distribution | N27: 3011 | O27: Malvern | P27: Permanent Part Time | Q27: IEA | R27: 1200 | S27: AusNet Electricity Srvs | T27: 30.00 | U27: 1 | V27: 0.8
A28: Network Operations & Safety | B28: 10007433 | C28: Major Projects Distribution | D28: 13378 | E28: Major Projects Distr | F28: 10000189 | G28: Ross Stewart | H28: 30022262 | I28: Group Leader Major Projects Distribution | J28: 10009799 | K28: Andrew Linnie | L28: 30000116 | M28: Manager Major Projects Delivery | N28: 3011 | O28: Malvern | P28: Permanent Full Time | Q28: IEA | R28: 2100 | S28: AusNet Transmission Grp | T28: 37.50 | U28: 1 | V28: 1
A29: Network Management & Digital | B29: 10007800 | C29: Primary Asset Performance Stk Engagement | D29: 12017 | E29: NIU_Primary Asset Pe | F29: 10001047 | G29: David Platt | H29: 30000991 | I29: Principal Engineer Switchgear | J29: 10008984 | K29: Shadman Khan | L29: 30023284 | M29: Primary Asset Perf Stk Engagement,TL | N29: 3007 | O29: Freshwater Pl | P29: Permanent Full Time | Q29: IEA | R29: 2100 | S29: AusNet Transmission Grp | T29: 37.50 | U29: 1 | V29: 1
A30: Network Management & Digital | B30: 10007801 | C30: Secondary Asset Performance Optimisation | D30: 15012 | E30: NIU_Secondary Asset | F30: 10007768 | G30: Michael Wiener | H30: 30017744 | I30: REFCL Engineer | J30: 10009780 | K30: Danielle Roche | L30: 30021262 | M30: GM Asset Management | N30: 3007 | O30: Freshwater Pl | P30: Permanent Full Time | Q30: IEA | R30: 1200 | S30: AusNet Electricity Srvs | T30: 37.50 | U30: 1 | V30: 1
U31: 29 | V31: 28.8
